Workbook

Sheet Results data tables
A1: Row Labels | B1: Sum of 111-FILSN1 SAH | C1: Sum of 112-FILSN2 SAH | D1: Sum of 113-FILSN3 SAH | F1: Row Labels | G1: Sum of 111-FILSN1 Units | H1: Sum of 112-FILSN2 Units | I1: Sum of 113-FILSN3 Units | K1: Row Labels | L1: Average of Actual $/SAH | M1: Average of Actual Direct Labor $/SAH | N1: Average of Actual $/Unit
A2: 2015 | B2: 153666.0338 | C2: 82365.15218 | D2: 18293 | F2: 2015 | G2: 140914 | H2: 95961 | I2: 18293 | K2: 2015 | L2: 53.33415115 | M2: 23.0410333 | N2: 53.90594806
A3: 2016 | B3: 58692.03225 | C3: 34215.72737 | D3: 14070.36657 | F3: 2016 | G3: 44905 | H3: 48594 | I3: 21111 | K3: 2016 | L3: 46.63485806 | M3: 18.72459883 | N3: 45.46808655
A4: 1 | B4: 7773.31775 | C4: 5306.39561 | D4: 2096.558083 | F4: 1 | G4: 7010 | H4: 5845 | I4: 3130 | K4: 1 | L4: 55.38804756 | M4: 22.57984543 | N4: 51.70433425
A5: 2 | B5: 9641.632 | C5: 7711.352973 | D5: 2549.995793 | F5: 2 | G5: 6625 | H5: 7612 | I5: 5509 | K5: 2 | L5: 53.97840861 | M5: 20.48223583 | N5: 56.99991857
A6: 3 | B6: 17809.41683 | C6: 6314.623492 | D6: 5311.698215 | F6: 3 | G6: 12410 | H6: 10705 | I6: 6298 | K6: 3 | L6: 49.7920122 | M6: 20.51372977 | N6: 49.58283036
A7: 4 | B7: 23467.66567 | C7: 14883.3553 | D7: 4112.114477 | F7: 4 | G7: 18860 | H7: 24432 | I7: 6174 | K7: 4 | L7: 27.99068418 | M7: 11.39183045 | N7: 23.08695302
A8: 5 | B8: 0 | C8: 0 | D8: 0 | F8: 5 | G8: 0 | H8: 0 | I8: 0 | K8: 5
A9: 6 | B9: 0 | C9: 0 | D9: 0 | F9: 6 | G9: 0 | H9: 0 | I9: 0 | K9: 6
A10: 7 | B10: 0 | C10: 0 | D10: 0 | F10: 7 | G10: 0 | H10: 0 | I10: 0 | K10: 7
A11: 8 | B11: 0 | C11: 0 | D11: 0 | F11: 8 | G11: 0 | H11: 0 | I11: 0 | K11: 8
A12: 9 | B12: 0 | C12: 0 | D12: 0 | F12: 9 | G12: 0 | H12: 0 | I12: 0 | K12: 9
A13: 10 | B13: 0 | C13: 0 | D13: 0 | F13: 10 | G13: 0 | H13: 0 | I13: 0 | K13: 10
A14: 11 | B14: 0 | C14: 0 | D14: 0 | F14: 11 | G14: 0 | H14: 0 | I14: 0 | K14: 11
A15: 12 | B15: 0 | C15: 0 | D15: 0 | F15: 12 | G15: 0 | H15: 0 | I15: 0 | K15: 12
A16: Grand Total | B16: 212358.066 | C16: 116580.8796 | D16: 32363.36657 | F16: Grand Total | G16: 185819 | H16: 144555 | I16: 39404 | K16: 2017
K17: Grand Total | L17: 51.70717997 | M17: 21.99275635 | N17: 51.85675312

Sheet Results
A5: Row Labels | B5: Average of Actual $/SAH | C5: Average of Actual Direct Labor $/SAH | D5: Average of Goal $/SAH | E5: Average of Goal Direct Labor $/SAH
A6: 2016 | B6: 46.63485806 | C6: 18.72459883 | D6: 39.77028 | E6: 21.82356
A7: 1 | B7: 55.38804756 | C7: 22.57984543 | D7: 39.77028 | E7: 21.82356
A8: 1 | D8: 39.77028 | E8: 21.82356
A9: 2 | B9: 67.53908002 | C9: 29.28620132 | D9: 39.77028 | E9: 21.82356
A10: 3 | B10: 44.19206689 | C10: 17.23022836 | D10: 39.77028 | E10: 21.82356
A11: 4 | B11: 54.43299578 | C11: 21.22310662 | D11: 39.77028 | E11: 21.82356
A12: 2 | B12: 53.97840861 | C12: 20.48223583 | D12: 39.77028 | E12: 21.82356
A13: 5 | B13: 50.38167568 | C13: 19.24953632 | D13: 39.77028 | E13: 21.82356
A14: 6 | B14: 43.10486905 | C14: 16.46925656 | D14: 39.77028 | E14: 21.82356
A15: 7 | B15: 48.95059798 | C15: 18.47642137 | D15: 39.77028 | E15: 21.82356
A16: 8 | B16: 73.47649173 | C16: 27.73372907 | D16: 39.77028 | E16: 21.82356
A17: 3 | B17: 49.7920122 | C17: 20.51372977 | D17: 39.77028 | E17: 21.82356
A18: 9 | B18: 50.46536358 | C18: 20.4604719 | D18: 39.77028 | E18: 21.82356
A19: 10 | B19: 48.27461427 | C19: 19.57226341 | D19: 39.77028 | E19: 21.82356
A20: 11 | B20: 41.67452869 | C20: 17.06622089 | D20: 39.77028 | E20: 21.82356
A21: 12 | B21: 46.09929137 | C21: 18.87821444 | D21: 39.77028 | E21: 21.82356
A22: 13 | B22: 59.18266272 | C22: 24.83833282 | D22: 39.77028 | E22: 21.82356
A23: 14 | B23: 53.05561257 | C23: 22.26687516 | D23: 39.77028 | E23: 21.82356
A24: 4 | B24: 27.99068418 | C24: 11.39183045 | D24: 39.77028 | E24: 21.82356
A25: 15 | B25: 27.42487165 | C25: 11.14664784 | D25: 39.77028 | E25: 21.82356
A26: 16 | B26: 18.47982693 | C26: 7.510996793 | D26: 39.77028 | E26: 21.82356
A27: 17 | B27: 23.43335134 | C27: 9.545907469 | D27: 39.77028 | E27: 21.82356
A28: 18 | B28: 42.62468679 | C28: 17.3637697 | D28: 39.77028 | E28: 21.82356
A29: 19 | D29: 39.77028 | E29: 21.82356
A30: 5 | D30: 39.77028 | E30: 21.82356
A31: 20 | D31: 39.77028 | E31: 21.82356
A32: 21 | D32: 39.77028 | E32: 21.82356
A33: 22 | D33: 39.77028 | E33: 21.82356
A34: 23 | D34: 39.77028 | E34: 21.82356
A35: 6 | D35: 39.77028 | E35: 21.82356
A36: 24 | D36: 39.77028 | E36: 21.82356
A37: 25 | D37: 39.77028 | E37: 21.82356
A38: 26 | D38: 39.77028 | E38: 21.82356
A39: 27 | D39: 39.77028 | E39: 21.82356
A40: 7 | D40: 39.77028 | E40: 21.82356
A41: 28 | D41: 39.77028 | E41: 21.82356
A42: 29 | D42: 39.77028 | E42: 21.82356
A43: 30 | D43: 39.77028 | E43: 21.82356
A44: 31 | D44: 39.77028 | E44: 21.82356
A45: Grand Total | B45: 46.63485806 | C45: 18.72459883 | D45: 39.77028 | E45: 21.82356
A152: SAH Completed (Total) | B152: (Multiple Items) | F152: Units Completed (Total) | G152: (Multiple Items)
A154: Row Labels | B154: Sum of 111-FILSN1 SAH | C154: Sum of 112-FILSN2 SAH | D154: Sum of 113-FILSN3 SAH | F154: Row Labels | G154: Sum of 111-FILSN1 Units | H154: Sum of 112-FILSN2 Units | I154: Sum of 113-FILSN3 Units
A155: 2015 | B155: 153666.0338 | C155: 82365.15218 | D155: 18293 | F155: 2015 | G155: 140914 | H155: 95961 | I155: 18293
A156: 1 | B156: 12635.09581 | C156: 4843.355437 | D156: 788 | F156: 1 | G156: 10904 | H156: 4304 | I156: 788
A157: 2 | B157: 11307.8455 | C157: 6945.326002 | D157: 600 | F157: 2 | G157: 9948 | H157: 5004 | I157: 600
A158: 3 | B158: 14677.18967 | C158: 7588.738983 | D158: 2208 | F158: 3 | G158: 15366 | H158: 7704 | I158: 2208
A159: 4 | B159: 13439.20243 | C159: 6152.527512 | D159: 1404 | F159: 4 | G159: 14116 | H159: 8008 | I159: 1404
A160: 5 | B160: 8472.064275 | C160: 6187.7291 | D160: 1048 | F160: 5 | G160: 7412 | H160: 8424 | I160: 1048
A161: 6 | B161: 12983.8321 | C161: 5622.791255 | D161: 610 | F161: 6 | G161: 12495 | H161: 7200 | I161: 610
A162: 7 | B162: 13193.07158 | C162: 9081.42822 | D162: 960 | F162: 7 | G162: 12896 | H162: 14588 | I162: 960
A163: 8 | B163: 16683.6616 | C163: 5356.208903 | D163: 3895 | F163: 8 | G163: 14010 | H163: 6795 | I163: 3895
A164: 9 | B164: 14131.96232 | C164: 6838.607292 | D164: 0 | F164: 9 | G164: 12840 | H164: 9068 | I164: 0
A165: 10 | B165: 13208.38586 | C165: 9331.324067 | D165: 1456 | F165: 10 | G165: 12304 | H165: 10384 | I165: 1456
A166: 11 | B166: 9732.411928 | C166: 6535.000523 | D166: 2604 | F166: 11 | G166: 7488 | H166: 5772 | I166: 2604
A167: 12 | B167: 13201.31073 | C167: 7882.114885 | D167: 2720 | F167: 12 | G167: 11135 | H167: 8710 | I167: 2720
A168: 2016 | B168: 58692.03225 | C168: 34215.72737 | D168: 14070.36657 | F168: 2016 | G168: 44905 | H168: 48594 | I168: 21111
A169: 1 | B169: 7773.31775 | C169: 5306.39561 | D169: 2096.558083 | F169: 1 | G169: 7010 | H169: 5845 | I169: 3130
A170: 2 | B170: 9641.632 | C170: 7711.352973 | D170: 2549.995793 | F170: 2 | G170: 6625 | H170: 7612 | I170: 5509
A171: 3 | B171: 17809.41683 | C171: 6314.623492 | D171: 5311.698215 | F171: 3 | G171: 12410 | H171: 10705 | I171: 6298
A172: 4 | B172: 23467.66567 | C172: 14883.3553 | D172: 4112.114477 | F172: 4 | G172: 18860 | H172: 24432 | I172: 6174
A173: Grand Total | B173: 212358.066 | C173: 116580.8796 | D173: 32363.36657 | F173: Grand Total | G173: 185819 | H173: 144555 | I173: 39404

Sheet historic tracking data (hidden)
A1: week | B1: month | C1: year | D1: Goal $/SAH | E1: Goal Direct Labor $/SAH | F1: Actual $/SAH | G1: Actual Direct Labor $/SAH | H1: Actual $/Unit | I1: SAH Completed (Total) | J1: Units Completed (Total) | K1: 111-FILSN1 SAH | L1: 112-FILSN2 SAH | M1: 113-FILSN3 SAH | N1: 111-FILSN1 Units | O1: 112-FILSN2 Units | P1: 113-FILSN3 Units | Q1: Unique Style Count | R1: overhead
A2: 1 | B2: 1 | C2: 2015 | D2: 36.52 | E2: 20.04 | F2: =IFERROR((data_tracking[[#This Row],[overhead]]+SUMIFS('labor costs data'!H:H,'labor costs data'!D:D,data_tracking[[#This Row],[year]],'labor costs data'!A:A,data_tracking[[#This Row],[week]]))/data_tracking[[#This Row],[SAH Completed (Total)]],"") -> 46.82078356 | G2: =IFERROR(SUMIFS('labor costs data'!E:E,'labor costs data'!D:D,data_tracking[[#This Row],[year]],'labor costs data'!A:A,data_tracking[[#This Row],[week]])/data_tracking[[#This Row],[SAH Completed (Total)]],"") -> 21.54585775 | H2: =IFERROR((data_tracking[[#This Row],[overhead]]+SUMIFS(labor_costs[total labor cost],labor_costs[year],data_tracking[[#This Row],[year]],labor_costs[week],data_tracking[[#This Row],[week]]))/data_tracking[[#This Row],[Units Completed (Total)]],"") -> 53.46646412 | I2: =IF(SUM(data_tracking[[#This Row],[111-FILSN1 SAH]],data_tracking[[#This Row],[112-FILSN2 SAH]],data_tracking[[#This Row],[113-FILSN3 SAH]])=0,"",SUM(data_tracking[[#This Row],[111-FILSN1 SAH]],data_tracking[[#This Row],[112-FILSN2 SAH]],data_tracking[[#This Row],[113-FILSN3 SAH]])) -> 4566.612811 | J2: =IF(SUM(data_tracking[[#This Row],[111-FILSN1 Units]],data_tracking[[#This Row],[112-FILSN2 Units]],data_tracking[[#This Row],[113-FILSN3 Units]])=0,"",SUM(data_tracking[[#This Row],[111-FILSN1 Units]],data_tracking[[#This Row],[112-FILSN2 Units]],data_tracking[[#This Row],[113-FILSN3 Units]])) -> 3999 | K2: =IF(SUMIFS('2015 sah unit data'!B:B,'2015 sah unit data'!L:L,data_tracking[[#This Row],[year]],'2015 sah unit data'!K:K,data_tracking[[#This Row],[month]],'2015 sah unit data'!J:J,data_tracking[[#This Row],[week]])=0,"",SUMIFS('2015 sah unit data'!B:B,'2015 sah unit data'!L:L,data_tracking[[#This Row],[year]],'2015 sah unit data'!K:K,data_tracking[[#This Row],[month]],'2015 sah unit data'!J:J,data_tracking[[#This Row],[week]])) -> 3158.773952 | L2: =IF(SUMIFS('2015 sah unit data'!C:C,'2015 sah unit data'!L:L,data_tracking[[#This Row],[year]],'2015 sah unit data'!K:K,data_tracking[[#This Row],[month]],'2015 sah unit data'!J:J,data_tracking[[#This Row],[week]])=0,"",SUMIFS('2015 sah unit data'!C:C,'2015 sah unit data'!L:L,data_tracking[[#This Row],[year]],'2015 sah unit data'!K:K,data_tracking[[#This Row],[month]],'2015 sah unit data'!J:J,data_tracking[[#This Row],[week]])) -> 1210.838859 | M2: =IF(SUMIFS('2015 sah unit data'!D:D,'2015 sah unit data'!L:L,data_tracking[[#This Row],[year]],'2015 sah unit data'!K:K,data_tracking[[#This Row],[month]],'2015 sah unit data'!J:J,data_tracking[[#This Row],[week]])=0,"",SUMIFS('2015 sah unit data'!D:D,'2015 sah unit data'!L:L,data_tracking[[#This Row],[year]],'2015 sah unit data'!K:K,data_tracking[[#This Row],[month]],'2015 sah unit data'!J:J,data_tracking[[#This Row],[week]])) -> 197 | N2: =IF(SUMIFS('2015 sah unit data'!E:E,'2015 sah unit data'!L:L,data_tracking[[#This Row],[year]],'2015 sah unit data'!K:K,data_tracking[[#This Row],[month]],'2015 sah unit data'!J:J,data_tracking[[#This Row],[week]])=0,"",SUMIFS('2015 sah unit data'!E:E,'2015 sah unit data'!L:L,data_tracking[[#This Row],[year]],'2015 sah unit data'!K:K,data_tracking[[#This Row],[month]],'2015 sah unit data'!J:J,data_tracking[[#This Row],[week]])) -> 2726 | O2: =IF(SUMIFS('2015 sah unit data'!F:F,'2015 sah unit data'!L:L,data_tracking[[#This Row],[year]],'2015 sah unit data'!K:K,data_tracking[[#This Row],[month]],'2015 sah unit data'!J:J,data_tracking[[#This Row],[week]])=0,"",SUMIFS('2015 sah unit data'!F:F,'2015 sah unit data'!L:L,data_tracking[[#This Row],[year]],'2015 sah unit data'!K:K,data_tracking[[#This Row],[month]],'2015 sah unit data'!J:J,data_tracking[[#This Row],[week]])) -> 1076 | P2: =IF(SUMIFS('2015 sah unit data'!G:G,'2015 sah unit data'!L:L,data_tracking[[#This Row],[year]],'2015 sah unit data'!K:K,data_tracking[[#This Row],[month]],'2015 sah unit data'!J:J,data_tracking[[#This Row],[week]])=0,"",SUMIFS('2015 sah unit data'!G:G,'2015 sah unit data'!L:L,data_tracking[[#This Row],[year]],'2015 sah unit data'!K:K,data_tracking[[#This Row],[month]],'2015 sah unit data'!J:J,data_tracking[[#This Row],[week]])) -> 197 | Q2: =SUMIFS('2015 sah unit data'!I:I,'2015 sah unit data'!L:L,data_tracking[[#This Row],[year]],'2015 sah unit data'!K:K,data_tracking[[#This Row],[month]],'2015 sah unit data'!J:J,data_tracking[[#This Row],[week]]) -> 15 | R2: =SUMIFS('overhead costs data'!E:E,'overhead costs data'!C:C,data_tracking[[#This Row],[year]],'overhead costs data'!B:B,data_tracking[[#This Row],[month]]) -> 53421.1975
A3: 2 | B3: 1 | C3: 2015 | D3: 36.52 | E3: 20.04 | F3: =IFERROR((data_tracking[[#This Row],[overhead]]+SUMIFS('labor costs data'!H:H,'labor costs data'!D:D,data_tracking[[#This Row],[year]],'labor costs data'!A:A,data_tracking[[#This Row],[week]]))/data_tracking[[#This Row],[SAH Completed (Total)]],"") -> 46.82078356 | G3: =IFERROR(SUMIFS('labor costs data'!E:E,'labor costs data'!D:D,data_tracking[[#This Row],[year]],'labor costs data'!A:A,data_tracking[[#This Row],[week]])/data_tracking[[#This Row],[SAH Completed (Total)]],"") -> 21.54585775 | H3: =IFERROR((data_tracking[[#This Row],[overhead]]+SUMIFS(labor_costs[total labor cost],labor_costs[year],data_tracking[[#This Row],[year]],labor_costs[week],data_tracking[[#This Row],[week]]))/data_tracking[[#This Row],[Units Completed (Total)]],"") -> 53.46646412 | I3: =IF(SUM(data_tracking[[#This Row],[111-FILSN1 SAH]],data_tracking[[#This Row],[112-FILSN2 SAH]],data_tracking[[#This Row],[113-FILSN3 SAH]])=0,"",SUM(data_tracking[[#This Row],[111-FILSN1 SAH]],data_tracking[[#This Row],[112-FILSN2 SAH]],data_tracking[[#This Row],[113-FILSN3 SAH]])) -> 4566.612811 | J3: =IF(SUM(data_tracking[[#This Row],[111-FILSN1 Units]],data_tracking[[#This Row],[112-FILSN2 Units]],data_tracking[[#This Row],[113-FILSN3 Units]])=0,"",SUM(data_tracking[[#This Row],[111-FILSN1 Units]],data_tracking[[#This Row],[112-FILSN2 Units]],data_tracking[[#This Row],[113-FILSN3 Units]])) -> 3999 | K3: =IF(SUMIFS('2015 sah unit data'!B:B,'2015 sah unit data'!L:L,data_tracking[[#This Row],[year]],'2015 sah unit data'!K:K,data_tracking[[#This Row],[month]],'2015 sah unit data'!J:J,data_tracking[[#This Row],[week]])=0,"",SUMIFS('2015 sah unit data'!B:B,'2015 sah unit data'!L:L,data_tracking[[#This Row],[year]],'2015 sah unit data'!K:K,data_tracking[[#This Row],[month]],'2015 sah unit data'!J:J,data_tracking[[#This Row],[week]])) -> 3158.773952 | L3: =IF(SUMIFS('2015 sah unit data'!C:C,'2015 sah unit data'!L:L,data_tracking[[#This Row],[year]],'2015 sah unit data'!K:K,data_tracking[[#This Row],[month]],'2015 sah unit data'!J:J,data_tracking[[#This Row],[week]])=0,"",SUMIFS('2015 sah unit data'!C:C,'2015 sah unit data'!L:L,data_tracking[[#This Row],[year]],'2015 sah unit data'!K:K,data_tracking[[#This Row],[month]],'2015 sah unit data'!J:J,data_tracking[[#This Row],[week]])) -> 1210.838859 | M3: =IF(SUMIFS('2015 sah unit data'!D:D,'2015 sah unit data'!L:L,data_tracking[[#This Row],[year]],'2015 sah unit data'!K:K,data_tracking[[#This Row],[month]],'2015 sah unit data'!J:J,data_tracking[[#This Row],[week]])=0,"",SUMIFS('2015 sah unit data'!D:D,'2015 sah unit data'!L:L,data_tracking[[#This Row],[year]],'2015 sah unit data'!K:K,data_tracking[[#This Row],[month]],'2015 sah unit data'!J:J,data_tracking[[#This Row],[week]])) -> 197 | N3: =IF(SUMIFS('2015 sah unit data'!E:E,'2015 sah unit data'!L:L,data_tracking[[#This Row],[year]],'2015 sah unit data'!K:K,data_tracking[[#This Row],[month]],'2015 sah unit data'!J:J,data_tracking[[#This Row],[week]])=0,"",SUMIFS('2015 sah unit data'!E:E,'2015 sah unit data'!L:L,data_tracking[[#This Row],[year]],'2015 sah unit data'!K:K,data_tracking[[#This Row],[month]],'2015 sah unit data'!J:J,data_tracking[[#This Row],[week]])) -> 2726 | O3: =IF(SUMIFS('2015 sah unit data'!F:F,'2015 sah unit data'!L:L,data_tracking[[#This Row],[year]],'2015 sah unit data'!K:K,data_tracking[[#This Row],[month]],'2015 sah unit data'!J:J,data_tracking[[#This Row],[week]])=0,"",SUMIFS('2015 sah unit data'!F:F,'2015 sah unit data'!L:L,data_tracking[[#This Row],[year]],'2015 sah unit data'!K:K,data_tracking[[#This Row],[month]],'2015 sah unit data'!J:J,data_tracking[[#This Row],[week]])) -> 1076 | P3: =IF(SUMIFS('2015 sah unit data'!G:G,'2015 sah unit data'!L:L,data_tracking[[#This Row],[year]],'2015 sah unit data'!K:K,data_tracking[[#This Row],[month]],'2015 sah unit data'!J:J,data_tracking[[#This Row],[week]])=0,"",SUMIFS('2015 sah unit data'!G:G,'2015 sah unit data'!L:L,data_tracking[[#This Row],[year]],'2015 sah unit data'!K:K,data_tracking[[#This Row],[month]],'2015 sah unit data'!J:J,data_tracking[[#This Row],[week]])) -> 197 | Q3: =SUMIFS('2015 sah unit data'!I:I,'2015 sah unit data'!L:L,data_tracking[[#This Row],[year]],'2015 sah unit data'!K:K,data_tracking[[#This Row],[month]],'2015 sah unit data'!J:J,data_tracking[[#This Row],[week]]) -> 15 | R3: =SUMIFS('overhead costs data'!E:E,'overhead costs data'!C:C,data_tracking[[#This Row],[year]],'overhead costs data'!B:B,data_tracking[[#This Row],[month]]) -> 53421.1975
A4: 3 | B4: 1 | C4: 2015 | D4: 36.52 | E4: 20.04 | F4: =IFERROR((data_tracking[[#This Row],[overhead]]+SUMIFS('labor costs data'!H:H,'labor costs data'!D:D,data_tracking[[#This Row],[year]],'labor costs data'!A:A,data_tracking[[#This Row],[week]]))/data_tracking[[#This Row],[SAH Completed (Total)]],"") -> 41.19654168 | G4: =IFERROR(SUMIFS('labor costs data'!E:E,'labor costs data'!D:D,data_tracking[[#This Row],[year]],'labor costs data'!A:A,data_tracking[[#This Row],[week]])/data_tracking[[#This Row],[SAH Completed (Total)]],"") -> 17.79063134 | H4: =IFERROR((data_tracking[[#This Row],[overhead]]+SUMIFS(labor_costs[total labor cost],labor_costs[year],data_tracking[[#This Row],[year]],labor_costs[week],data_tracking[[#This Row],[week]]))/data_tracking[[#This Row],[Units Completed (Total)]],"") -> 47.04392473 | I4: =IF(SUM(data_tracking[[#This Row],[111-FILSN1 SAH]],data_tracking[[#This Row],[112-FILSN2 SAH]],data_tracking[[#This Row],[113-FILSN3 SAH]])=0,"",SUM(data_tracking[[#This Row],[111-FILSN1 SAH]],data_tracking[[#This Row],[112-FILSN2 SAH]],data_tracking[[#This Row],[113-FILSN3 SAH]])) -> 4566.612811 | J4: =IF(SUM(data_tracking[[#This Row],[111-FILSN1 Units]],data_tracking[[#This Row],[112-FILSN2 Units]],data_tracking[[#This Row],[113-FILSN3 Units]])=0,"",SUM(data_tracking[[#This Row],[111-FILSN1 Units]],data_tracking[[#This Row],[112-FILSN2 Units]],data_tracking[[#This Row],[113-FILSN3 Units]])) -> 3999 | K4: =IF(SUMIFS('2015 sah unit data'!B:B,'2015 sah unit data'!L:L,data_tracking[[#This Row],[year]],'2015 sah unit data'!K:K,data_tracking[[#This Row],[month]],'2015 sah unit data'!J:J,data_tracking[[#This Row],[week]])=0,"",SUMIFS('2015 sah unit data'!B:B,'2015 sah unit data'!L:L,data_tracking[[#This Row],[year]],'2015 sah unit data'!K:K,data_tracking[[#This Row],[month]],'2015 sah unit data'!J:J,data_tracking[[#This Row],[week]])) -> 3158.773952 | L4: =IF(SUMIFS('2015 sah unit data'!C:C,'2015 sah unit data'!L:L,data_tracking[[#This Row],[year]],'2015 sah unit data'!K:K,data_tracking[[#This Row],[month]],'2015 sah unit data'!J:J,data_tracking[[#This Row],[week]])=0,"",SUMIFS('2015 sah unit data'!C:C,'2015 sah unit data'!L:L,data_tracking[[#This Row],[year]],'2015 sah unit data'!K:K,data_tracking[[#This Row],[month]],'2015 sah unit data'!J:J,data_tracking[[#This Row],[week]])) -> 1210.838859 | M4: =IF(SUMIFS('2015 sah unit data'!D:D,'2015 sah unit data'!L:L,data_tracking[[#This Row],[year]],'2015 sah unit data'!K:K,data_tracking[[#This Row],[month]],'2015 sah unit data'!J:J,data_tracking[[#This Row],[week]])=0,"",SUMIFS('2015 sah unit data'!D:D,'2015 sah unit data'!L:L,data_tracking[[#This Row],[year]],'2015 sah unit data'!K:K,data_tracking[[#This Row],[month]],'2015 sah unit data'!J:J,data_tracking[[#This Row],[week]])) -> 197 | N4: =IF(SUMIFS('2015 sah unit data'!E:E,'2015 sah unit data'!L:L,data_tracking[[#This Row],[year]],'2015 sah unit data'!K:K,data_tracking[[#This Row],[month]],'2015 sah unit data'!J:J,data_tracking[[#This Row],[week]])=0,"",SUMIFS('2015 sah unit data'!E:E,'2015 sah unit data'!L:L,data_tracking[[#This Row],[year]],'2015 sah unit data'!K:K,data_tracking[[#This Row],[month]],'2015 sah unit data'!J:J,data_tracking[[#This Row],[week]])) -> 2726 | O4: =IF(SUMIFS('2015 sah unit data'!F:F,'2015 sah unit data'!L:L,data_tracking[[#This Row],[year]],'2015 sah unit data'!K:K,data_tracking[[#This Row],[month]],'2015 sah unit data'!J:J,data_tracking[[#This Row],[week]])=0,"",SUMIFS('2015 sah unit data'!F:F,'2015 sah unit data'!L:L,data_tracking[[#This Row],[year]],'2015 sah unit data'!K:K,data_tracking[[#This Row],[month]],'2015 sah unit data'!J:J,data_tracking[[#This Row],[week]])) -> 1076 | P4: =IF(SUMIFS('2015 sah unit data'!G:G,'2015 sah unit data'!L:L,data_tracking[[#This Row],[year]],'2015 sah unit data'!K:K,data_tracking[[#This Row],[month]],'2015 sah unit data'!J:J,data_tracking[[#This Row],[week]])=0,"",SUMIFS('2015 sah unit data'!G:G,'2015 sah unit data'!L:L,data_tracking[[#This Row],[year]],'2015 sah unit data'!K:K,data_tracking[[#This Row],[month]],'2015 sah unit data'!J:J,data_tracking[[#This Row],[week]])) -> 197 | Q4: =SUMIFS('2015 sah unit data'!I:I,'2015 sah unit data'!L:L,data_tracking[[#This Row],[year]],'2015 sah unit data'!K:K,data_tracking[[#This Row],[month]],'2015 sah unit data'!J:J,data_tracking[[#This Row],[week]]) -> 15 | R4: =SUMIFS('overhead costs data'!E:E,'overhead costs data'!C:C,data_tracking[[#This Row],[year]],'overhead costs data'!B:B,data_tracking[[#This Row],[month]]) -> 53421.1975
A5: 4 | B5: 1 | C5: 2015 | D5: 36.52 | E5: 20.04 | F5: =IFERROR((data_tracking[[#This Row],[overhead]]+SUMIFS('labor costs data'!H:H,'labor costs data'!D:D,data_tracking[[#This Row],[year]],'labor costs data'!A:A,data_tracking[[#This Row],[week]]))/data_tracking[[#This Row],[SAH Completed (Total)]],"") -> 41.19654168 | G5: =IFERROR(SUMIFS('labor costs data'!E:E,'labor costs data'!D:D,data_tracking[[#This Row],[year]],'labor costs data'!A:A,data_tracking[[#This Row],[week]])/data_tracking[[#This Row],[SAH Completed (Total)]],"") -> 17.79063134 | H5: =IFERROR((data_tracking[[#This Row],[overhead]]+SUMIFS(labor_costs[total labor cost],labor_costs[year],data_tracking[[#This Row],[year]],labor_costs[week],data_tracking[[#This Row],[week]]))/data_tracking[[#This Row],[Units Completed (Total)]],"") -> 47.04392473 | I5: =IF(SUM(data_tracking[[#This Row],[111-FILSN1 SAH]],data_tracking[[#This Row],[112-FILSN2 SAH]],data_tracking[[#This Row],[113-FILSN3 SAH]])=0,"",SUM(data_tracking[[#This Row],[111-FILSN1 SAH]],data_tracking[[#This Row],[112-FILSN2 SAH]],data_tracking[[#This Row],[113-FILSN3 SAH]])) -> 4566.612811 | J5: =IF(SUM(data_tracking[[#This Row],[111-FILSN1 Units]],data_tracking[[#This Row],[112-FILSN2 Units]],data_tracking[[#This Row],[113-FILSN3 Units]])=0,"",SUM(data_tracking[[#This Row],[111-FILSN1 Units]],data_tracking[[#This Row],[112-FILSN2 Units]],data_tracking[[#This Row],[113-FILSN3 Units]])) -> 3999 | K5: =IF(SUMIFS('2015 sah unit data'!B:B,'2015 sah unit data'!L:L,data_tracking[[#This Row],[year]],'2015 sah unit data'!K:K,data_tracking[[#This Row],[month]],'2015 sah unit data'!J:J,data_tracking[[#This Row],[week]])=0,"",SUMIFS('2015 sah unit data'!B:B,'2015 sah unit data'!L:L,data_tracking[[#This Row],[year]],'2015 sah unit data'!K:K,data_tracking[[#This Row],[month]],'2015 sah unit data'!J:J,data_tracking[[#This Row],[week]])) -> 3158.773952 | L5: =IF(SUMIFS('2015 sah unit data'!C:C,'2015 sah unit data'!L:L,data_tracking[[#This Row],[year]],'2015 sah unit data'!K:K,data_tracking[[#This Row],[month]],'2015 sah unit data'!J:J,data_tracking[[#This Row],[week]])=0,"",SUMIFS('2015 sah unit data'!C:C,'2015 sah unit data'!L:L,data_tracking[[#This Row],[year]],'2015 sah unit data'!K:K,data_tracking[[#This Row],[month]],'2015 sah unit data'!J:J,data_tracking[[#This Row],[week]])) -> 1210.838859 | M5: =IF(SUMIFS('2015 sah unit data'!D:D,'2015 sah unit data'!L:L,data_tracking[[#This Row],[year]],'2015 sah unit data'!K:K,data_tracking[[#This Row],[month]],'2015 sah unit data'!J:J,data_tracking[[#This Row],[week]])=0,"",SUMIFS('2015 sah unit data'!D:D,'2015 sah unit data'!L:L,data_tracking[[#This Row],[year]],'2015 sah unit data'!K:K,data_tracking[[#This Row],[month]],'2015 sah unit data'!J:J,data_tracking[[#This Row],[week]])) -> 197 | N5: =IF(SUMIFS('2015 sah unit data'!E:E,'2015 sah unit data'!L:L,data_tracking[[#This Row],[year]],'2015 sah unit data'!K:K,data_tracking[[#This Row],[month]],'2015 sah unit data'!J:J,data_tracking[[#This Row],[week]])=0,"",SUMIFS('2015 sah unit data'!E:E,'2015 sah unit data'!L:L,data_tracking[[#This Row],[year]],'2015 sah unit data'!K:K,data_tracking[[#This Row],[month]],'2015 sah unit data'!J:J,data_tracking[[#This Row],[week]])) -> 2726 | O5: =IF(SUMIFS('2015 sah unit data'!F:F,'2015 sah unit data'!L:L,data_tracking[[#This Row],[year]],'2015 sah unit data'!K:K,data_tracking[[#This Row],[month]],'2015 sah unit data'!J:J,data_tracking[[#This Row],[week]])=0,"",SUMIFS('2015 sah unit data'!F:F,'2015 sah unit data'!L:L,data_tracking[[#This Row],[year]],'2015 sah unit data'!K:K,data_tracking[[#This Row],[month]],'2015 sah unit data'!J:J,data_tracking[[#This Row],[week]])) -> 1076 | P5: =IF(SUMIFS('2015 sah unit data'!G:G,'2015 sah unit data'!L:L,data_tracking[[#This Row],[year]],'2015 sah unit data'!K:K,data_tracking[[#This Row],[month]],'2015 sah unit data'!J:J,data_tracking[[#This Row],[week]])=0,"",SUMIFS('2015 sah unit data'!G:G,'2015 sah unit data'!L:L,data_tracking[[#This Row],[year]],'2015 sah unit data'!K:K,data_tracking[[#This Row],[month]],'2015 sah unit data'!J:J,data_tracking[[#This Row],[week]])) -> 197 | Q5: =SUMIFS('2015 sah unit data'!I:I,'2015 sah unit data'!L:L,data_tracking[[#This Row],[year]],'2015 sah unit data'!K:K,data_tracking[[#This Row],[month]],'2015 sah unit data'!J:J,data_tracking[[#This Row],[week]]) -> 15 | R5: =SUMIFS('overhead costs data'!E:E,'overhead costs data'!C:C,data_tracking[[#This Row],[year]],'overhead costs data'!B:B,data_tracking[[#This Row],[month]]) -> 53421.1975
A6: 5 | B6: 2 | C6: 2015 | D6: 36.52 | E6: 20.04 | F6: =IFERROR((data_tracking[[#This Row],[overhead]]+SUMIFS('labor costs data'!H:H,'labor costs data'!D:D,data_tracking[[#This Row],[year]],'labor costs data'!A:A,data_tracking[[#This Row],[week]]))/data_tracking[[#This Row],[SAH Completed (Total)]],"") -> 43.95397845 | G6: =IFERROR(SUMIFS('labor costs data'!E:E,'labor costs data'!D:D,data_tracking[[#This Row],[year]],'labor costs data'!A:A,data_tracking[[#This Row],[week]])/data_tracking[[#This Row],[SAH Completed (Total)]],"") -> 18.78454561 | H6: =IFERROR((data_tracking[[#This Row],[overhead]]+SUMIFS(labor_costs[total labor cost],labor_costs[year],data_tracking[[#This Row],[year]],labor_costs[week],data_tracking[[#This Row],[week]]))/data_tracking[[#This Row],[Units Completed (Total)]],"") -> 53.2839438 | I6: =IF(SUM(data_tracking[[#This Row],[111-FILSN1 SAH]],data_tracking[[#This Row],[112-FILSN2 SAH]],data_tracking[[#This Row],[113-FILSN3 SAH]])=0,"",SUM(data_tracking[[#This Row],[111-FILSN1 SAH]],data_tracking[[#This Row],[112-FILSN2 SAH]],data_tracking[[#This Row],[113-FILSN3 SAH]])) -> 4713.292876 | J6: =IF(SUM(data_tracking[[#This Row],[111-FILSN1 Units]],data_tracking[[#This Row],[112-FILSN2 Units]],data_tracking[[#This Row],[113-FILSN3 Units]])=0,"",SUM(data_tracking[[#This Row],[111-FILSN1 Units]],data_tracking[[#This Row],[112-FILSN2 Units]],data_tracking[[#This Row],[113-FILSN3 Units]])) -> 3888 | K6: =IF(SUMIFS('2015 sah unit data'!B:B,'2015 sah unit data'!L:L,data_tracking[[#This Row],[year]],'2015 sah unit data'!K:K,data_tracking[[#This Row],[month]],'2015 sah unit data'!J:J,data_tracking[[#This Row],[week]])=0,"",SUMIFS('2015 sah unit data'!B:B,'2015 sah unit data'!L:L,data_tracking[[#This Row],[year]],'2015 sah unit data'!K:K,data_tracking[[#This Row],[month]],'2015 sah unit data'!J:J,data_tracking[[#This Row],[week]])) -> 2826.961376 | L6: =IF(SUMIFS('2015 sah unit data'!C:C,'2015 sah unit data'!L:L,data_tracking[[#This Row],[year]],'2015 sah unit data'!K:K,data_tracking[[#This Row],[month]],'2015 sah unit data'!J:J,data_tracking[[#This Row],[week]])=0,"",SUMIFS('2015 sah unit data'!C:C,'2015 sah unit data'!L:L,data_tracking[[#This Row],[year]],'2015 sah unit data'!K:K,data_tracking[[#This Row],[month]],'2015 sah unit data'!J:J,data_tracking[[#This Row],[week]])) -> 1736.3315 | M6: =IF(SUMIFS('2015 sah unit data'!D:D,'2015 sah unit data'!L:L,data_tracking[[#This Row],[year]],'2015 sah unit data'!K:K,data_tracking[[#This Row],[month]],'2015 sah unit data'!J:J,data_tracking[[#This Row],[week]])=0,"",SUMIFS('2015 sah unit data'!D:D,'2015 sah unit data'!L:L,data_tracking[[#This Row],[year]],'2015 sah unit data'!K:K,data_tracking[[#This Row],[month]],'2015 sah unit data'!J:J,data_tracking[[#This Row],[week]])) -> 150 | N6: =IF(SUMIFS('2015 sah unit data'!E:E,'2015 sah unit data'!L:L,data_tracking[[#This Row],[year]],'2015 sah unit data'!K:K,data_tracking[[#This Row],[month]],'2015 sah unit data'!J:J,data_tracking[[#This Row],[week]])=0,"",SUMIFS('2015 sah unit data'!E:E,'2015 sah unit data'!L:L,data_tracking[[#This Row],[year]],'2015 sah unit data'!K:K,data_tracking[[#This Row],[month]],'2015 sah unit data'!J:J,data_tracking[[#This Row],[week]])) -> 2487 | O6: =IF(SUMIFS('2015 sah unit data'!F:F,'2015 sah unit data'!L:L,data_tracking[[#This Row],[year]],'2015 sah unit data'!K:K,data_tracking[[#This Row],[month]],'2015 sah unit data'!J:J,data_tracking[[#This Row],[week]])=0,"",SUMIFS('2015 sah unit data'!F:F,'2015 sah unit data'!L:L,data_tracking[[#This Row],[year]],'2015 sah unit data'!K:K,data_tracking[[#This Row],[month]],'2015 sah unit data'!J:J,data_tracking[[#This Row],[week]])) -> 1251 | P6: =IF(SUMIFS('2015 sah unit data'!G:G,'2015 sah unit data'!L:L,data_tracking[[#This Row],[year]],'2015 sah unit data'!K:K,data_tracking[[#This Row],[month]],'2015 sah unit data'!J:J,data_tracking[[#This Row],[week]])=0,"",SUMIFS('2015 sah unit data'!G:G,'2015 sah unit data'!L:L,data_tracking[[#This Row],[year]],'2015 sah unit data'!K:K,data_tracking[[#This Row],[month]],'2015 sah unit data'!J:J,data_tracking[[#This Row],[week]])) -> 150 | Q6: =SUMIFS('2015 sah unit data'!I:I,'2015 sah unit data'!L:L,data_tracking[[#This Row],[year]],'2015 sah unit data'!K:K,data_tracking[[#This Row],[month]],'2015 sah unit data'!J:J,data_tracking[[#This Row],[week]]) -> 15 | R6: =SUMIFS('overhead costs data'!E:E,'overhead costs data'!C:C,data_tracking[[#This Row],[year]],'overhead costs data'!B:B,data_tracking[[#This Row],[month]]) -> 61049.7925
A7: 6 | B7: 2 | C7: 2015 | D7: 36.52 | E7: 20.04 | F7: =IFERROR((data_tracking[[#This Row],[overhead]]+SUMIFS('labor costs data'!H:H,'labor costs data'!D:D,data_tracking[[#This Row],[year]],'labor costs data'!A:A,data_tracking[[#This Row],[week]]))/data_tracking[[#This Row],[SAH Completed (Total)]],"") -> 43.95397845 | G7: =IFERROR(SUMIFS('labor costs data'!E:E,'labor costs data'!D:D,data_tracking[[#This Row],[year]],'labor costs data'!A:A,data_tracking[[#This Row],[week]])/data_tracking[[#This Row],[SAH Completed (Total)]],"") -> 18.78454561 | H7: =IFERROR((data_tracking[[#This Row],[overhead]]+SUMIFS(labor_costs[total labor cost],labor_costs[year],data_tracking[[#This Row],[year]],labor_costs[week],data_tracking[[#This Row],[week]]))/data_tracking[[#This Row],[Units Completed (Total)]],"") -> 53.2839438 | I7: =IF(SUM(data_tracking[[#This Row],[111-FILSN1 SAH]],data_tracking[[#This Row],[112-FILSN2 SAH]],data_tracking[[#This Row],[113-FILSN3 SAH]])=0,"",SUM(data_tracking[[#This Row],[111-FILSN1 SAH]],data_tracking[[#This Row],[112-FILSN2 SAH]],data_tracking[[#This Row],[113-FILSN3 SAH]])) -> 4713.292876 | J7: =IF(SUM(data_tracking[[#This Row],[111-FILSN1 Units]],data_tracking[[#This Row],[112-FILSN2 Units]],data_tracking[[#This Row],[113-FILSN3 Units]])=0,"",SUM(data_tracking[[#This Row],[111-FILSN1 Units]],data_tracking[[#This Row],[112-FILSN2 Units]],data_tracking[[#This Row],[113-FILSN3 Units]])) -> 3888 | K7: =IF(SUMIFS('2015 sah unit data'!B:B,'2015 sah unit data'!L:L,data_tracking[[#This Row],[year]],'2015 sah unit data'!K:K,data_tracking[[#This Row],[month]],'2015 sah unit data'!J:J,data_tracking[[#This Row],[week]])=0,"",SUMIFS('2015 sah unit data'!B:B,'2015 sah unit data'!L:L,data_tracking[[#This Row],[year]],'2015 sah unit data'!K:K,data_tracking[[#This Row],[month]],'2015 sah unit data'!J:J,data_tracking[[#This Row],[week]])) -> 2826.961376 | L7: =IF(SUMIFS('2015 sah unit data'!C:C,'2015 sah unit data'!L:L,data_tracking[[#This Row],[year]],'2015 sah unit data'!K:K,data_tracking[[#This Row],[month]],'2015 sah unit data'!J:J,data_tracking[[#This Row],[week]])=0,"",SUMIFS('2015 sah unit data'!C:C,'2015 sah unit data'!L:L,data_tracking[[#This Row],[year]],'2015 sah unit data'!K:K,data_tracking[[#This Row],[month]],'2015 sah unit data'!J:J,data_tracking[[#This Row],[week]])) -> 1736.3315 | M7: =IF(SUMIFS('2015 sah unit data'!D:D,'2015 sah unit data'!L:L,data_tracking[[#This Row],[year]],'2015 sah unit data'!K:K,data_tracking[[#This Row],[month]],'2015 sah unit data'!J:J,data_tracking[[#This Row],[week]])=0,"",SUMIFS('2015 sah unit data'!D:D,'2015 sah unit data'!L:L,data_tracking[[#This Row],[year]],'2015 sah unit data'!K:K,data_tracking[[#This Row],[month]],'2015 sah unit data'!J:J,data_tracking[[#This Row],[week]])) -> 150 | N7: =IF(SUMIFS('2015 sah unit data'!E:E,'2015 sah unit data'!L:L,data_tracking[[#This Row],[year]],'2015 sah unit data'!K:K,data_tracking[[#This Row],[month]],'2015 sah unit data'!J:J,data_tracking[[#This Row],[week]])=0,"",SUMIFS('2015 sah unit data'!E:E,'2015 sah unit data'!L:L,data_tracking[[#This Row],[year]],'2015 sah unit data'!K:K,data_tracking[[#This Row],[month]],'2015 sah unit data'!J:J,data_tracking[[#This Row],[week]])) -> 2487 | O7: =IF(SUMIFS('2015 sah unit data'!F:F,'2015 sah unit data'!L:L,data_tracking[[#This Row],[year]],'2015 sah unit data'!K:K,data_tracking[[#This Row],[month]],'2015 sah unit data'!J:J,data_tracking[[#This Row],[week]])=0,"",SUMIFS('2015 sah unit data'!F:F,'2015 sah unit data'!L:L,data_tracking[[#This Row],[year]],'2015 sah unit data'!K:K,data_tracking[[#This Row],[month]],'2015 sah unit data'!J:J,data_tracking[[#This Row],[week]])) -> 1251 | P7: =IF(SUMIFS('2015 sah unit data'!G:G,'2015 sah unit data'!L:L,data_tracking[[#This Row],[year]],'2015 sah unit data'!K:K,data_tracking[[#This Row],[month]],'2015 sah unit data'!J:J,data_tracking[[#This Row],[week]])=0,"",SUMIFS('2015 sah unit data'!G:G,'2015 sah unit data'!L:L,data_tracking[[#This Row],[year]],'2015 sah unit data'!K:K,data_tracking[[#This Row],[month]],'2015 sah unit data'!J:J,data_tracking[[#This Row],[week]])) -> 150 | Q7: =SUMIFS('2015 sah unit data'!I:I,'2015 sah unit data'!L:L,data_tracking[[#This Row],[year]],'2015 sah unit data'!K:K,data_tracking[[#This Row],[month]],'2015 sah unit data'!J:J,data_tracking[[#This Row],[week]]) -> 15 | R7: =SUMIFS('overhead costs data'!E:E,'overhead costs data'!C:C,data_tracking[[#This Row],[year]],'overhead costs data'!B:B,data_tracking[[#This Row],[month]]) -> 61049.7925
A8: 7 | B8: 2 | C8: 2015 | D8: 36.52 | E8: 20.04 | F8: =IFERROR((data_tracking[[#This Row],[overhead]]+SUMIFS('labor costs data'!H:H,'labor costs data'!D:D,data_tracking[[#This Row],[year]],'labor costs data'!A:A,data_tracking[[#This Row],[week]]))/data_tracking[[#This Row],[SAH Completed (Total)]],"") -> 45.47181177 | G8: =IFERROR(SUMIFS('labor costs data'!E:E,'labor costs data'!D:D,data_tracking[[#This Row],[year]],'labor costs data'!A:A,data_tracking[[#This Row],[week]])/data_tracking[[#This Row],[SAH Completed (Total)]],"") -> 19.17134843 | H8: =IFERROR((data_tracking[[#This Row],[overhead]]+SUMIFS(labor_costs[total labor cost],labor_costs[year],data_tracking[[#This Row],[year]],labor_costs[week],data_tracking[[#This Row],[week]]))/data_tracking[[#This Row],[Units Completed (Total)]],"") -> 55.12396258 | I8: =IF(SUM(data_tracking[[#This Row],[111-FILSN1 SAH]],data_tracking[[#This Row],[112-FILSN2 SAH]],data_tracking[[#This Row],[113-FILSN3 SAH]])=0,"",SUM(data_tracking[[#This Row],[111-FILSN1 SAH]],data_tracking[[#This Row],[112-FILSN2 SAH]],data_tracking[[#This Row],[113-FILSN3 SAH]])) -> 4713.292876 | J8: =IF(SUM(data_tracking[[#This Row],[111-FILSN1 Units]],data_tracking[[#This Row],[112-FILSN2 Units]],data_tracking[[#This Row],[113-FILSN3 Units]])=0,"",SUM(data_tracking[[#This Row],[111-FILSN1 Units]],data_tracking[[#This Row],[112-FILSN2 Units]],data_tracking[[#This Row],[113-FILSN3 Units]])) -> 3888 | K8: =IF(SUMIFS('2015 sah unit data'!B:B,'2015 sah unit data'!L:L,data_tracking[[#This Row],[year]],'2015 sah unit data'!K:K,data_tracking[[#This Row],[month]],'2015 sah unit data'!J:J,data_tracking[[#This Row],[week]])=0,"",SUMIFS('2015 sah unit data'!B:B,'2015 sah unit data'!L:L,data_tracking[[#This Row],[year]],'2015 sah unit data'!K:K,data_tracking[[#This Row],[month]],'2015 sah unit data'!J:J,data_tracking[[#This Row],[week]])) -> 2826.961376 | L8: =IF(SUMIFS('2015 sah unit data'!C:C,'2015 sah unit data'!L:L,data_tracking[[#This Row],[year]],'2015 sah unit data'!K:K,data_tracking[[#This Row],[month]],'2015 sah unit data'!J:J,data_tracking[[#This Row],[week]])=0,"",SUMIFS('2015 sah unit data'!C:C,'2015 sah unit data'!L:L,data_tracking[[#This Row],[year]],'2015 sah unit data'!K:K,data_tracking[[#This Row],[month]],'2015 sah unit data'!J:J,data_tracking[[#This Row],[week]])) -> 1736.3315 | M8: =IF(SUMIFS('2015 sah unit data'!D:D,'2015 sah unit data'!L:L,data_tracking[[#This Row],[year]],'2015 sah unit data'!K:K,data_tracking[[#This Row],[month]],'2015 sah unit data'!J:J,data_tracking[[#This Row],[week]])=0,"",SUMIFS('2015 sah unit data'!D:D,'2015 sah unit data'!L:L,data_tracking[[#This Row],[year]],'2015 sah unit data'!K:K,data_tracking[[#This Row],[month]],'2015 sah unit data'!J:J,data_tracking[[#This Row],[week]])) -> 150 | N8: =IF(SUMIFS('2015 sah unit data'!E:E,'2015 sah unit data'!L:L,data_tracking[[#This Row],[year]],'2015 sah unit data'!K:K,data_tracking[[#This Row],[month]],'2015 sah unit data'!J:J,data_tracking[[#This Row],[week]])=0,"",SUMIFS('2015 sah unit data'!E:E,'2015 sah unit data'!L:L,data_tracking[[#This Row],[year]],'2015 sah unit data'!K:K,data_tracking[[#This Row],[month]],'2015 sah unit data'!J:J,data_tracking[[#This Row],[week]])) -> 2487 | O8: =IF(SUMIFS('2015 sah unit data'!F:F,'2015 sah unit data'!L:L,data_tracking[[#This Row],[year]],'2015 sah unit data'!K:K,data_tracking[[#This Row],[month]],'2015 sah unit data'!J:J,data_tracking[[#This Row],[week]])=0,"",SUMIFS('2015 sah unit data'!F:F,'2015 sah unit data'!L:L,data_tracking[[#This Row],[year]],'2015 sah unit data'!K:K,data_tracking[[#This Row],[month]],'2015 sah unit data'!J:J,data_tracking[[#This Row],[week]])) -> 1251 | P8: =IF(SUMIFS('2015 sah unit data'!G:G,'2015 sah unit data'!L:L,data_tracking[[#This Row],[year]],'2015 sah unit data'!K:K,data_tracking[[#This Row],[month]],'2015 sah unit data'!J:J,data_tracking[[#This Row],[week]])=0,"",SUMIFS('2015 sah unit data'!G:G,'2015 sah unit data'!L:L,data_tracking[[#This Row],[year]],'2015 sah unit data'!K:K,data_tracking[[#This Row],[month]],'2015 sah unit data'!J:J,data_tracking[[#This Row],[week]])) -> 150 | Q8: =SUMIFS('2015 sah unit data'!I:I,'2015 sah unit data'!L:L,data_tracking[[#This Row],[year]],'2015 sah unit data'!K:K,data_tracking[[#This Row],[month]],'2015 sah unit data'!J:J,data_tracking[[#This Row],[week]]) -> 15 | R8: =SUMIFS('overhead costs data'!E:E,'overhead costs data'!C:C,data_tracking[[#This Row],[year]],'overhead costs data'!B:B,data_tracking[[#This Row],[month]]) -> 61049.7925
A9: 8 | B9: 2 | C9: 2015 | D9: 36.52 | E9: 20.04 | F9: =IFERROR((data_tracking[[#This Row],[overhead]]+SUMIFS('labor costs data'!H:H,'labor costs data'!D:D,data_tracking[[#This Row],[year]],'labor costs data'!A:A,data_tracking[[#This Row],[week]]))/data_tracking[[#This Row],[SAH Completed (Total)]],"") -> 45.47181177 | G9: =IFERROR(SUMIFS('labor costs data'!E:E,'labor costs data'!D:D,data_tracking[[#This Row],[year]],'labor costs data'!A:A,data_tracking[[#This Row],[week]])/data_tracking[[#This Row],[SAH Completed (Total)]],"") -> 19.17134843 | H9: =IFERROR((data_tracking[[#This Row],[overhead]]+SUMIFS(labor_costs[total labor cost],labor_costs[year],data_tracking[[#This Row],[year]],labor_costs[week],data_tracking[[#This Row],[week]]))/data_tracking[[#This Row],[Units Completed (Total)]],"") -> 55.12396258 | I9: =IF(SUM(data_tracking[[#This Row],[111-FILSN1 SAH]],data_tracking[[#This Row],[112-FILSN2 SAH]],data_tracking[[#This Row],[113-FILSN3 SAH]])=0,"",SUM(data_tracking[[#This Row],[111-FILSN1 SAH]],data_tracking[[#This Row],[112-FILSN2 SAH]],data_tracking[[#This Row],[113-FILSN3 SAH]])) -> 4713.292876 | J9: =IF(SUM(data_tracking[[#This Row],[111-FILSN1 Units]],data_tracking[[#This Row],[112-FILSN2 Units]],data_tracking[[#This Row],[113-FILSN3 Units]])=0,"",SUM(data_tracking[[#This Row],[111-FILSN1 Units]],data_tracking[[#This Row],[112-FILSN2 Units]],data_tracking[[#This Row],[113-FILSN3 Units]])) -> 3888 | K9: =IF(SUMIFS('2015 sah unit data'!B:B,'2015 sah unit data'!L:L,data_tracking[[#This Row],[year]],'2015 sah unit data'!K:K,data_tracking[[#This Row],[month]],'2015 sah unit data'!J:J,data_tracking[[#This Row],[week]])=0,"",SUMIFS('2015 sah unit data'!B:B,'2015 sah unit data'!L:L,data_tracking[[#This Row],[year]],'2015 sah unit data'!K:K,data_tracking[[#This Row],[month]],'2015 sah unit data'!J:J,data_tracking[[#This Row],[week]])) -> 2826.961376 | L9: =IF(SUMIFS('2015 sah unit data'!C:C,'2015 sah unit data'!L:L,data_tracking[[#This Row],[year]],'2015 sah unit data'!K:K,data_tracking[[#This Row],[month]],'2015 sah unit data'!J:J,data_tracking[[#This Row],[week]])=0,"",SUMIFS('2015 sah unit data'!C:C,'2015 sah unit data'!L:L,data_tracking[[#This Row],[year]],'2015 sah unit data'!K:K,data_tracking[[#This Row],[month]],'2015 sah unit data'!J:J,data_tracking[[#This Row],[week]])) -> 1736.3315 | M9: =IF(SUMIFS('2015 sah unit data'!D:D,'2015 sah unit data'!L:L,data_tracking[[#This Row],[year]],'2015 sah unit data'!K:K,data_tracking[[#This Row],[month]],'2015 sah unit data'!J:J,data_tracking[[#This Row],[week]])=0,"",SUMIFS('2015 sah unit data'!D:D,'2015 sah unit data'!L:L,data_tracking[[#This Row],[year]],'2015 sah unit data'!K:K,data_tracking[[#This Row],[month]],'2015 sah unit data'!J:J,data_tracking[[#This Row],[week]])) -> 150 | N9: =IF(SUMIFS('2015 sah unit data'!E:E,'2015 sah unit data'!L:L,data_tracking[[#This Row],[year]],'2015 sah unit data'!K:K,data_tracking[[#This Row],[month]],'2015 sah unit data'!J:J,data_tracking[[#This Row],[week]])=0,"",SUMIFS('2015 sah unit data'!E:E,'2015 sah unit data'!L:L,data_tracking[[#This Row],[year]],'2015 sah unit data'!K:K,data_tracking[[#This Row],[month]],'2015 sah unit data'!J:J,data_tracking[[#This Row],[week]])) -> 2487 | O9: =IF(SUMIFS('2015 sah unit data'!F:F,'2015 sah unit data'!L:L,data_tracking[[#This Row],[year]],'2015 sah unit data'!K:K,data_tracking[[#This Row],[month]],'2015 sah unit data'!J:J,data_tracking[[#This Row],[week]])=0,"",SUMIFS('2015 sah unit data'!F:F,'2015 sah unit data'!L:L,data_tracking[[#This Row],[year]],'2015 sah unit data'!K:K,data_tracking[[#This Row],[month]],'2015 sah unit data'!J:J,data_tracking[[#This Row],[week]])) -> 1251 | P9: =IF(SUMIFS('2015 sah unit data'!G:G,'2015 sah unit data'!L:L,data_tracking[[#This Row],[year]],'2015 sah unit data'!K:K,data_tracking[[#This Row],[month]],'2015 sah unit data'!J:J,data_tracking[[#This Row],[week]])=0,"",SUMIFS('2015 sah unit data'!G:G,'2015 sah unit data'!L:L,data_tracking[[#This Row],[year]],'2015 sah unit data'!K:K,data_tracking[[#This Row],[month]],'2015 sah unit data'!J:J,data_tracking[[#This Row],[week]])) -> 150 | Q9: =SUMIFS('2015 sah unit data'!I:I,'2015 sah unit data'!L:L,data_tracking[[#This Row],[year]],'2015 sah unit data'!K:K,data_tracking[[#This Row],[month]],'2015 sah unit data'!J:J,data_tracking[[#This Row],[week]]) -> 15 | R9: =SUMIFS('overhead costs data'!E:E,'overhead costs data'!C:C,data_tracking[[#This Row],[year]],'overhead costs data'!B:B,data_tracking[[#This Row],[month]]) -> 61049.7925
A10: 9 | B10: 3 | C10: 2015 | D10: 36.52 | E10: 20.04 | F10: =IFERROR((data_tracking[[#This Row],[overhead]]+SUMIFS('labor costs data'!H:H,'labor costs data'!D:D,data_tracking[[#This Row],[year]],'labor costs data'!A:A,data_tracking[[#This Row],[week]]))/data_tracking[[#This Row],[SAH Completed (Total)]],"") -> 52.08443623 | G10: =IFERROR(SUMIFS('labor costs data'!E:E,'labor costs data'!D:D,data_tracking[[#This Row],[year]],'labor costs data'!A:A,data_tracking[[#This Row],[week]])/data_tracking[[#This Row],[SAH Completed (Total)]],"") -> 24.68355811 | H10: =IFERROR((data_tracking[[#This Row],[overhead]]+SUMIFS(labor_costs[total labor cost],labor_costs[year],data_tracking[[#This Row],[year]],labor_costs[week],data_tracking[[#This Row],[week]]))/data_tracking[[#This Row],[Units Completed (Total)]],"") -> 50.42767529 | I10: =IF(SUM(data_tracking[[#This Row],[111-FILSN1 SAH]],data_tracking[[#This Row],[112-FILSN2 SAH]],data_tracking[[#This Row],[113-FILSN3 SAH]])=0,"",SUM(data_tracking[[#This Row],[111-FILSN1 SAH]],data_tracking[[#This Row],[112-FILSN2 SAH]],data_tracking[[#This Row],[113-FILSN3 SAH]])) -> 4078.988108 | J10: =IF(SUM(data_tracking[[#This Row],[111-FILSN1 Units]],data_tracking[[#This Row],[112-FILSN2 Units]],data_tracking[[#This Row],[113-FILSN3 Units]])=0,"",SUM(data_tracking[[#This Row],[111-FILSN1 Units]],data_tracking[[#This Row],[112-FILSN2 Units]],data_tracking[[#This Row],[113-FILSN3 Units]])) -> 4213 | K10: =IF(SUMIFS('2015 sah unit data'!B:B,'2015 sah unit data'!L:L,data_tracking[[#This Row],[year]],'2015 sah unit data'!K:K,data_tracking[[#This Row],[month]],'2015 sah unit data'!J:J,data_tracking[[#This Row],[week]])=0,"",SUMIFS('2015 sah unit data'!B:B,'2015 sah unit data'!L:L,data_tracking[[#This Row],[year]],'2015 sah unit data'!K:K,data_tracking[[#This Row],[month]],'2015 sah unit data'!J:J,data_tracking[[#This Row],[week]])) -> 2446.198278 | L10: =IF(SUMIFS('2015 sah unit data'!C:C,'2015 sah unit data'!L:L,data_tracking[[#This Row],[year]],'2015 sah unit data'!K:K,data_tracking[[#This Row],[month]],'2015 sah unit data'!J:J,data_tracking[[#This Row],[week]])=0,"",SUMIFS('2015 sah unit data'!C:C,'2015 sah unit data'!L:L,data_tracking[[#This Row],[year]],'2015 sah unit data'!K:K,data_tracking[[#This Row],[month]],'2015 sah unit data'!J:J,data_tracking[[#This Row],[week]])) -> 1264.789831 | M10: =IF(SUMIFS('2015 sah unit data'!D:D,'2015 sah unit data'!L:L,data_tracking[[#This Row],[year]],'2015 sah unit data'!K:K,data_tracking[[#This Row],[month]],'2015 sah unit data'!J:J,data_tracking[[#This Row],[week]])=0,"",SUMIFS('2015 sah unit data'!D:D,'2015 sah unit data'!L:L,data_tracking[[#This Row],[year]],'2015 sah unit data'!K:K,data_tracking[[#This Row],[month]],'2015 sah unit data'!J:J,data_tracking[[#This Row],[week]])) -> 368 | N10: =IF(SUMIFS('2015 sah unit data'!E:E,'2015 sah unit data'!L:L,data_tracking[[#This Row],[year]],'2015 sah unit data'!K:K,data_tracking[[#This Row],[month]],'2015 sah unit data'!J:J,data_tracking[[#This Row],[week]])=0,"",SUMIFS('2015 sah unit data'!E:E,'2015 sah unit data'!L:L,data_tracking[[#This Row],[year]],'2015 sah unit data'!K:K,data_tracking[[#This Row],[month]],'2015 sah unit data'!J:J,data_tracking[[#This Row],[week]])) -> 2561 | O10: =IF(SUMIFS('2015 sah unit data'!F:F,'2015 sah unit data'!L:L,data_tracking[[#This Row],[year]],'2015 sah unit data'!K:K,data_tracking[[#This Row],[month]],'2015 sah unit data'!J:J,data_tracking[[#This Row],[week]])=0,"",SUMIFS('2015 sah unit data'!F:F,'2015 sah unit data'!L:L,data_tracking[[#This Row],[year]],'2015 sah unit data'!K:K,data_tracking[[#This Row],[month]],'2015 sah unit data'!J:J,data_tracking[[#This Row],[week]])) -> 1284 | P10: =IF(SUMIFS('2015 sah unit data'!G:G,'2015 sah unit data'!L:L,data_tracking[[#This Row],[year]],'2015 sah unit data'!K:K,data_tracking[[#This Row],[month]],'2015 sah unit data'!J:J,data_tracking[[#This Row],[week]])=0,"",SUMIFS('2015 sah unit data'!G:G,'2015 sah unit data'!L:L,data_tracking[[#This Row],[year]],'2015 sah unit data'!K:K,data_tracking[[#This Row],[month]],'2015 sah unit data'!J:J,data_tracking[[#This Row],[week]])) -> 368 | Q10: =SUMIFS('2015 sah unit data'!I:I,'2015 sah unit data'!L:L,data_tracking[[#This Row],[year]],'2015 sah unit data'!K:K,data_tracking[[#This Row],[month]],'2015 sah unit data'!J:J,data_tracking[[#This Row],[week]]) -> 13 | R10: =SUMIFS('overhead costs data'!E:E,'overhead costs data'!C:C,data_tracking[[#This Row],[year]],'overhead costs data'!B:B,data_tracking[[#This Row],[month]]) -> 46798.11
A11: 10 | B11: 3 | C11: 2015 | D11: 36.52 | E11: 20.04 | F11: =IFERROR((data_tracking[[#This Row],[overhead]]+SUMIFS('labor costs data'!H:H,'labor costs data'!D:D,data_tracking[[#This Row],[year]],'labor costs data'!A:A,data_tracking[[#This Row],[week]]))/data_tracking[[#This Row],[SAH Completed (Total)]],"") -> 52.08443623 | G11: =IFERROR(SUMIFS('labor costs data'!E:E,'labor costs data'!D:D,data_tracking[[#This Row],[year]],'labor costs data'!A:A,data_tracking[[#This Row],[week]])/data_tracking[[#This Row],[SAH Completed (Total)]],"") -> 24.68355811 | H11: =IFERROR((data_tracking[[#This Row],[overhead]]+SUMIFS(labor_costs[total labor cost],labor_costs[year],data_tracking[[#This Row],[year]],labor_costs[week],data_tracking[[#This Row],[week]]))/data_tracking[[#This Row],[Units Completed (Total)]],"") -> 50.42767529 | I11: =IF(SUM(data_tracking[[#This Row],[111-FILSN1 SAH]],data_tracking[[#This Row],[112-FILSN2 SAH]],data_tracking[[#This Row],[113-FILSN3 SAH]])=0,"",SUM(data_tracking[[#This Row],[111-FILSN1 SAH]],data_tracking[[#This Row],[112-FILSN2 SAH]],data_tracking[[#This Row],[113-FILSN3 SAH]])) -> 4078.988108 | J11: =IF(SUM(data_tracking[[#This Row],[111-FILSN1 Units]],data_tracking[[#This Row],[112-FILSN2 Units]],data_tracking[[#This Row],[113-FILSN3 Units]])=0,"",SUM(data_tracking[[#This Row],[111-FILSN1 Units]],data_tracking[[#This Row],[112-FILSN2 Units]],data_tracking[[#This Row],[113-FILSN3 Units]])) -> 4213 | K11: =IF(SUMIFS('2015 sah unit data'!B:B,'2015 sah unit data'!L:L,data_tracking[[#This Row],[year]],'2015 sah unit data'!K:K,data_tracking[[#This Row],[month]],'2015 sah unit data'!J:J,data_tracking[[#This Row],[week]])=0,"",SUMIFS('2015 sah unit data'!B:B,'2015 sah unit data'!L:L,data_tracking[[#This Row],[year]],'2015 sah unit data'!K:K,data_tracking[[#This Row],[month]],'2015 sah unit data'!J:J,data_tracking[[#This Row],[week]])) -> 2446.198278 | L11: =IF(SUMIFS('2015 sah unit data'!C:C,'2015 sah unit data'!L:L,data_tracking[[#This Row],[year]],'2015 sah unit data'!K:K,data_tracking[[#This Row],[month]],'2015 sah unit data'!J:J,data_tracking[[#This Row],[week]])=0,"",SUMIFS('2015 sah unit data'!C:C,'2015 sah unit data'!L:L,data_tracking[[#This Row],[year]],'2015 sah unit data'!K:K,data_tracking[[#This Row],[month]],'2015 sah unit data'!J:J,data_tracking[[#This Row],[week]])) -> 1264.789831 | M11: =IF(SUMIFS('2015 sah unit data'!D:D,'2015 sah unit data'!L:L,data_tracking[[#This Row],[year]],'2015 sah unit data'!K:K,data_tracking[[#This Row],[month]],'2015 sah unit data'!J:J,data_tracking[[#This Row],[week]])=0,"",SUMIFS('2015 sah unit data'!D:D,'2015 sah unit data'!L:L,data_tracking[[#This Row],[year]],'2015 sah unit data'!K:K,data_tracking[[#This Row],[month]],'2015 sah unit data'!J:J,data_tracking[[#This Row],[week]])) -> 368 | N11: =IF(SUMIFS('2015 sah unit data'!E:E,'2015 sah unit data'!L:L,data_tracking[[#This Row],[year]],'2015 sah unit data'!K:K,data_tracking[[#This Row],[month]],'2015 sah unit data'!J:J,data_tracking[[#This Row],[week]])=0,"",SUMIFS('2015 sah unit data'!E:E,'2015 sah unit data'!L:L,data_tracking[[#This Row],[year]],'2015 sah unit data'!K:K,data_tracking[[#This Row],[month]],'2015 sah unit data'!J:J,data_tracking[[#This Row],[week]])) -> 2561 | O11: =IF(SUMIFS('2015 sah unit data'!F:F,'2015 sah unit data'!L:L,data_tracking[[#This Row],[year]],'2015 sah unit data'!K:K,data_tracking[[#This Row],[month]],'2015 sah unit data'!J:J,data_tracking[[#This Row],[week]])=0,"",SUMIFS('2015 sah unit data'!F:F,'2015 sah unit data'!L:L,data_tracking[[#This Row],[year]],'2015 sah unit data'!K:K,data_tracking[[#This Row],[month]],'2015 sah unit data'!J:J,data_tracking[[#This Row],[week]])) -> 1284 | P11: =IF(SUMIFS('2015 sah unit data'!G:G,'2015 sah unit data'!L:L,data_tracking[[#This Row],[year]],'2015 sah unit data'!K:K,data_tracking[[#This Row],[month]],'2015 sah unit data'!J:J,data_tracking[[#This Row],[week]])=0,"",SUMIFS('2015 sah unit data'!G:G,'2015 sah unit data'!L:L,data_tracking[[#This Row],[year]],'2015 sah unit data'!K:K,data_tracking[[#This Row],[month]],'2015 sah unit data'!J:J,data_tracking[[#This Row],[week]])) -> 368 | Q11: =SUMIFS('2015 sah unit data'!I:I,'2015 sah unit data'!L:L,data_tracking[[#This Row],[year]],'2015 sah unit data'!K:K,data_tracking[[#This Row],[month]],'2015 sah unit data'!J:J,data_tracking[[#This Row],[week]]) -> 13 | R11: =SUMIFS('overhead costs data'!E:E,'overhead costs data'!C:C,data_tracking[[#This Row],[year]],'overhead costs data'!B:B,data_tracking[[#This Row],[month]]) -> 46798.11
A12: 11 | B12: 3 | C12: 2015 | D12: 36.52 | E12: 20.04 | F12: =IFERROR((data_tracking[[#This Row],[overhead]]+SUMIFS('labor costs data'!H:H,'labor costs data'!D:D,data_tracking[[#This Row],[year]],'labor costs data'!A:A,data_tracking[[#This Row],[week]]))/data_tracking[[#This Row],[SAH Completed (Total)]],"") -> 52.6484326 | G12: =IFERROR(SUMIFS('labor costs data'!E:E,'labor costs data'!D:D,data_tracking[[#This Row],[year]],'labor costs data'!A:A,data_tracking[[#This Row],[week]])/data_tracking[[#This Row],[SAH Completed (Total)]],"") -> 24.797834 | H12: =IFERROR((data_tracking[[#This Row],[overhead]]+SUMIFS(labor_costs[total labor cost],labor_costs[year],data_tracking[[#This Row],[year]],labor_costs[week],data_tracking[[#This Row],[week]]))/data_tracking[[#This Row],[Units Completed (Total)]],"") -> 50.97373143 | I12: =IF(SUM(data_tracking[[#This Row],[111-FILSN1 SAH]],data_tracking[[#This Row],[112-FILSN2 SAH]],data_tracking[[#This Row],[113-FILSN3 SAH]])=0,"",SUM(data_tracking[[#This Row],[111-FILSN1 SAH]],data_tracking[[#This Row],[112-FILSN2 SAH]],data_tracking[[#This Row],[113-FILSN3 SAH]])) -> 4078.988108 | J12: =IF(SUM(data_tracking[[#This Row],[111-FILSN1 Units]],data_tracking[[#This Row],[112-FILSN2 Units]],data_tracking[[#This Row],[113-FILSN3 Units]])=0,"",SUM(data_tracking[[#This Row],[111-FILSN1 Units]],data_tracking[[#This Row],[112-FILSN2 Units]],data_tracking[[#This Row],[113-FILSN3 Units]])) -> 4213 | K12: =IF(SUMIFS('2015 sah unit data'!B:B,'2015 sah unit data'!L:L,data_tracking[[#This Row],[year]],'2015 sah unit data'!K:K,data_tracking[[#This Row],[month]],'2015 sah unit data'!J:J,data_tracking[[#This Row],[week]])=0,"",SUMIFS('2015 sah unit data'!B:B,'2015 sah unit data'!L:L,data_tracking[[#This Row],[year]],'2015 sah unit data'!K:K,data_tracking[[#This Row],[month]],'2015 sah unit data'!J:J,data_tracking[[#This Row],[week]])) -> 2446.198278 | L12: =IF(SUMIFS('2015 sah unit data'!C:C,'2015 sah unit data'!L:L,data_tracking[[#This Row],[year]],'2015 sah unit data'!K:K,data_tracking[[#This Row],[month]],'2015 sah unit data'!J:J,data_tracking[[#This Row],[week]])=0,"",SUMIFS('2015 sah unit data'!C:C,'2015 sah unit data'!L:L,data_tracking[[#This Row],[year]],'2015 sah unit data'!K:K,data_tracking[[#This Row],[month]],'2015 sah unit data'!J:J,data_tracking[[#This Row],[week]])) -> 1264.789831 | M12: =IF(SUMIFS('2015 sah unit data'!D:D,'2015 sah unit data'!L:L,data_tracking[[#This Row],[year]],'2015 sah unit data'!K:K,data_tracking[[#This Row],[month]],'2015 sah unit data'!J:J,data_tracking[[#This Row],[week]])=0,"",SUMIFS('2015 sah unit data'!D:D,'2015 sah unit data'!L:L,data_tracking[[#This Row],[year]],'2015 sah unit data'!K:K,data_tracking[[#This Row],[month]],'2015 sah unit data'!J:J,data_tracking[[#This Row],[week]])) -> 368 | N12: =IF(SUMIFS('2015 sah unit data'!E:E,'2015 sah unit data'!L:L,data_tracking[[#This Row],[year]],'2015 sah unit data'!K:K,data_tracking[[#This Row],[month]],'2015 sah unit data'!J:J,data_tracking[[#This Row],[week]])=0,"",SUMIFS('2015 sah unit data'!E:E,'2015 sah unit data'!L:L,data_tracking[[#This Row],[year]],'2015 sah unit data'!K:K,data_tracking[[#This Row],[month]],'2015 sah unit data'!J:J,data_tracking[[#This Row],[week]])) -> 2561 | O12: =IF(SUMIFS('2015 sah unit data'!F:F,'2015 sah unit data'!L:L,data_tracking[[#This Row],[year]],'2015 sah unit data'!K:K,data_tracking[[#This Row],[month]],'2015 sah unit data'!J:J,data_tracking[[#This Row],[week]])=0,"",SUMIFS('2015 sah unit data'!F:F,'2015 sah unit data'!L:L,data_tracking[[#This Row],[year]],'2015 sah unit data'!K:K,data_tracking[[#This Row],[month]],'2015 sah unit data'!J:J,data_tracking[[#This Row],[week]])) -> 1284 | P12: =IF(SUMIFS('2015 sah unit data'!G:G,'2015 sah unit data'!L:L,data_tracking[[#This Row],[year]],'2015 sah unit data'!K:K,data_tracking[[#This Row],[month]],'2015 sah unit data'!J:J,data_tracking[[#This Row],[week]])=0,"",SUMIFS('2015 sah unit data'!G:G,'2015 sah unit data'!L:L,data_tracking[[#This Row],[year]],'2015 sah unit data'!K:K,data_tracking[[#This Row],[month]],'2015 sah unit data'!J:J,data_tracking[[#This Row],[week]])) -> 368 | Q12: =SUMIFS('2015 sah unit data'!I:I,'2015 sah unit data'!L:L,data_tracking[[#This Row],[year]],'2015 sah unit data'!K:K,data_tracking[[#This Row],[month]],'2015 sah unit data'!J:J,data_tracking[[#This Row],[week]]) -> 13 | R12: =SUMIFS('overhead costs data'!E:E,'overhead costs data'!C:C,data_tracking[[#This Row],[year]],'overhead costs data'!B:B,data_tracking[[#This Row],[month]]) -> 46798.11
A13: 12 | B13: 3 | C13: 2015 | D13: 36.52 | E13: 20.04 | F13: =IFERROR((data_tracking[[#This Row],[overhead]]+SUMIFS('labor costs data'!H:H,'labor costs data'!D:D,data_tracking[[#This Row],[year]],'labor costs data'!A:A,data_tracking[[#This Row],[week]]))/data_tracking[[#This Row],[SAH Completed (Total)]],"") -> 52.6484326 | G13: =IFERROR(SUMIFS('labor costs data'!E:E,'labor costs data'!D:D,data_tracking[[#This Row],[year]],'labor costs data'!A:A,data_tracking[[#This Row],[week]])/data_tracking[[#This Row],[SAH Completed (Total)]],"") -> 24.797834 | H13: =IFERROR((data_tracking[[#This Row],[overhead]]+SUMIFS(labor_costs[total labor cost],labor_costs[year],data_tracking[[#This Row],[year]],labor_costs[week],data_tracking[[#This Row],[week]]))/data_tracking[[#This Row],[Units Completed (Total)]],"") -> 50.97373143 | I13: =IF(SUM(data_tracking[[#This Row],[111-FILSN1 SAH]],data_tracking[[#This Row],[112-FILSN2 SAH]],data_tracking[[#This Row],[113-FILSN3 SAH]])=0,"",SUM(data_tracking[[#This Row],[111-FILSN1 SAH]],data_tracking[[#This Row],[112-FILSN2 SAH]],data_tracking[[#This Row],[113-FILSN3 SAH]])) -> 4078.988108 | J13: =IF(SUM(data_tracking[[#This Row],[111-FILSN1 Units]],data_tracking[[#This Row],[112-FILSN2 Units]],data_tracking[[#This Row],[113-FILSN3 Units]])=0,"",SUM(data_tracking[[#This Row],[111-FILSN1 Units]],data_tracking[[#This Row],[112-FILSN2 Units]],data_tracking[[#This Row],[113-FILSN3 Units]])) -> 4213 | K13: =IF(SUMIFS('2015 sah unit data'!B:B,'2015 sah unit data'!L:L,data_tracking[[#This Row],[year]],'2015 sah unit data'!K:K,data_tracking[[#This Row],[month]],'2015 sah unit data'!J:J,data_tracking[[#This Row],[week]])=0,"",SUMIFS('2015 sah unit data'!B:B,'2015 sah unit data'!L:L,data_tracking[[#This Row],[year]],'2015 sah unit data'!K:K,data_tracking[[#This Row],[month]],'2015 sah unit data'!J:J,data_tracking[[#This Row],[week]])) -> 2446.198278 | L13: =IF(SUMIFS('2015 sah unit data'!C:C,'2015 sah unit data'!L:L,data_tracking[[#This Row],[year]],'2015 sah unit data'!K:K,data_tracking[[#This Row],[month]],'2015 sah unit data'!J:J,data_tracking[[#This Row],[week]])=0,"",SUMIFS('2015 sah unit data'!C:C,'2015 sah unit data'!L:L,data_tracking[[#This Row],[year]],'2015 sah unit data'!K:K,data_tracking[[#This Row],[month]],'2015 sah unit data'!J:J,data_tracking[[#This Row],[week]])) -> 1264.789831 | M13: =IF(SUMIFS('2015 sah unit data'!D:D,'2015 sah unit data'!L:L,data_tracking[[#This Row],[year]],'2015 sah unit data'!K:K,data_tracking[[#This Row],[month]],'2015 sah unit data'!J:J,data_tracking[[#This Row],[week]])=0,"",SUMIFS('2015 sah unit data'!D:D,'2015 sah unit data'!L:L,data_tracking[[#This Row],[year]],'2015 sah unit data'!K:K,data_tracking[[#This Row],[month]],'2015 sah unit data'!J:J,data_tracking[[#This Row],[week]])) -> 368 | N13: =IF(SUMIFS('2015 sah unit data'!E:E,'2015 sah unit data'!L:L,data_tracking[[#This Row],[year]],'2015 sah unit data'!K:K,data_tracking[[#This Row],[month]],'2015 sah unit data'!J:J,data_tracking[[#This Row],[week]])=0,"",SUMIFS('2015 sah unit data'!E:E,'2015 sah unit data'!L:L,data_tracking[[#This Row],[year]],'2015 sah unit data'!K:K,data_tracking[[#This Row],[month]],'2015 sah unit data'!J:J,data_tracking[[#This Row],[week]])) -> 2561 | O13: =IF(SUMIFS('2015 sah unit data'!F:F,'2015 sah unit data'!L:L,data_tracking[[#This Row],[year]],'2015 sah unit data'!K:K,data_tracking[[#This Row],[month]],'2015 sah unit data'!J:J,data_tracking[[#This Row],[week]])=0,"",SUMIFS('2015 sah unit data'!F:F,'2015 sah unit data'!L:L,data_tracking[[#This Row],[year]],'2015 sah unit data'!K:K,data_tracking[[#This Row],[month]],'2015 sah unit data'!J:J,data_tracking[[#This Row],[week]])) -> 1284 | P13: =IF(SUMIFS('2015 sah unit data'!G:G,'2015 sah unit data'!L:L,data_tracking[[#This Row],[year]],'2015 sah unit data'!K:K,data_tracking[[#This Row],[month]],'2015 sah unit data'!J:J,data_tracking[[#This Row],[week]])=0,"",SUMIFS('2015 sah unit data'!G:G,'2015 sah unit data'!L:L,data_tracking[[#This Row],[year]],'2015 sah unit data'!K:K,data_tracking[[#This Row],[month]],'2015 sah unit data'!J:J,data_tracking[[#This Row],[week]])) -> 368 | Q13: =SUMIFS('2015 sah unit data'!I:I,'2015 sah unit data'!L:L,data_tracking[[#This Row],[year]],'2015 sah unit data'!K:K,data_tracking[[#This Row],[month]],'2015 sah unit data'!J:J,data_tracking[[#This Row],[week]]) -> 13 | R13: =SUMIFS('overhead costs data'!E:E,'overhead costs data'!C:C,data_tracking[[#This Row],[year]],'overhead costs data'!B:B,data_tracking[[#This Row],[month]]) -> 46798.11
A14: 13 | B14: 3 | C14: 2015 | D14: 36.52 | E14: 20.04 | F14: =IFERROR((data_tracking[[#This Row],[overhead]]+SUMIFS('labor costs data'!H:H,'labor costs data'!D:D,data_tracking[[#This Row],[year]],'labor costs data'!A:A,data_tracking[[#This Row],[week]]))/data_tracking[[#This Row],[SAH Completed (Total)]],"") -> 53.38709729 | G14: =IFERROR(SUMIFS('labor costs data'!E:E,'labor costs data'!D:D,data_tracking[[#This Row],[year]],'labor costs data'!A:A,data_tracking[[#This Row],[week]])/data_tracking[[#This Row],[SAH Completed (Total)]],"") -> 24.79930741 | H14: =IFERROR((data_tracking[[#This Row],[overhead]]+SUMIFS(labor_costs[total labor cost],labor_costs[year],data_tracking[[#This Row],[year]],labor_costs[week],data_tracking[[#This Row],[week]]))/data_tracking[[#This Row],[Units Completed (Total)]],"") -> 51.68889983 | I14: =IF(SUM(data_tracking[[#This Row],[111-FILSN1 SAH]],data_tracking[[#This Row],[112-FILSN2 SAH]],data_tracking[[#This Row],[113-FILSN3 SAH]])=0,"",SUM(data_tracking[[#This Row],[111-FILSN1 SAH]],data_tracking[[#This Row],[112-FILSN2 SAH]],data_tracking[[#This Row],[113-FILSN3 SAH]])) -> 4078.988108 | J14: =IF(SUM(data_tracking[[#This Row],[111-FILSN1 Units]],data_tracking[[#This Row],[112-FILSN2 Units]],data_tracking[[#This Row],[113-FILSN3 Units]])=0,"",SUM(data_tracking[[#This Row],[111-FILSN1 Units]],data_tracking[[#This Row],[112-FILSN2 Units]],data_tracking[[#This Row],[113-FILSN3 Units]])) -> 4213 | K14: =IF(SUMIFS('2015 sah unit data'!B:B,'2015 sah unit data'!L:L,data_tracking[[#This Row],[year]],'2015 sah unit data'!K:K,data_tracking[[#This Row],[month]],'2015 sah unit data'!J:J,data_tracking[[#This Row],[week]])=0,"",SUMIFS('2015 sah unit data'!B:B,'2015 sah unit data'!L:L,data_tracking[[#This Row],[year]],'2015 sah unit data'!K:K,data_tracking[[#This Row],[month]],'2015 sah unit data'!J:J,data_tracking[[#This Row],[week]])) -> 2446.198278 | L14: =IF(SUMIFS('2015 sah unit data'!C:C,'2015 sah unit data'!L:L,data_tracking[[#This Row],[year]],'2015 sah unit data'!K:K,data_tracking[[#This Row],[month]],'2015 sah unit data'!J:J,data_tracking[[#This Row],[week]])=0,"",SUMIFS('2015 sah unit data'!C:C,'2015 sah unit data'!L:L,data_tracking[[#This Row],[year]],'2015 sah unit data'!K:K,data_tracking[[#This Row],[month]],'2015 sah unit data'!J:J,data_tracking[[#This Row],[week]])) -> 1264.789831 | M14: =IF(SUMIFS('2015 sah unit data'!D:D,'2015 sah unit data'!L:L,data_tracking[[#This Row],[year]],'2015 sah unit data'!K:K,data_tracking[[#This Row],[month]],'2015 sah unit data'!J:J,data_tracking[[#This Row],[week]])=0,"",SUMIFS('2015 sah unit data'!D:D,'2015 sah unit data'!L:L,data_tracking[[#This Row],[year]],'2015 sah unit data'!K:K,data_tracking[[#This Row],[month]],'2015 sah unit data'!J:J,data_tracking[[#This Row],[week]])) -> 368 | N14: =IF(SUMIFS('2015 sah unit data'!E:E,'2015 sah unit data'!L:L,data_tracking[[#This Row],[year]],'2015 sah unit data'!K:K,data_tracking[[#This Row],[month]],'2015 sah unit data'!J:J,data_tracking[[#This Row],[week]])=0,"",SUMIFS('2015 sah unit data'!E:E,'2015 sah unit data'!L:L,data_tracking[[#This Row],[year]],'2015 sah unit data'!K:K,data_tracking[[#This Row],[month]],'2015 sah unit data'!J:J,data_tracking[[#This Row],[week]])) -> 2561 | O14: =IF(SUMIFS('2015 sah unit data'!F:F,'2015 sah unit data'!L:L,data_tracking[[#This Row],[year]],'2015 sah unit data'!K:K,data_tracking[[#This Row],[month]],'2015 sah unit data'!J:J,data_tracking[[#This Row],[week]])=0,"",SUMIFS('2015 sah unit data'!F:F,'2015 sah unit data'!L:L,data_tracking[[#This Row],[year]],'2015 sah unit data'!K:K,data_tracking[[#This Row],[month]],'2015 sah unit data'!J:J,data_tracking[[#This Row],[week]])) -> 1284 | P14: =IF(SUMIFS('2015 sah unit data'!G:G,'2015 sah unit data'!L:L,data_tracking[[#This Row],[year]],'2015 sah unit data'!K:K,data_tracking[[#This Row],[month]],'2015 sah unit data'!J:J,data_tracking[[#This Row],[week]])=0,"",SUMIFS('2015 sah unit data'!G:G,'2015 sah unit data'!L:L,data_tracking[[#This Row],[year]],'2015 sah unit data'!K:K,data_tracking[[#This Row],[month]],'2015 sah unit data'!J:J,data_tracking[[#This Row],[week]])) -> 368 | Q14: =SUMIFS('2015 sah unit data'!I:I,'2015 sah unit data'!L:L,data_tracking[[#This Row],[year]],'2015 sah unit data'!K:K,data_tracking[[#This Row],[month]],'2015 sah unit data'!J:J,data_tracking[[#This Row],[week]]) -> 13 | R14: =SUMIFS('overhead costs data'!E:E,'overhead costs data'!C:C,data_tracking[[#This Row],[year]],'overhead costs data'!B:B,data_tracking[[#This Row],[month]]) -> 46798.11
A15: 14 | B15: 3 | C15: 2015 | D15: 36.52 | E15: 20.04 | F15: =IFERROR((data_tracking[[#This Row],[overhead]]+SUMIFS('labor costs data'!H:H,'labor costs data'!D:D,data_tracking[[#This Row],[year]],'labor costs data'!A:A,data_tracking[[#This Row],[week]]))/data_tracking[[#This Row],[SAH Completed (Total)]],"") -> 53.38709729 | G15: =IFERROR(SUMIFS('labor costs data'!E:E,'labor costs data'!D:D,data_tracking[[#This Row],[year]],'labor costs data'!A:A,data_tracking[[#This Row],[week]])/data_tracking[[#This Row],[SAH Completed (Total)]],"") -> 24.79930741 | H15: =IFERROR((data_tracking[[#This Row],[overhead]]+SUMIFS(labor_costs[total labor cost],labor_costs[year],data_tracking[[#This Row],[year]],labor_costs[week],data_tracking[[#This Row],[week]]))/data_tracking[[#This Row],[Units Completed (Total)]],"") -> 51.68889983 | I15: =IF(SUM(data_tracking[[#This Row],[111-FILSN1 SAH]],data_tracking[[#This Row],[112-FILSN2 SAH]],data_tracking[[#This Row],[113-FILSN3 SAH]])=0,"",SUM(data_tracking[[#This Row],[111-FILSN1 SAH]],data_tracking[[#This Row],[112-FILSN2 SAH]],data_tracking[[#This Row],[113-FILSN3 SAH]])) -> 4078.988108 | J15: =IF(SUM(data_tracking[[#This Row],[111-FILSN1 Units]],data_tracking[[#This Row],[112-FILSN2 Units]],data_tracking[[#This Row],[113-FILSN3 Units]])=0,"",SUM(data_tracking[[#This Row],[111-FILSN1 Units]],data_tracking[[#This Row],[112-FILSN2 Units]],data_tracking[[#This Row],[113-FILSN3 Units]])) -> 4213 | K15: =IF(SUMIFS('2015 sah unit data'!B:B,'2015 sah unit data'!L:L,data_tracking[[#This Row],[year]],'2015 sah unit data'!K:K,data_tracking[[#This Row],[month]],'2015 sah unit data'!J:J,data_tracking[[#This Row],[week]])=0,"",SUMIFS('2015 sah unit data'!B:B,'2015 sah unit data'!L:L,data_tracking[[#This Row],[year]],'2015 sah unit data'!K:K,data_tracking[[#This Row],[month]],'2015 sah unit data'!J:J,data_tracking[[#This Row],[week]])) -> 2446.198278 | L15: =IF(SUMIFS('2015 sah unit data'!C:C,'2015 sah unit data'!L:L,data_tracking[[#This Row],[year]],'2015 sah unit data'!K:K,data_tracking[[#This Row],[month]],'2015 sah unit data'!J:J,data_tracking[[#This Row],[week]])=0,"",SUMIFS('2015 sah unit data'!C:C,'2015 sah unit data'!L:L,data_tracking[[#This Row],[year]],'2015 sah unit data'!K:K,data_tracking[[#This Row],[month]],'2015 sah unit data'!J:J,data_tracking[[#This Row],[week]])) -> 1264.789831 | M15: =IF(SUMIFS('2015 sah unit data'!D:D,'2015 sah unit data'!L:L,data_tracking[[#This Row],[year]],'2015 sah unit data'!K:K,data_tracking[[#This Row],[month]],'2015 sah unit data'!J:J,data_tracking[[#This Row],[week]])=0,"",SUMIFS('2015 sah unit data'!D:D,'2015 sah unit data'!L:L,data_tracking[[#This Row],[year]],'2015 sah unit data'!K:K,data_tracking[[#This Row],[month]],'2015 sah unit data'!J:J,data_tracking[[#This Row],[week]])) -> 368 | N15: =IF(SUMIFS('2015 sah unit data'!E:E,'2015 sah unit data'!L:L,data_tracking[[#This Row],[year]],'2015 sah unit data'!K:K,data_tracking[[#This Row],[month]],'2015 sah unit data'!J:J,data_tracking[[#This Row],[week]])=0,"",SUMIFS('2015 sah unit data'!E:E,'2015 sah unit data'!L:L,data_tracking[[#This Row],[year]],'2015 sah unit data'!K:K,data_tracking[[#This Row],[month]],'2015 sah unit data'!J:J,data_tracking[[#This Row],[week]])) -> 2561 | O15: =IF(SUMIFS('2015 sah unit data'!F:F,'2015 sah unit data'!L:L,data_tracking[[#This Row],[year]],'2015 sah unit data'!K:K,data_tracking[[#This Row],[month]],'2015 sah unit data'!J:J,data_tracking[[#This Row],[week]])=0,"",SUMIFS('2015 sah unit data'!F:F,'2015 sah unit data'!L:L,data_tracking[[#This Row],[year]],'2015 sah unit data'!K:K,data_tracking[[#This Row],[month]],'2015 sah unit data'!J:J,data_tracking[[#This Row],[week]])) -> 1284 | P15: =IF(SUMIFS('2015 sah unit data'!G:G,'2015 sah unit data'!L:L,data_tracking[[#This Row],[year]],'2015 sah unit data'!K:K,data_tracking[[#This Row],[month]],'2015 sah unit data'!J:J,data_tracking[[#This Row],[week]])=0,"",SUMIFS('2015 sah unit data'!G:G,'2015 sah unit data'!L:L,data_tracking[[#This Row],[year]],'2015 sah unit data'!K:K,data_tracking[[#This Row],[month]],'2015 sah unit data'!J:J,data_tracking[[#This Row],[week]])) -> 368 | Q15: =SUMIFS('2015 sah unit data'!I:I,'2015 sah unit data'!L:L,data_tracking[[#This Row],[year]],'2015 sah unit data'!K:K,data_tracking[[#This Row],[month]],'2015 sah unit data'!J:J,data_tracking[[#This Row],[week]]) -> 13 | R15: =SUMIFS('overhead costs data'!E:E,'overhead costs data'!C:C,data_tracking[[#This Row],[year]],'overhead costs data'!B:B,data_tracking[[#This Row],[month]]) -> 46798.11
A16: 15 | B16: 4 | C16: 2015 | D16: 36.52 | E16: 20.04 | F16: =IFERROR((data_tracking[[#This Row],[overhead]]+SUMIFS('labor costs data'!H:H,'labor costs data'!D:D,data_tracking[[#This Row],[year]],'labor costs data'!A:A,data_tracking[[#This Row],[week]]))/data_tracking[[#This Row],[SAH Completed (Total)]],"") -> 45.05377382 | G16: =IFERROR(SUMIFS('labor costs data'!E:E,'labor costs data'!D:D,data_tracking[[#This Row],[year]],'labor costs data'!A:A,data_tracking[[#This Row],[week]])/data_tracking[[#This Row],[SAH Completed (Total)]],"") -> 18.77747147 | H16: =IFERROR((data_tracking[[#This Row],[overhead]]+SUMIFS(labor_costs[total labor cost],labor_costs[year],data_tracking[[#This Row],[year]],labor_costs[week],data_tracking[[#This Row],[week]]))/data_tracking[[#This Row],[Units Completed (Total)]],"") -> 40.20472917 | I16: =IF(SUM(data_tracking[[#This Row],[111-FILSN1 SAH]],data_tracking[[#This Row],[112-FILSN2 SAH]],data_tracking[[#This Row],[113-FILSN3 SAH]])=0,"",SUM(data_tracking[[#This Row],[111-FILSN1 SAH]],data_tracking[[#This Row],[112-FILSN2 SAH]],data_tracking[[#This Row],[113-FILSN3 SAH]])) -> 5248.932486 | J16: =IF(SUM(data_tracking[[#This Row],[111-FILSN1 Units]],data_tracking[[#This Row],[112-FILSN2 Units]],data_tracking[[#This Row],[113-FILSN3 Units]])=0,"",SUM(data_tracking[[#This Row],[111-FILSN1 Units]],data_tracking[[#This Row],[112-FILSN2 Units]],data_tracking[[#This Row],[113-FILSN3 Units]])) -> 5882 | K16: =IF(SUMIFS('2015 sah unit data'!B:B,'2015 sah unit data'!L:L,data_tracking[[#This Row],[year]],'2015 sah unit data'!K:K,data_tracking[[#This Row],[month]],'2015 sah unit data'!J:J,data_tracking[[#This Row],[week]])=0,"",SUMIFS('2015 sah unit data'!B:B,'2015 sah unit data'!L:L,data_tracking[[#This Row],[year]],'2015 sah unit data'!K:K,data_tracking[[#This Row],[month]],'2015 sah unit data'!J:J,data_tracking[[#This Row],[week]])) -> 3359.800608 | L16: =IF(SUMIFS('2015 sah unit data'!C:C,'2015 sah unit data'!L:L,data_tracking[[#This Row],[year]],'2015 sah unit data'!K:K,data_tracking[[#This Row],[month]],'2015 sah unit data'!J:J,data_tracking[[#This Row],[week]])=0,"",SUMIFS('2015 sah unit data'!C:C,'2015 sah unit data'!L:L,data_tracking[[#This Row],[year]],'2015 sah unit data'!K:K,data_tracking[[#This Row],[month]],'2015 sah unit data'!J:J,data_tracking[[#This Row],[week]])) -> 1538.131878 | M16: =IF(SUMIFS('2015 sah unit data'!D:D,'2015 sah unit data'!L:L,data_tracking[[#This Row],[year]],'2015 sah unit data'!K:K,data_tracking[[#This Row],[month]],'2015 sah unit data'!J:J,data_tracking[[#This Row],[week]])=0,"",SUMIFS('2015 sah unit data'!D:D,'2015 sah unit data'!L:L,data_tracking[[#This Row],[year]],'2015 sah unit data'!K:K,data_tracking[[#This Row],[month]],'2015 sah unit data'!J:J,data_tracking[[#This Row],[week]])) -> 351 | N16: =IF(SUMIFS('2015 sah unit data'!E:E,'2015 sah unit data'!L:L,data_tracking[[#This Row],[year]],'2015 sah unit data'!K:K,data_tracking[[#This Row],[month]],'2015 sah unit data'!J:J,data_tracking[[#This Row],[week]])=0,"",SUMIFS('2015 sah unit data'!E:E,'2015 sah unit data'!L:L,data_tracking[[#This Row],[year]],'2015 sah unit data'!K:K,data_tracking[[#This Row],[month]],'2015 sah unit data'!J:J,data_tracking[[#This Row],[week]])) -> 3529 | O16: =IF(SUMIFS('2015 sah unit data'!F:F,'2015 sah unit data'!L:L,data_tracking[[#This Row],[year]],'2015 sah unit data'!K:K,data_tracking[[#This Row],[month]],'2015 sah unit data'!J:J,data_tracking[[#This Row],[week]])=0,"",SUMIFS('2015 sah unit data'!F:F,'2015 sah unit data'!L:L,data_tracking[[#This Row],[year]],'2015 sah unit data'!K:K,data_tracking[[#This Row],[month]],'2015 sah unit data'!J:J,data_tracking[[#This Row],[week]])) -> 2002 | P16: =IF(SUMIFS('2015 sah unit data'!G:G,'2015 sah unit data'!L:L,data_tracking[[#This Row],[year]],'2015 sah unit data'!K:K,data_tracking[[#This Row],[month]],'2015 sah unit data'!J:J,data_tracking[[#This Row],[week]])=0,"",SUMIFS('2015 sah unit data'!G:G,'2015 sah unit data'!L:L,data_tracking[[#This Row],[year]],'2015 sah unit data'!K:K,data_tracking[[#This Row],[month]],'2015 sah unit data'!J:J,data_tracking[[#This Row],[week]])) -> 351 | Q16: =SUMIFS('2015 sah unit data'!I:I,'2015 sah unit data'!L:L,data_tracking[[#This Row],[year]],'2015 sah unit data'!K:K,data_tracking[[#This Row],[month]],'2015 sah unit data'!J:J,data_tracking[[#This Row],[week]]) -> 13 | R16: =SUMIFS('overhead costs data'!E:E,'overhead costs data'!C:C,data_tracking[[#This Row],[year]],'overhead costs data'!B:B,data_tracking[[#This Row],[month]]) -> 66309.3825
A17: 16 | B17: 4 | C17: 2015 | D17: 36.52 | E17: 20.04 | F17: =IFERROR((data_tracking[[#This Row],[overhead]]+SUMIFS('labor costs data'!H:H,'labor costs data'!D:D,data_tracking[[#This Row],[year]],'labor costs data'!A:A,data_tracking[[#This Row],[week]]))/data_tracking[[#This Row],[SAH Completed (Total)]],"") -> 45.05377382 | G17: =IFERROR(SUMIFS('labor costs data'!E:E,'labor costs data'!D:D,data_tracking[[#This Row],[year]],'labor costs data'!A:A,data_tracking[[#This Row],[week]])/data_tracking[[#This Row],[SAH Completed (Total)]],"") -> 18.77747147 | H17: =IFERROR((data_tracking[[#This Row],[overhead]]+SUMIFS(labor_costs[total labor cost],labor_costs[year],data_tracking[[#This Row],[year]],labor_costs[week],data_tracking[[#This Row],[week]]))/data_tracking[[#This Row],[Units Completed (Total)]],"") -> 40.20472917 | I17: =IF(SUM(data_tracking[[#This Row],[111-FILSN1 SAH]],data_tracking[[#This Row],[112-FILSN2 SAH]],data_tracking[[#This Row],[113-FILSN3 SAH]])=0,"",SUM(data_tracking[[#This Row],[111-FILSN1 SAH]],data_tracking[[#This Row],[112-FILSN2 SAH]],data_tracking[[#This Row],[113-FILSN3 SAH]])) -> 5248.932486 | J17: =IF(SUM(data_tracking[[#This Row],[111-FILSN1 Units]],data_tracking[[#This Row],[112-FILSN2 Units]],data_tracking[[#This Row],[113-FILSN3 Units]])=0,"",SUM(data_tracking[[#This Row],[111-FILSN1 Units]],data_tracking[[#This Row],[112-FILSN2 Units]],data_tracking[[#This Row],[113-FILSN3 Units]])) -> 5882 | K17: =IF(SUMIFS('2015 sah unit data'!B:B,'2015 sah unit data'!L:L,data_tracking[[#This Row],[year]],'2015 sah unit data'!K:K,data_tracking[[#This Row],[month]],'2015 sah unit data'!J:J,data_tracking[[#This Row],[week]])=0,"",SUMIFS('2015 sah unit data'!B:B,'2015 sah unit data'!L:L,data_tracking[[#This Row],[year]],'2015 sah unit data'!K:K,data_tracking[[#This Row],[month]],'2015 sah unit data'!J:J,data_tracking[[#This Row],[week]])) -> 3359.800608 | L17: =IF(SUMIFS('2015 sah unit data'!C:C,'2015 sah unit data'!L:L,data_tracking[[#This Row],[year]],'2015 sah unit data'!K:K,data_tracking[[#This Row],[month]],'2015 sah unit data'!J:J,data_tracking[[#This Row],[week]])=0,"",SUMIFS('2015 sah unit data'!C:C,'2015 sah unit data'!L:L,data_tracking[[#This Row],[year]],'2015 sah unit data'!K:K,data_tracking[[#This Row],[month]],'2015 sah unit data'!J:J,data_tracking[[#This Row],[week]])) -> 1538.131878 | M17: =IF(SUMIFS('2015 sah unit data'!D:D,'2015 sah unit data'!L:L,data_tracking[[#This Row],[year]],'2015 sah unit data'!K:K,data_tracking[[#This Row],[month]],'2015 sah unit data'!J:J,data_tracking[[#This Row],[week]])=0,"",SUMIFS('2015 sah unit data'!D:D,'2015 sah unit data'!L:L,data_tracking[[#This Row],[year]],'2015 sah unit data'!K:K,data_tracking[[#This Row],[month]],'2015 sah unit data'!J:J,data_tracking[[#This Row],[week]])) -> 351 | N17: =IF(SUMIFS('2015 sah unit data'!E:E,'2015 sah unit data'!L:L,data_tracking[[#This Row],[year]],'2015 sah unit data'!K:K,data_tracking[[#This Row],[month]],'2015 sah unit data'!J:J,data_tracking[[#This Row],[week]])=0,"",SUMIFS('2015 sah unit data'!E:E,'2015 sah unit data'!L:L,data_tracking[[#This Row],[year]],'2015 sah unit data'!K:K,data_tracking[[#This Row],[month]],'2015 sah unit data'!J:J,data_tracking[[#This Row],[week]])) -> 3529 | O17: =IF(SUMIFS('2015 sah unit data'!F:F,'2015 sah unit data'!L:L,data_tracking[[#This Row],[year]],'2015 sah unit data'!K:K,data_tracking[[#This Row],[month]],'2015 sah unit data'!J:J,data_tracking[[#This Row],[week]])=0,"",SUMIFS('2015 sah unit data'!F:F,'2015 sah unit data'!L:L,data_tracking[[#This Row],[year]],'2015 sah unit data'!K:K,data_tracking[[#This Row],[month]],'2015 sah unit data'!J:J,data_tracking[[#This Row],[week]])) -> 2002 | P17: =IF(SUMIFS('2015 sah unit data'!G:G,'2015 sah unit data'!L:L,data_tracking[[#This Row],[year]],'2015 sah unit data'!K:K,data_tracking[[#This Row],[month]],'2015 sah unit data'!J:J,data_tracking[[#This Row],[week]])=0,"",SUMIFS('2015 sah unit data'!G:G,'2015 sah unit data'!L:L,data_tracking[[#This Row],[year]],'2015 sah unit data'!K:K,data_tracking[[#This Row],[month]],'2015 sah unit data'!J:J,data_tracking[[#This Row],[week]])) -> 351 | Q17: =SUMIFS('2015 sah unit data'!I:I,'2015 sah unit data'!L:L,data_tracking[[#This Row],[year]],'2015 sah unit data'!K:K,data_tracking[[#This Row],[month]],'2015 sah unit data'!J:J,data_tracking[[#This Row],[week]]) -> 13 | R17: =SUMIFS('overhead costs data'!E:E,'overhead costs data'!C:C,data_tracking[[#This Row],[year]],'overhead costs data'!B:B,data_tracking[[#This Row],[month]]) -> 66309.3825
A18: 17 | B18: 4 | C18: 2015 | D18: 36.52 | E18: 20.04 | F18: =IFERROR((data_tracking[[#This Row],[overhead]]+SUMIFS('labor costs data'!H:H,'labor costs data'!D:D,data_tracking[[#This Row],[year]],'labor costs data'!A:A,data_tracking[[#This Row],[week]]))/data_tracking[[#This Row],[SAH Completed (Total)]],"") -> 45.22332772 | G18: =IFERROR(SUMIFS('labor costs data'!E:E,'labor costs data'!D:D,data_tracking[[#This Row],[year]],'labor costs data'!A:A,data_tracking[[#This Row],[week]])/data_tracking[[#This Row],[SAH Completed (Total)]],"") -> 18.9831733 | H18: =IFERROR((data_tracking[[#This Row],[overhead]]+SUMIFS(labor_costs[total labor cost],labor_costs[year],data_tracking[[#This Row],[year]],labor_costs[week],data_tracking[[#This Row],[week]]))/data_tracking[[#This Row],[Units Completed (Total)]],"") -> 40.35603434 | I18: =IF(SUM(data_tracking[[#This Row],[111-FILSN1 SAH]],data_tracking[[#This Row],[112-FILSN2 SAH]],data_tracking[[#This Row],[113-FILSN3 SAH]])=0,"",SUM(data_tracking[[#This Row],[111-FILSN1 SAH]],data_tracking[[#This Row],[112-FILSN2 SAH]],data_tracking[[#This Row],[113-FILSN3 SAH]])) -> 5248.932486 | J18: =IF(SUM(data_tracking[[#This Row],[111-FILSN1 Units]],data_tracking[[#This Row],[112-FILSN2 Units]],data_tracking[[#This Row],[113-FILSN3 Units]])=0,"",SUM(data_tracking[[#This Row],[111-FILSN1 Units]],data_tracking[[#This Row],[112-FILSN2 Units]],data_tracking[[#This Row],[113-FILSN3 Units]])) -> 5882 | K18: =IF(SUMIFS('2015 sah unit data'!B:B,'2015 sah unit data'!L:L,data_tracking[[#This Row],[year]],'2015 sah unit data'!K:K,data_tracking[[#This Row],[month]],'2015 sah unit data'!J:J,data_tracking[[#This Row],[week]])=0,"",SUMIFS('2015 sah unit data'!B:B,'2015 sah unit data'!L:L,data_tracking[[#This Row],[year]],'2015 sah unit data'!K:K,data_tracking[[#This Row],[month]],'2015 sah unit data'!J:J,data_tracking[[#This Row],[week]])) -> 3359.800608 | L18: =IF(SUMIFS('2015 sah unit data'!C:C,'2015 sah unit data'!L:L,data_tracking[[#This Row],[year]],'2015 sah unit data'!K:K,data_tracking[[#This Row],[month]],'2015 sah unit data'!J:J,data_tracking[[#This Row],[week]])=0,"",SUMIFS('2015 sah unit data'!C:C,'2015 sah unit data'!L:L,data_tracking[[#This Row],[year]],'2015 sah unit data'!K:K,data_tracking[[#This Row],[month]],'2015 sah unit data'!J:J,data_tracking[[#This Row],[week]])) -> 1538.131878 | M18: =IF(SUMIFS('2015 sah unit data'!D:D,'2015 sah unit data'!L:L,data_tracking[[#This Row],[year]],'2015 sah unit data'!K:K,data_tracking[[#This Row],[month]],'2015 sah unit data'!J:J,data_tracking[[#This Row],[week]])=0,"",SUMIFS('2015 sah unit data'!D:D,'2015 sah unit data'!L:L,data_tracking[[#This Row],[year]],'2015 sah unit data'!K:K,data_tracking[[#This Row],[month]],'2015 sah unit data'!J:J,data_tracking[[#This Row],[week]])) -> 351 | N18: =IF(SUMIFS('2015 sah unit data'!E:E,'2015 sah unit data'!L:L,data_tracking[[#This Row],[year]],'2015 sah unit data'!K:K,data_tracking[[#This Row],[month]],'2015 sah unit data'!J:J,data_tracking[[#This Row],[week]])=0,"",SUMIFS('2015 sah unit data'!E:E,'2015 sah unit data'!L:L,data_tracking[[#This Row],[year]],'2015 sah unit data'!K:K,data_tracking[[#This Row],[month]],'2015 sah unit data'!J:J,data_tracking[[#This Row],[week]])) -> 3529 | O18: =IF(SUMIFS('2015 sah unit data'!F:F,'2015 sah unit data'!L:L,data_tracking[[#This Row],[year]],'2015 sah unit data'!K:K,data_tracking[[#This Row],[month]],'2015 sah unit data'!J:J,data_tracking[[#This Row],[week]])=0,"",SUMIFS('2015 sah unit data'!F:F,'2015 sah unit data'!L:L,data_tracking[[#This Row],[year]],'2015 sah unit data'!K:K,data_tracking[[#This Row],[month]],'2015 sah unit data'!J:J,data_tracking[[#This Row],[week]])) -> 2002 | P18: =IF(SUMIFS('2015 sah unit data'!G:G,'2015 sah unit data'!L:L,data_tracking[[#This Row],[year]],'2015 sah unit data'!K:K,data_tracking[[#This Row],[month]],'2015 sah unit data'!J:J,data_tracking[[#This Row],[week]])=0,"",SUMIFS('2015 sah unit data'!G:G,'2015 sah unit data'!L:L,data_tracking[[#This Row],[year]],'2015 sah unit data'!K:K,data_tracking[[#This Row],[month]],'2015 sah unit data'!J:J,data_tracking[[#This Row],[week]])) -> 351 | Q18: =SUMIFS('2015 sah unit data'!I:I,'2015 sah unit data'!L:L,data_tracking[[#This Row],[year]],'2015 sah unit data'!K:K,data_tracking[[#This Row],[month]],'2015 sah unit data'!J:J,data_tracking[[#This Row],[week]]) -> 13 | R18: =SUMIFS('overhead costs data'!E:E,'overhead costs data'!C:C,data_tracking[[#This Row],[year]],'overhead costs data'!B:B,data_tracking[[#This Row],[month]]) -> 66309.3825
A19: 18 | B19: 4 | C19: 2015 | D19: 36.52 | E19: 20.04 | F19: =IFERROR((data_tracking[[#This Row],[overhead]]+SUMIFS('labor costs data'!H:H,'labor costs data'!D:D,data_tracking[[#This Row],[year]],'labor costs data'!A:A,data_tracking[[#This Row],[week]]))/data_tracking[[#This Row],[SAH Completed (Total)]],"") -> 45.22332772 | G19: =IFERROR(SUMIFS('labor costs data'!E:E,'labor costs data'!D:D,data_tracking[[#This Row],[year]],'labor costs data'!A:A,data_tracking[[#This Row],[week]])/data_tracking[[#This Row],[SAH Completed (Total)]],"") -> 18.9831733 | H19: =IFERROR((data_tracking[[#This Row],[overhead]]+SUMIFS(labor_costs[total labor cost],labor_costs[year],data_tracking[[#This Row],[year]],labor_costs[week],data_tracking[[#This Row],[week]]))/data_tracking[[#This Row],[Units Completed (Total)]],"") -> 40.35603434 | I19: =IF(SUM(data_tracking[[#This Row],[111-FILSN1 SAH]],data_tracking[[#This Row],[112-FILSN2 SAH]],data_tracking[[#This Row],[113-FILSN3 SAH]])=0,"",SUM(data_tracking[[#This Row],[111-FILSN1 SAH]],data_tracking[[#This Row],[112-FILSN2 SAH]],data_tracking[[#This Row],[113-FILSN3 SAH]])) -> 5248.932486 | J19: =IF(SUM(data_tracking[[#This Row],[111-FILSN1 Units]],data_tracking[[#This Row],[112-FILSN2 Units]],data_tracking[[#This Row],[113-FILSN3 Units]])=0,"",SUM(data_tracking[[#This Row],[111-FILSN1 Units]],data_tracking[[#This Row],[112-FILSN2 Units]],data_tracking[[#This Row],[113-FILSN3 Units]])) -> 5882 | K19: =IF(SUMIFS('2015 sah unit data'!B:B,'2015 sah unit data'!L:L,data_tracking[[#This Row],[year]],'2015 sah unit data'!K:K,data_tracking[[#This Row],[month]],'2015 sah unit data'!J:J,data_tracking[[#This Row],[week]])=0,"",SUMIFS('2015 sah unit data'!B:B,'2015 sah unit data'!L:L,data_tracking[[#This Row],[year]],'2015 sah unit data'!K:K,data_tracking[[#This Row],[month]],'2015 sah unit data'!J:J,data_tracking[[#This Row],[week]])) -> 3359.800608 | L19: =IF(SUMIFS('2015 sah unit data'!C:C,'2015 sah unit data'!L:L,data_tracking[[#This Row],[year]],'2015 sah unit data'!K:K,data_tracking[[#This Row],[month]],'2015 sah unit data'!J:J,data_tracking[[#This Row],[week]])=0,"",SUMIFS('2015 sah unit data'!C:C,'2015 sah unit data'!L:L,data_tracking[[#This Row],[year]],'2015 sah unit data'!K:K,data_tracking[[#This Row],[month]],'2015 sah unit data'!J:J,data_tracking[[#This Row],[week]])) -> 1538.131878 | M19: =IF(SUMIFS('2015 sah unit data'!D:D,'2015 sah unit data'!L:L,data_tracking[[#This Row],[year]],'2015 sah unit data'!K:K,data_tracking[[#This Row],[month]],'2015 sah unit data'!J:J,data_tracking[[#This Row],[week]])=0,"",SUMIFS('2015 sah unit data'!D:D,'2015 sah unit data'!L:L,data_tracking[[#This Row],[year]],'2015 sah unit data'!K:K,data_tracking[[#This Row],[month]],'2015 sah unit data'!J:J,data_tracking[[#This Row],[week]])) -> 351 | N19: =IF(SUMIFS('2015 sah unit data'!E:E,'2015 sah unit data'!L:L,data_tracking[[#This Row],[year]],'2015 sah unit data'!K:K,data_tracking[[#This Row],[month]],'2015 sah unit data'!J:J,data_tracking[[#This Row],[week]])=0,"",SUMIFS('2015 sah unit data'!E:E,'2015 sah unit data'!L:L,data_tracking[[#This Row],[year]],'2015 sah unit data'!K:K,data_tracking[[#This Row],[month]],'2015 sah unit data'!J:J,data_tracking[[#This Row],[week]])) -> 3529 | O19: =IF(SUMIFS('2015 sah unit data'!F:F,'2015 sah unit data'!L:L,data_tracking[[#This Row],[year]],'2015 sah unit data'!K:K,data_tracking[[#This Row],[month]],'2015 sah unit data'!J:J,data_tracking[[#This Row],[week]])=0,"",SUMIFS('2015 sah unit data'!F:F,'2015 sah unit data'!L:L,data_tracking[[#This Row],[year]],'2015 sah unit data'!K:K,data_tracking[[#This Row],[month]],'2015 sah unit data'!J:J,data_tracking[[#This Row],[week]])) -> 2002 | P19: =IF(SUMIFS('2015 sah unit data'!G:G,'2015 sah unit data'!L:L,data_tracking[[#This Row],[year]],'2015 sah unit data'!K:K,data_tracking[[#This Row],[month]],'2015 sah unit data'!J:J,data_tracking[[#This Row],[week]])=0,"",SUMIFS('2015 sah unit data'!G:G,'2015 sah unit data'!L:L,data_tracking[[#This Row],[year]],'2015 sah unit data'!K:K,data_tracking[[#This Row],[month]],'2015 sah unit data'!J:J,data_tracking[[#This Row],[week]])) -> 351 | Q19: =SUMIFS('2015 sah unit data'!I:I,'2015 sah unit data'!L:L,data_tracking[[#This Row],[year]],'2015 sah unit data'!K:K,data_tracking[[#This Row],[month]],'2015 sah unit data'!J:J,data_tracking[[#This Row],[week]]) -> 13 | R19: =SUMIFS('overhead costs data'!E:E,'overhead costs data'!C:C,data_tracking[[#This Row],[year]],'overhead costs data'!B:B,data_tracking[[#This Row],[month]]) -> 66309.3825
A20: 19 | B20: 5 | C20: 2015 | D20: 36.52 | E20: 20.04 | F20: =IFERROR((data_tracking[[#This Row],[overhead]]+SUMIFS('labor costs data'!H:H,'labor costs data'!D:D,data_tracking[[#This Row],[year]],'labor costs data'!A:A,data_tracking[[#This Row],[week]]))/data_tracking[[#This Row],[SAH Completed (Total)]],"") -> 57.41039282 | G20: =IFERROR(SUMIFS('labor costs data'!E:E,'labor costs data'!D:D,data_tracking[[#This Row],[year]],'labor costs data'!A:A,data_tracking[[#This Row],[week]])/data_tracking[[#This Row],[SAH Completed (Total)]],"") -> 23.94268698 | H20: =IFERROR((data_tracking[[#This Row],[overhead]]+SUMIFS(labor_costs[total labor cost],labor_costs[year],data_tracking[[#This Row],[year]],labor_costs[week],data_tracking[[#This Row],[week]]))/data_tracking[[#This Row],[Units Completed (Total)]],"") -> 53.41095641 | I20: =IF(SUM(data_tracking[[#This Row],[111-FILSN1 SAH]],data_tracking[[#This Row],[112-FILSN2 SAH]],data_tracking[[#This Row],[113-FILSN3 SAH]])=0,"",SUM(data_tracking[[#This Row],[111-FILSN1 SAH]],data_tracking[[#This Row],[112-FILSN2 SAH]],data_tracking[[#This Row],[113-FILSN3 SAH]])) -> 3926.948344 | J20: =IF(SUM(data_tracking[[#This Row],[111-FILSN1 Units]],data_tracking[[#This Row],[112-FILSN2 Units]],data_tracking[[#This Row],[113-FILSN3 Units]])=0,"",SUM(data_tracking[[#This Row],[111-FILSN1 Units]],data_tracking[[#This Row],[112-FILSN2 Units]],data_tracking[[#This Row],[113-FILSN3 Units]])) -> 4221 | K20: =IF(SUMIFS('2015 sah unit data'!B:B,'2015 sah unit data'!L:L,data_tracking[[#This Row],[year]],'2015 sah unit data'!K:K,data_tracking[[#This Row],[month]],'2015 sah unit data'!J:J,data_tracking[[#This Row],[week]])=0,"",SUMIFS('2015 sah unit data'!B:B,'2015 sah unit data'!L:L,data_tracking[[#This Row],[year]],'2015 sah unit data'!K:K,data_tracking[[#This Row],[month]],'2015 sah unit data'!J:J,data_tracking[[#This Row],[week]])) -> 2118.016069 | L20: =IF(SUMIFS('2015 sah unit data'!C:C,'2015 sah unit data'!L:L,data_tracking[[#This Row],[year]],'2015 sah unit data'!K:K,data_tracking[[#This Row],[month]],'2015 sah unit data'!J:J,data_tracking[[#This Row],[week]])=0,"",SUMIFS('2015 sah unit data'!C:C,'2015 sah unit data'!L:L,data_tracking[[#This Row],[year]],'2015 sah unit data'!K:K,data_tracking[[#This Row],[month]],'2015 sah unit data'!J:J,data_tracking[[#This Row],[week]])) -> 1546.932275 | M20: =IF(SUMIFS('2015 sah unit data'!D:D,'2015 sah unit data'!L:L,data_tracking[[#This Row],[year]],'2015 sah unit data'!K:K,data_tracking[[#This Row],[month]],'2015 sah unit data'!J:J,data_tracking[[#This Row],[week]])=0,"",SUMIFS('2015 sah unit data'!D:D,'2015 sah unit data'!L:L,data_tracking[[#This Row],[year]],'2015 sah unit data'!K:K,data_tracking[[#This Row],[month]],'2015 sah unit data'!J:J,data_tracking[[#This Row],[week]])) -> 262 | N20: =IF(SUMIFS('2015 sah unit data'!E:E,'2015 sah unit data'!L:L,data_tracking[[#This Row],[year]],'2015 sah unit data'!K:K,data_tracking[[#This Row],[month]],'2015 sah unit data'!J:J,data_tracking[[#This Row],[week]])=0,"",SUMIFS('2015 sah unit data'!E:E,'2015 sah unit data'!L:L,data_tracking[[#This Row],[year]],'2015 sah unit data'!K:K,data_tracking[[#This Row],[month]],'2015 sah unit data'!J:J,data_tracking[[#This Row],[week]])) -> 1853 | O20: =IF(SUMIFS('2015 sah unit data'!F:F,'2015 sah unit data'!L:L,data_tracking[[#This Row],[year]],'2015 sah unit data'!K:K,data_tracking[[#This Row],[month]],'2015 sah unit data'!J:J,data_tracking[[#This Row],[week]])=0,"",SUMIFS('2015 sah unit data'!F:F,'2015 sah unit data'!L:L,data_tracking[[#This Row],[year]],'2015 sah unit data'!K:K,data_tracking[[#This Row],[month]],'2015 sah unit data'!J:J,data_tracking[[#This Row],[week]])) -> 2106 | P20: =IF(SUMIFS('2015 sah unit data'!G:G,'2015 sah unit data'!L:L,data_tracking[[#This Row],[year]],'2015 sah unit data'!K:K,data_tracking[[#This Row],[month]],'2015 sah unit data'!J:J,data_tracking[[#This Row],[week]])=0,"",SUMIFS('2015 sah unit data'!G:G,'2015 sah unit data'!L:L,data_tracking[[#This Row],[year]],'2015 sah unit data'!K:K,data_tracking[[#This Row],[month]],'2015 sah unit data'!J:J,data_tracking[[#This Row],[week]])) -> 262 | Q20: =SUMIFS('2015 sah unit data'!I:I,'2015 sah unit data'!L:L,data_tracking[[#This Row],[year]],'2015 sah unit data'!K:K,data_tracking[[#This Row],[month]],'2015 sah unit data'!J:J,data_tracking[[#This Row],[week]]) -> 13 | R20: =SUMIFS('overhead costs data'!E:E,'overhead costs data'!C:C,data_tracking[[#This Row],[year]],'overhead costs data'!B:B,data_tracking[[#This Row],[month]]) -> 62788.8925
A21: 20 | B21: 5 | C21: 2015 | D21: 36.52 | E21: 20.04 | F21: =IFERROR((data_tracking[[#This Row],[overhead]]+SUMIFS('labor costs data'!H:H,'labor costs data'!D:D,data_tracking[[#This Row],[year]],'labor costs data'!A:A,data_tracking[[#This Row],[week]]))/data_tracking[[#This Row],[SAH Completed (Total)]],"") -> 57.41039282 | G21: =IFERROR(SUMIFS('labor costs data'!E:E,'labor costs data'!D:D,data_tracking[[#This Row],[year]],'labor costs data'!A:A,data_tracking[[#This Row],[week]])/data_tracking[[#This Row],[SAH Completed (Total)]],"") -> 23.94268698 | H21: =IFERROR((data_tracking[[#This Row],[overhead]]+SUMIFS(labor_costs[total labor cost],labor_costs[year],data_tracking[[#This Row],[year]],labor_costs[week],data_tracking[[#This Row],[week]]))/data_tracking[[#This Row],[Units Completed (Total)]],"") -> 53.41095641 | I21: =IF(SUM(data_tracking[[#This Row],[111-FILSN1 SAH]],data_tracking[[#This Row],[112-FILSN2 SAH]],data_tracking[[#This Row],[113-FILSN3 SAH]])=0,"",SUM(data_tracking[[#This Row],[111-FILSN1 SAH]],data_tracking[[#This Row],[112-FILSN2 SAH]],data_tracking[[#This Row],[113-FILSN3 SAH]])) -> 3926.948344 | J21: =IF(SUM(data_tracking[[#This Row],[111-FILSN1 Units]],data_tracking[[#This Row],[112-FILSN2 Units]],data_tracking[[#This Row],[113-FILSN3 Units]])=0,"",SUM(data_tracking[[#This Row],[111-FILSN1 Units]],data_tracking[[#This Row],[112-FILSN2 Units]],data_tracking[[#This Row],[113-FILSN3 Units]])) -> 4221 | K21: =IF(SUMIFS('2015 sah unit data'!B:B,'2015 sah unit data'!L:L,data_tracking[[#This Row],[year]],'2015 sah unit data'!K:K,data_tracking[[#This Row],[month]],'2015 sah unit data'!J:J,data_tracking[[#This Row],[week]])=0,"",SUMIFS('2015 sah unit data'!B:B,'2015 sah unit data'!L:L,data_tracking[[#This Row],[year]],'2015 sah unit data'!K:K,data_tracking[[#This Row],[month]],'2015 sah unit data'!J:J,data_tracking[[#This Row],[week]])) -> 2118.016069 | L21: =IF(SUMIFS('2015 sah unit data'!C:C,'2015 sah unit data'!L:L,data_tracking[[#This Row],[year]],'2015 sah unit data'!K:K,data_tracking[[#This Row],[month]],'2015 sah unit data'!J:J,data_tracking[[#This Row],[week]])=0,"",SUMIFS('2015 sah unit data'!C:C,'2015 sah unit data'!L:L,data_tracking[[#This Row],[year]],'2015 sah unit data'!K:K,data_tracking[[#This Row],[month]],'2015 sah unit data'!J:J,data_tracking[[#This Row],[week]])) -> 1546.932275 | M21: =IF(SUMIFS('2015 sah unit data'!D:D,'2015 sah unit data'!L:L,data_tracking[[#This Row],[year]],'2015 sah unit data'!K:K,data_tracking[[#This Row],[month]],'2015 sah unit data'!J:J,data_tracking[[#This Row],[week]])=0,"",SUMIFS('2015 sah unit data'!D:D,'2015 sah unit data'!L:L,data_tracking[[#This Row],[year]],'2015 sah unit data'!K:K,data_tracking[[#This Row],[month]],'2015 sah unit data'!J:J,data_tracking[[#This Row],[week]])) -> 262 | N21: =IF(SUMIFS('2015 sah unit data'!E:E,'2015 sah unit data'!L:L,data_tracking[[#This Row],[year]],'2015 sah unit data'!K:K,data_tracking[[#This Row],[month]],'2015 sah unit data'!J:J,data_tracking[[#This Row],[week]])=0,"",SUMIFS('2015 sah unit data'!E:E,'2015 sah unit data'!L:L,data_tracking[[#This Row],[year]],'2015 sah unit data'!K:K,data_tracking[[#This Row],[month]],'2015 sah unit data'!J:J,data_tracking[[#This Row],[week]])) -> 1853 | O21: =IF(SUMIFS('2015 sah unit data'!F:F,'2015 sah unit data'!L:L,data_tracking[[#This Row],[year]],'2015 sah unit data'!K:K,data_tracking[[#This Row],[month]],'2015 sah unit data'!J:J,data_tracking[[#This Row],[week]])=0,"",SUMIFS('2015 sah unit data'!F:F,'2015 sah unit data'!L:L,data_tracking[[#This Row],[year]],'2015 sah unit data'!K:K,data_tracking[[#This Row],[month]],'2015 sah unit data'!J:J,data_tracking[[#This Row],[week]])) -> 2106 | P21: =IF(SUMIFS('2015 sah unit data'!G:G,'2015 sah unit data'!L:L,data_tracking[[#This Row],[year]],'2015 sah unit data'!K:K,data_tracking[[#This Row],[month]],'2015 sah unit data'!J:J,data_tracking[[#This Row],[week]])=0,"",SUMIFS('2015 sah unit data'!G:G,'2015 sah unit data'!L:L,data_tracking[[#This Row],[year]],'2015 sah unit data'!K:K,data_tracking[[#This Row],[month]],'2015 sah unit data'!J:J,data_tracking[[#This Row],[week]])) -> 262 | Q21: =SUMIFS('2015 sah unit data'!I:I,'2015 sah unit data'!L:L,data_tracking[[#This Row],[year]],'2015 sah unit data'!K:K,data_tracking[[#This Row],[month]],'2015 sah unit data'!J:J,data_tracking[[#This Row],[week]]) -> 13 | R21: =SUMIFS('overhead costs data'!E:E,'overhead costs data'!C:C,data_tracking[[#This Row],[year]],'overhead costs data'!B:B,data_tracking[[#This Row],[month]]) -> 62788.8925
A22: 21 | B22: 5 | C22: 2015 | D22: 36.52 | E22: 20.04 | F22: =IFERROR((data_tracking[[#This Row],[overhead]]+SUMIFS('labor costs data'!H:H,'labor costs data'!D:D,data_tracking[[#This Row],[year]],'labor costs data'!A:A,data_tracking[[#This Row],[week]]))/data_tracking[[#This Row],[SAH Completed (Total)]],"") -> 56.32588556 | G22: =IFERROR(SUMIFS('labor costs data'!E:E,'labor costs data'!D:D,data_tracking[[#This Row],[year]],'labor costs data'!A:A,data_tracking[[#This Row],[week]])/data_tracking[[#This Row],[SAH Completed (Total)]],"") -> 22.8964802 | H22: =IFERROR((data_tracking[[#This Row],[overhead]]+SUMIFS(labor_costs[total labor cost],labor_costs[year],data_tracking[[#This Row],[year]],labor_costs[week],data_tracking[[#This Row],[week]]))/data_tracking[[#This Row],[Units Completed (Total)]],"") -> 52.40200024 | I22: =IF(SUM(data_tracking[[#This Row],[111-FILSN1 SAH]],data_tracking[[#This Row],[112-FILSN2 SAH]],data_tracking[[#This Row],[113-FILSN3 SAH]])=0,"",SUM(data_tracking[[#This Row],[111-FILSN1 SAH]],data_tracking[[#This Row],[112-FILSN2 SAH]],data_tracking[[#This Row],[113-FILSN3 SAH]])) -> 3926.948344 | J22: =IF(SUM(data_tracking[[#This Row],[111-FILSN1 Units]],data_tracking[[#This Row],[112-FILSN2 Units]],data_tracking[[#This Row],[113-FILSN3 Units]])=0,"",SUM(data_tracking[[#This Row],[111-FILSN1 Units]],data_tracking[[#This Row],[112-FILSN2 Units]],data_tracking[[#This Row],[113-FILSN3 Units]])) -> 4221 | K22: =IF(SUMIFS('2015 sah unit data'!B:B,'2015 sah unit data'!L:L,data_tracking[[#This Row],[year]],'2015 sah unit data'!K:K,data_tracking[[#This Row],[month]],'2015 sah unit data'!J:J,data_tracking[[#This Row],[week]])=0,"",SUMIFS('2015 sah unit data'!B:B,'2015 sah unit data'!L:L,data_tracking[[#This Row],[year]],'2015 sah unit data'!K:K,data_tracking[[#This Row],[month]],'2015 sah unit data'!J:J,data_tracking[[#This Row],[week]])) -> 2118.016069 | L22: =IF(SUMIFS('2015 sah unit data'!C:C,'2015 sah unit data'!L:L,data_tracking[[#This Row],[year]],'2015 sah unit data'!K:K,data_tracking[[#This Row],[month]],'2015 sah unit data'!J:J,data_tracking[[#This Row],[week]])=0,"",SUMIFS('2015 sah unit data'!C:C,'2015 sah unit data'!L:L,data_tracking[[#This Row],[year]],'2015 sah unit data'!K:K,data_tracking[[#This Row],[month]],'2015 sah unit data'!J:J,data_tracking[[#This Row],[week]])) -> 1546.932275 | M22: =IF(SUMIFS('2015 sah unit data'!D:D,'2015 sah unit data'!L:L,data_tracking[[#This Row],[year]],'2015 sah unit data'!K:K,data_tracking[[#This Row],[month]],'2015 sah unit data'!J:J,data_tracking[[#This Row],[week]])=0,"",SUMIFS('2015 sah unit data'!D:D,'2015 sah unit data'!L:L,data_tracking[[#This Row],[year]],'2015 sah unit data'!K:K,data_tracking[[#This Row],[month]],'2015 sah unit data'!J:J,data_tracking[[#This Row],[week]])) -> 262 | N22: =IF(SUMIFS('2015 sah unit data'!E:E,'2015 sah unit data'!L:L,data_tracking[[#This Row],[year]],'2015 sah unit data'!K:K,data_tracking[[#This Row],[month]],'2015 sah unit data'!J:J,data_tracking[[#This Row],[week]])=0,"",SUMIFS('2015 sah unit data'!E:E,'2015 sah unit data'!L:L,data_tracking[[#This Row],[year]],'2015 sah unit data'!K:K,data_tracking[[#This Row],[month]],'2015 sah unit data'!J:J,data_tracking[[#This Row],[week]])) -> 1853 | O22: =IF(SUMIFS('2015 sah unit data'!F:F,'2015 sah unit data'!L:L,data_tracking[[#This Row],[year]],'2015 sah unit data'!K:K,data_tracking[[#This Row],[month]],'2015 sah unit data'!J:J,data_tracking[[#This Row],[week]])=0,"",SUMIFS('2015 sah unit data'!F:F,'2015 sah unit data'!L:L,data_tracking[[#This Row],[year]],'2015 sah unit data'!K:K,data_tracking[[#This Row],[month]],'2015 sah unit data'!J:J,data_tracking[[#This Row],[week]])) -> 2106 | P22: =IF(SUMIFS('2015 sah unit data'!G:G,'2015 sah unit data'!L:L,data_tracking[[#This Row],[year]],'2015 sah unit data'!K:K,data_tracking[[#This Row],[month]],'2015 sah unit data'!J:J,data_tracking[[#This Row],[week]])=0,"",SUMIFS('2015 sah unit data'!G:G,'2015 sah unit data'!L:L,data_tracking[[#This Row],[year]],'2015 sah unit data'!K:K,data_tracking[[#This Row],[month]],'2015 sah unit data'!J:J,data_tracking[[#This Row],[week]])) -> 262 | Q22: =SUMIFS('2015 sah unit data'!I:I,'2015 sah unit data'!L:L,data_tracking[[#This Row],[year]],'2015 sah unit data'!K:K,data_tracking[[#This Row],[month]],'2015 sah unit data'!J:J,data_tracking[[#This Row],[week]]) -> 13 | R22: =SUMIFS('overhead costs data'!E:E,'overhead costs data'!C:C,data_tracking[[#This Row],[year]],'overhead costs data'!B:B,data_tracking[[#This Row],[month]]) -> 62788.8925
A23: 22 | B23: 5 | C23: 2015 | D23: 36.52 | E23: 20.04 | F23: =IFERROR((data_tracking[[#This Row],[overhead]]+SUMIFS('labor costs data'!H:H,'labor costs data'!D:D,data_tracking[[#This Row],[year]],'labor costs data'!A:A,data_tracking[[#This Row],[week]]))/data_tracking[[#This Row],[SAH Completed (Total)]],"") -> 56.32588556 | G23: =IFERROR(SUMIFS('labor costs data'!E:E,'labor costs data'!D:D,data_tracking[[#This Row],[year]],'labor costs data'!A:A,data_tracking[[#This Row],[week]])/data_tracking[[#This Row],[SAH Completed (Total)]],"") -> 22.8964802 | H23: =IFERROR((data_tracking[[#This Row],[overhead]]+SUMIFS(labor_costs[total labor cost],labor_costs[year],data_tracking[[#This Row],[year]],labor_costs[week],data_tracking[[#This Row],[week]]))/data_tracking[[#This Row],[Units Completed (Total)]],"") -> 52.40200024 | I23: =IF(SUM(data_tracking[[#This Row],[111-FILSN1 SAH]],data_tracking[[#This Row],[112-FILSN2 SAH]],data_tracking[[#This Row],[113-FILSN3 SAH]])=0,"",SUM(data_tracking[[#This Row],[111-FILSN1 SAH]],data_tracking[[#This Row],[112-FILSN2 SAH]],data_tracking[[#This Row],[113-FILSN3 SAH]])) -> 3926.948344 | J23: =IF(SUM(data_tracking[[#This Row],[111-FILSN1 Units]],data_tracking[[#This Row],[112-FILSN2 Units]],data_tracking[[#This Row],[113-FILSN3 Units]])=0,"",SUM(data_tracking[[#This Row],[111-FILSN1 Units]],data_tracking[[#This Row],[112-FILSN2 Units]],data_tracking[[#This Row],[113-FILSN3 Units]])) -> 4221 | K23: =IF(SUMIFS('2015 sah unit data'!B:B,'2015 sah unit data'!L:L,data_tracking[[#This Row],[year]],'2015 sah unit data'!K:K,data_tracking[[#This Row],[month]],'2015 sah unit data'!J:J,data_tracking[[#This Row],[week]])=0,"",SUMIFS('2015 sah unit data'!B:B,'2015 sah unit data'!L:L,data_tracking[[#This Row],[year]],'2015 sah unit data'!K:K,data_tracking[[#This Row],[month]],'2015 sah unit data'!J:J,data_tracking[[#This Row],[week]])) -> 2118.016069 | L23: =IF(SUMIFS('2015 sah unit data'!C:C,'2015 sah unit data'!L:L,data_tracking[[#This Row],[year]],'2015 sah unit data'!K:K,data_tracking[[#This Row],[month]],'2015 sah unit data'!J:J,data_tracking[[#This Row],[week]])=0,"",SUMIFS('2015 sah unit data'!C:C,'2015 sah unit data'!L:L,data_tracking[[#This Row],[year]],'2015 sah unit data'!K:K,data_tracking[[#This Row],[month]],'2015 sah unit data'!J:J,data_tracking[[#This Row],[week]])) -> 1546.932275 | M23: =IF(SUMIFS('2015 sah unit data'!D:D,'2015 sah unit data'!L:L,data_tracking[[#This Row],[year]],'2015 sah unit data'!K:K,data_tracking[[#This Row],[month]],'2015 sah unit data'!J:J,data_tracking[[#This Row],[week]])=0,"",SUMIFS('2015 sah unit data'!D:D,'2015 sah unit data'!L:L,data_tracking[[#This Row],[year]],'2015 sah unit data'!K:K,data_tracking[[#This Row],[month]],'2015 sah unit data'!J:J,data_tracking[[#This Row],[week]])) -> 262 | N23: =IF(SUMIFS('2015 sah unit data'!E:E,'2015 sah unit data'!L:L,data_tracking[[#This Row],[year]],'2015 sah unit data'!K:K,data_tracking[[#This Row],[month]],'2015 sah unit data'!J:J,data_tracking[[#This Row],[week]])=0,"",SUMIFS('2015 sah unit data'!E:E,'2015 sah unit data'!L:L,data_tracking[[#This Row],[year]],'2015 sah unit data'!K:K,data_tracking[[#This Row],[month]],'2015 sah unit data'!J:J,data_tracking[[#This Row],[week]])) -> 1853 | O23: =IF(SUMIFS('2015 sah unit data'!F:F,'2015 sah unit data'!L:L,data_tracking[[#This Row],[year]],'2015 sah unit data'!K:K,data_tracking[[#This Row],[month]],'2015 sah unit data'!J:J,data_tracking[[#This Row],[week]])=0,"",SUMIFS('2015 sah unit data'!F:F,'2015 sah unit data'!L:L,data_tracking[[#This Row],[year]],'2015 sah unit data'!K:K,data_tracking[[#This Row],[month]],'2015 sah unit data'!J:J,data_tracking[[#This Row],[week]])) -> 2106 | P23: =IF(SUMIFS('2015 sah unit data'!G:G,'2015 sah unit data'!L:L,data_tracking[[#This Row],[year]],'2015 sah unit data'!K:K,data_tracking[[#This Row],[month]],'2015 sah unit data'!J:J,data_tracking[[#This Row],[week]])=0,"",SUMIFS('2015 sah unit data'!G:G,'2015 sah unit data'!L:L,data_tracking[[#This Row],[year]],'2015 sah unit data'!K:K,data_tracking[[#This Row],[month]],'2015 sah unit data'!J:J,data_tracking[[#This Row],[week]])) -> 262 | Q23: =SUMIFS('2015 sah unit data'!I:I,'2015 sah unit data'!L:L,data_tracking[[#This Row],[year]],'2015 sah unit data'!K:K,data_tracking[[#This Row],[month]],'2015 sah unit data'!J:J,data_tracking[[#This Row],[week]]) -> 13 | R23: =SUMIFS('overhead costs data'!E:E,'overhead costs data'!C:C,data_tracking[[#This Row],[year]],'overhead costs data'!B:B,data_tracking[[#This Row],[month]]) -> 62788.8925
A24: 23 | B24: 6 | C24: 2015 | D24: 36.52 | E24: 20.04 | F24: =IFERROR((data_tracking[[#This Row],[overhead]]+SUMIFS('labor costs data'!H:H,'labor costs data'!D:D,data_tracking[[#This Row],[year]],'labor costs data'!A:A,data_tracking[[#This Row],[week]]))/data_tracking[[#This Row],[SAH Completed (Total)]],"") -> 55.50549764 | G24: =IFERROR(SUMIFS('labor costs data'!E:E,'labor costs data'!D:D,data_tracking[[#This Row],[year]],'labor costs data'!A:A,data_tracking[[#This Row],[week]])/data_tracking[[#This Row],[SAH Completed (Total)]],"") -> 25.024961 | H24: =IFERROR((data_tracking[[#This Row],[overhead]]+SUMIFS(labor_costs[total labor cost],labor_costs[year],data_tracking[[#This Row],[year]],labor_costs[week],data_tracking[[#This Row],[week]]))/data_tracking[[#This Row],[Units Completed (Total)]],"") -> 52.53032467 | I24: =IF(SUM(data_tracking[[#This Row],[111-FILSN1 SAH]],data_tracking[[#This Row],[112-FILSN2 SAH]],data_tracking[[#This Row],[113-FILSN3 SAH]])=0,"",SUM(data_tracking[[#This Row],[111-FILSN1 SAH]],data_tracking[[#This Row],[112-FILSN2 SAH]],data_tracking[[#This Row],[113-FILSN3 SAH]])) -> 3843.324672 | J24: =IF(SUM(data_tracking[[#This Row],[111-FILSN1 Units]],data_tracking[[#This Row],[112-FILSN2 Units]],data_tracking[[#This Row],[113-FILSN3 Units]])=0,"",SUM(data_tracking[[#This Row],[111-FILSN1 Units]],data_tracking[[#This Row],[112-FILSN2 Units]],data_tracking[[#This Row],[113-FILSN3 Units]])) -> 4061 | K24: =IF(SUMIFS('2015 sah unit data'!B:B,'2015 sah unit data'!L:L,data_tracking[[#This Row],[year]],'2015 sah unit data'!K:K,data_tracking[[#This Row],[month]],'2015 sah unit data'!J:J,data_tracking[[#This Row],[week]])=0,"",SUMIFS('2015 sah unit data'!B:B,'2015 sah unit data'!L:L,data_tracking[[#This Row],[year]],'2015 sah unit data'!K:K,data_tracking[[#This Row],[month]],'2015 sah unit data'!J:J,data_tracking[[#This Row],[week]])) -> 2596.766421 | L24: =IF(SUMIFS('2015 sah unit data'!C:C,'2015 sah unit data'!L:L,data_tracking[[#This Row],[year]],'2015 sah unit data'!K:K,data_tracking[[#This Row],[month]],'2015 sah unit data'!J:J,data_tracking[[#This Row],[week]])=0,"",SUMIFS('2015 sah unit data'!C:C,'2015 sah unit data'!L:L,data_tracking[[#This Row],[year]],'2015 sah unit data'!K:K,data_tracking[[#This Row],[month]],'2015 sah unit data'!J:J,data_tracking[[#This Row],[week]])) -> 1124.558251 | M24: =IF(SUMIFS('2015 sah unit data'!D:D,'2015 sah unit data'!L:L,data_tracking[[#This Row],[year]],'2015 sah unit data'!K:K,data_tracking[[#This Row],[month]],'2015 sah unit data'!J:J,data_tracking[[#This Row],[week]])=0,"",SUMIFS('2015 sah unit data'!D:D,'2015 sah unit data'!L:L,data_tracking[[#This Row],[year]],'2015 sah unit data'!K:K,data_tracking[[#This Row],[month]],'2015 sah unit data'!J:J,data_tracking[[#This Row],[week]])) -> 122 | N24: =IF(SUMIFS('2015 sah unit data'!E:E,'2015 sah unit data'!L:L,data_tracking[[#This Row],[year]],'2015 sah unit data'!K:K,data_tracking[[#This Row],[month]],'2015 sah unit data'!J:J,data_tracking[[#This Row],[week]])=0,"",SUMIFS('2015 sah unit data'!E:E,'2015 sah unit data'!L:L,data_tracking[[#This Row],[year]],'2015 sah unit data'!K:K,data_tracking[[#This Row],[month]],'2015 sah unit data'!J:J,data_tracking[[#This Row],[week]])) -> 2499 | O24: =IF(SUMIFS('2015 sah unit data'!F:F,'2015 sah unit data'!L:L,data_tracking[[#This Row],[year]],'2015 sah unit data'!K:K,data_tracking[[#This Row],[month]],'2015 sah unit data'!J:J,data_tracking[[#This Row],[week]])=0,"",SUMIFS('2015 sah unit data'!F:F,'2015 sah unit data'!L:L,data_tracking[[#This Row],[year]],'2015 sah unit data'!K:K,data_tracking[[#This Row],[month]],'2015 sah unit data'!J:J,data_tracking[[#This Row],[week]])) -> 1440 | P24: =IF(SUMIFS('2015 sah unit data'!G:G,'2015 sah unit data'!L:L,data_tracking[[#This Row],[year]],'2015 sah unit data'!K:K,data_tracking[[#This Row],[month]],'2015 sah unit data'!J:J,data_tracking[[#This Row],[week]])=0,"",SUMIFS('2015 sah unit data'!G:G,'2015 sah unit data'!L:L,data_tracking[[#This Row],[year]],'2015 sah unit data'!K:K,data_tracking[[#This Row],[month]],'2015 sah unit data'!J:J,data_tracking[[#This Row],[week]])) -> 122 | Q24: =SUMIFS('2015 sah unit data'!I:I,'2015 sah unit data'!L:L,data_tracking[[#This Row],[year]],'2015 sah unit data'!K:K,data_tracking[[#This Row],[month]],'2015 sah unit data'!J:J,data_tracking[[#This Row],[week]]) -> 14 | R24: =SUMIFS('overhead costs data'!E:E,'overhead costs data'!C:C,data_tracking[[#This Row],[year]],'overhead costs data'!B:B,data_tracking[[#This Row],[month]]) -> 44781.938
A25: 24 | B25: 6 | C25: 2015 | D25: 36.52 | E25: 20.04 | F25: =IFERROR((data_tracking[[#This Row],[overhead]]+SUMIFS('labor costs data'!H:H,'labor costs data'!D:D,data_tracking[[#This Row],[year]],'labor costs data'!A:A,data_tracking[[#This Row],[week]]))/data_tracking[[#This Row],[SAH Completed (Total)]],"") -> 55.50549764 | G25: =IFERROR(SUMIFS('labor costs data'!E:E,'labor costs data'!D:D,data_tracking[[#This Row],[year]],'labor costs data'!A:A,data_tracking[[#This Row],[week]])/data_tracking[[#This Row],[SAH Completed (Total)]],"") -> 25.024961 | H25: =IFERROR((data_tracking[[#This Row],[overhead]]+SUMIFS(labor_costs[total labor cost],labor_costs[year],data_tracking[[#This Row],[year]],labor_costs[week],data_tracking[[#This Row],[week]]))/data_tracking[[#This Row],[Units Completed (Total)]],"") -> 52.53032467 | I25: =IF(SUM(data_tracking[[#This Row],[111-FILSN1 SAH]],data_tracking[[#This Row],[112-FILSN2 SAH]],data_tracking[[#This Row],[113-FILSN3 SAH]])=0,"",SUM(data_tracking[[#This Row],[111-FILSN1 SAH]],data_tracking[[#This Row],[112-FILSN2 SAH]],data_tracking[[#This Row],[113-FILSN3 SAH]])) -> 3843.324672 | J25: =IF(SUM(data_tracking[[#This Row],[111-FILSN1 Units]],data_tracking[[#This Row],[112-FILSN2 Units]],data_tracking[[#This Row],[113-FILSN3 Units]])=0,"",SUM(data_tracking[[#This Row],[111-FILSN1 Units]],data_tracking[[#This Row],[112-FILSN2 Units]],data_tracking[[#This Row],[113-FILSN3 Units]])) -> 4061 | K25: =IF(SUMIFS('2015 sah unit data'!B:B,'2015 sah unit data'!L:L,data_tracking[[#This Row],[year]],'2015 sah unit data'!K:K,data_tracking[[#This Row],[month]],'2015 sah unit data'!J:J,data_tracking[[#This Row],[week]])=0,"",SUMIFS('2015 sah unit data'!B:B,'2015 sah unit data'!L:L,data_tracking[[#This Row],[year]],'2015 sah unit data'!K:K,data_tracking[[#This Row],[month]],'2015 sah unit data'!J:J,data_tracking[[#This Row],[week]])) -> 2596.766421 | L25: =IF(SUMIFS('2015 sah unit data'!C:C,'2015 sah unit data'!L:L,data_tracking[[#This Row],[year]],'2015 sah unit data'!K:K,data_tracking[[#This Row],[month]],'2015 sah unit data'!J:J,data_tracking[[#This Row],[week]])=0,"",SUMIFS('2015 sah unit data'!C:C,'2015 sah unit data'!L:L,data_tracking[[#This Row],[year]],'2015 sah unit data'!K:K,data_tracking[[#This Row],[month]],'2015 sah unit data'!J:J,data_tracking[[#This Row],[week]])) -> 1124.558251 | M25: =IF(SUMIFS('2015 sah unit data'!D:D,'2015 sah unit data'!L:L,data_tracking[[#This Row],[year]],'2015 sah unit data'!K:K,data_tracking[[#This Row],[month]],'2015 sah unit data'!J:J,data_tracking[[#This Row],[week]])=0,"",SUMIFS('2015 sah unit data'!D:D,'2015 sah unit data'!L:L,data_tracking[[#This Row],[year]],'2015 sah unit data'!K:K,data_tracking[[#This Row],[month]],'2015 sah unit data'!J:J,data_tracking[[#This Row],[week]])) -> 122 | N25: =IF(SUMIFS('2015 sah unit data'!E:E,'2015 sah unit data'!L:L,data_tracking[[#This Row],[year]],'2015 sah unit data'!K:K,data_tracking[[#This Row],[month]],'2015 sah unit data'!J:J,data_tracking[[#This Row],[week]])=0,"",SUMIFS('2015 sah unit data'!E:E,'2015 sah unit data'!L:L,data_tracking[[#This Row],[year]],'2015 sah unit data'!K:K,data_tracking[[#This Row],[month]],'2015 sah unit data'!J:J,data_tracking[[#This Row],[week]])) -> 2499 | O25: =IF(SUMIFS('2015 sah unit data'!F:F,'2015 sah unit data'!L:L,data_tracking[[#This Row],[year]],'2015 sah unit data'!K:K,data_tracking[[#This Row],[month]],'2015 sah unit data'!J:J,data_tracking[[#This Row],[week]])=0,"",SUMIFS('2015 sah unit data'!F:F,'2015 sah unit data'!L:L,data_tracking[[#This Row],[year]],'2015 sah unit data'!K:K,data_tracking[[#This Row],[month]],'2015 sah unit data'!J:J,data_tracking[[#This Row],[week]])) -> 1440 | P25: =IF(SUMIFS('2015 sah unit data'!G:G,'2015 sah unit data'!L:L,data_tracking[[#This Row],[year]],'2015 sah unit data'!K:K,data_tracking[[#This Row],[month]],'2015 sah unit data'!J:J,data_tracking[[#This Row],[week]])=0,"",SUMIFS('2015 sah unit data'!G:G,'2015 sah unit data'!L:L,data_tracking[[#This Row],[year]],'2015 sah unit data'!K:K,data_tracking[[#This Row],[month]],'2015 sah unit data'!J:J,data_tracking[[#This Row],[week]])) -> 122 | Q25: =SUMIFS('2015 sah unit data'!I:I,'2015 sah unit data'!L:L,data_tracking[[#This Row],[year]],'2015 sah unit data'!K:K,data_tracking[[#This Row],[month]],'2015 sah unit data'!J:J,data_tracking[[#This Row],[week]]) -> 14 | R25: =SUMIFS('overhead costs data'!E:E,'overhead costs data'!C:C,data_tracking[[#This Row],[year]],'overhead costs data'!B:B,data_tracking[[#This Row],[month]]) -> 44781.938
A26: 25 | B26: 6 | C26: 2015 | D26: 36.52 | E26: 20.04 | F26: =IFERROR((data_tracking[[#This Row],[overhead]]+SUMIFS('labor costs data'!H:H,'labor costs data'!D:D,data_tracking[[#This Row],[year]],'labor costs data'!A:A,data_tracking[[#This Row],[week]]))/data_tracking[[#This Row],[SAH Completed (Total)]],"") -> 59.83584868 | G26: =IFERROR(SUMIFS('labor costs data'!E:E,'labor costs data'!D:D,data_tracking[[#This Row],[year]],'labor costs data'!A:A,data_tracking[[#This Row],[week]])/data_tracking[[#This Row],[SAH Completed (Total)]],"") -> 28.14435528 | H26: =IFERROR((data_tracking[[#This Row],[overhead]]+SUMIFS(labor_costs[total labor cost],labor_costs[year],data_tracking[[#This Row],[year]],labor_costs[week],data_tracking[[#This Row],[week]]))/data_tracking[[#This Row],[Units Completed (Total)]],"") -> 56.62856279 | I26: =IF(SUM(data_tracking[[#This Row],[111-FILSN1 SAH]],data_tracking[[#This Row],[112-FILSN2 SAH]],data_tracking[[#This Row],[113-FILSN3 SAH]])=0,"",SUM(data_tracking[[#This Row],[111-FILSN1 SAH]],data_tracking[[#This Row],[112-FILSN2 SAH]],data_tracking[[#This Row],[113-FILSN3 SAH]])) -> 3843.324672 | J26: =IF(SUM(data_tracking[[#This Row],[111-FILSN1 Units]],data_tracking[[#This Row],[112-FILSN2 Units]],data_tracking[[#This Row],[113-FILSN3 Units]])=0,"",SUM(data_tracking[[#This Row],[111-FILSN1 Units]],data_tracking[[#This Row],[112-FILSN2 Units]],data_tracking[[#This Row],[113-FILSN3 Units]])) -> 4061 | K26: =IF(SUMIFS('2015 sah unit data'!B:B,'2015 sah unit data'!L:L,data_tracking[[#This Row],[year]],'2015 sah unit data'!K:K,data_tracking[[#This Row],[month]],'2015 sah unit data'!J:J,data_tracking[[#This Row],[week]])=0,"",SUMIFS('2015 sah unit data'!B:B,'2015 sah unit data'!L:L,data_tracking[[#This Row],[year]],'2015 sah unit data'!K:K,data_tracking[[#This Row],[month]],'2015 sah unit data'!J:J,data_tracking[[#This Row],[week]])) -> 2596.766421 | L26: =IF(SUMIFS('2015 sah unit data'!C:C,'2015 sah unit data'!L:L,data_tracking[[#This Row],[year]],'2015 sah unit data'!K:K,data_tracking[[#This Row],[month]],'2015 sah unit data'!J:J,data_tracking[[#This Row],[week]])=0,"",SUMIFS('2015 sah unit data'!C:C,'2015 sah unit data'!L:L,data_tracking[[#This Row],[year]],'2015 sah unit data'!K:K,data_tracking[[#This Row],[month]],'2015 sah unit data'!J:J,data_tracking[[#This Row],[week]])) -> 1124.558251 | M26: =IF(SUMIFS('2015 sah unit data'!D:D,'2015 sah unit data'!L:L,data_tracking[[#This Row],[year]],'2015 sah unit data'!K:K,data_tracking[[#This Row],[month]],'2015 sah unit data'!J:J,data_tracking[[#This Row],[week]])=0,"",SUMIFS('2015 sah unit data'!D:D,'2015 sah unit data'!L:L,data_tracking[[#This Row],[year]],'2015 sah unit data'!K:K,data_tracking[[#This Row],[month]],'2015 sah unit data'!J:J,data_tracking[[#This Row],[week]])) -> 122 | N26: =IF(SUMIFS('2015 sah unit data'!E:E,'2015 sah unit data'!L:L,data_tracking[[#This Row],[year]],'2015 sah unit data'!K:K,data_tracking[[#This Row],[month]],'2015 sah unit data'!J:J,data_tracking[[#This Row],[week]])=0,"",SUMIFS('2015 sah unit data'!E:E,'2015 sah unit data'!L:L,data_tracking[[#This Row],[year]],'2015 sah unit data'!K:K,data_tracking[[#This Row],[month]],'2015 sah unit data'!J:J,data_tracking[[#This Row],[week]])) -> 2499 | O26: =IF(SUMIFS('2015 sah unit data'!F:F,'2015 sah unit data'!L:L,data_tracking[[#This Row],[year]],'2015 sah unit data'!K:K,data_tracking[[#This Row],[month]],'2015 sah unit data'!J:J,data_tracking[[#This Row],[week]])=0,"",SUMIFS('2015 sah unit data'!F:F,'2015 sah unit data'!L:L,data_tracking[[#This Row],[year]],'2015 sah unit data'!K:K,data_tracking[[#This Row],[month]],'2015 sah unit data'!J:J,data_tracking[[#This Row],[week]])) -> 1440 | P26: =IF(SUMIFS('2015 sah unit data'!G:G,'2015 sah unit data'!L:L,data_tracking[[#This Row],[year]],'2015 sah unit data'!K:K,data_tracking[[#This Row],[month]],'2015 sah unit data'!J:J,data_tracking[[#This Row],[week]])=0,"",SUMIFS('2015 sah unit data'!G:G,'2015 sah unit data'!L:L,data_tracking[[#This Row],[year]],'2015 sah unit data'!K:K,data_tracking[[#This Row],[month]],'2015 sah unit data'!J:J,data_tracking[[#This Row],[week]])) -> 122 | Q26: =SUMIFS('2015 sah unit data'!I:I,'2015 sah unit data'!L:L,data_tracking[[#This Row],[year]],'2015 sah unit data'!K:K,data_tracking[[#This Row],[month]],'2015 sah unit data'!J:J,data_tracking[[#This Row],[week]]) -> 14 | R26: =SUMIFS('overhead costs data'!E:E,'overhead costs data'!C:C,data_tracking[[#This Row],[year]],'overhead costs data'!B:B,data_tracking[[#This Row],[month]]) -> 44781.938
A27: 26 | B27: 6 | C27: 2015 | D27: 36.52 | E27: 20.04 | F27: =IFERROR((data_tracking[[#This Row],[overhead]]+SUMIFS('labor costs data'!H:H,'labor costs data'!D:D,data_tracking[[#This Row],[year]],'labor costs data'!A:A,data_tracking[[#This Row],[week]]))/data_tracking[[#This Row],[SAH Completed (Total)]],"") -> 59.83584868 | G27: =IFERROR(SUMIFS('labor costs data'!E:E,'labor costs data'!D:D,data_tracking[[#This Row],[year]],'labor costs data'!A:A,data_tracking[[#This Row],[week]])/data_tracking[[#This Row],[SAH Completed (Total)]],"") -> 28.14435528 | H27: =IFERROR((data_tracking[[#This Row],[overhead]]+SUMIFS(labor_costs[total labor cost],labor_costs[year],data_tracking[[#This Row],[year]],labor_costs[week],data_tracking[[#This Row],[week]]))/data_tracking[[#This Row],[Units Completed (Total)]],"") -> 56.62856279 | I27: =IF(SUM(data_tracking[[#This Row],[111-FILSN1 SAH]],data_tracking[[#This Row],[112-FILSN2 SAH]],data_tracking[[#This Row],[113-FILSN3 SAH]])=0,"",SUM(data_tracking[[#This Row],[111-FILSN1 SAH]],data_tracking[[#This Row],[112-FILSN2 SAH]],data_tracking[[#This Row],[113-FILSN3 SAH]])) -> 3843.324672 | J27: =IF(SUM(data_tracking[[#This Row],[111-FILSN1 Units]],data_tracking[[#This Row],[112-FILSN2 Units]],data_tracking[[#This Row],[113-FILSN3 Units]])=0,"",SUM(data_tracking[[#This Row],[111-FILSN1 Units]],data_tracking[[#This Row],[112-FILSN2 Units]],data_tracking[[#This Row],[113-FILSN3 Units]])) -> 4061 | K27: =IF(SUMIFS('2015 sah unit data'!B:B,'2015 sah unit data'!L:L,data_tracking[[#This Row],[year]],'2015 sah unit data'!K:K,data_tracking[[#This Row],[month]],'2015 sah unit data'!J:J,data_tracking[[#This Row],[week]])=0,"",SUMIFS('2015 sah unit data'!B:B,'2015 sah unit data'!L:L,data_tracking[[#This Row],[year]],'2015 sah unit data'!K:K,data_tracking[[#This Row],[month]],'2015 sah unit data'!J:J,data_tracking[[#This Row],[week]])) -> 2596.766421 | L27: =IF(SUMIFS('2015 sah unit data'!C:C,'2015 sah unit data'!L:L,data_tracking[[#This Row],[year]],'2015 sah unit data'!K:K,data_tracking[[#This Row],[month]],'2015 sah unit data'!J:J,data_tracking[[#This Row],[week]])=0,"",SUMIFS('2015 sah unit data'!C:C,'2015 sah unit data'!L:L,data_tracking[[#This Row],[year]],'2015 sah unit data'!K:K,data_tracking[[#This Row],[month]],'2015 sah unit data'!J:J,data_tracking[[#This Row],[week]])) -> 1124.558251 | M27: =IF(SUMIFS('2015 sah unit data'!D:D,'2015 sah unit data'!L:L,data_tracking[[#This Row],[year]],'2015 sah unit data'!K:K,data_tracking[[#This Row],[month]],'2015 sah unit data'!J:J,data_tracking[[#This Row],[week]])=0,"",SUMIFS('2015 sah unit data'!D:D,'2015 sah unit data'!L:L,data_tracking[[#This Row],[year]],'2015 sah unit data'!K:K,data_tracking[[#This Row],[month]],'2015 sah unit data'!J:J,data_tracking[[#This Row],[week]])) -> 122 | N27: =IF(SUMIFS('2015 sah unit data'!E:E,'2015 sah unit data'!L:L,data_tracking[[#This Row],[year]],'2015 sah unit data'!K:K,data_tracking[[#This Row],[month]],'2015 sah unit data'!J:J,data_tracking[[#This Row],[week]])=0,"",SUMIFS('2015 sah unit data'!E:E,'2015 sah unit data'!L:L,data_tracking[[#This Row],[year]],'2015 sah unit data'!K:K,data_tracking[[#This Row],[month]],'2015 sah unit data'!J:J,data_tracking[[#This Row],[week]])) -> 2499 | O27: =IF(SUMIFS('2015 sah unit data'!F:F,'2015 sah unit data'!L:L,data_tracking[[#This Row],[year]],'2015 sah unit data'!K:K,data_tracking[[#This Row],[month]],'2015 sah unit data'!J:J,data_tracking[[#This Row],[week]])=0,"",SUMIFS('2015 sah unit data'!F:F,'2015 sah unit data'!L:L,data_tracking[[#This Row],[year]],'2015 sah unit data'!K:K,data_tracking[[#This Row],[month]],'2015 sah unit data'!J:J,data_tracking[[#This Row],[week]])) -> 1440 | P27: =IF(SUMIFS('2015 sah unit data'!G:G,'2015 sah unit data'!L:L,data_tracking[[#This Row],[year]],'2015 sah unit data'!K:K,data_tracking[[#This Row],[month]],'2015 sah unit data'!J:J,data_tracking[[#This Row],[week]])=0,"",SUMIFS('2015 sah unit data'!G:G,'2015 sah unit data'!L:L,data_tracking[[#This Row],[year]],'2015 sah unit data'!K:K,data_tracking[[#This Row],[month]],'2015 sah unit data'!J:J,data_tracking[[#This Row],[week]])) -> 122 | Q27: =SUMIFS('2015 sah unit data'!I:I,'2015 sah unit data'!L:L,data_tracking[[#This Row],[year]],'2015 sah unit data'!K:K,data_tracking[[#This Row],[month]],'2015 sah unit data'!J:J,data_tracking[[#This Row],[week]]) -> 14 | R27: =SUMIFS('overhead costs data'!E:E,'overhead costs data'!C:C,data_tracking[[#This Row],[year]],'overhead costs data'!B:B,data_tracking[[#This Row],[month]]) -> 44781.938
A28: 27 | B28: 6 | C28: 2015 | D28: 36.52 | E28: 20.04 | F28: =IFERROR((data_tracking[[#This Row],[overhead]]+SUMIFS('labor costs data'!H:H,'labor costs data'!D:D,data_tracking[[#This Row],[year]],'labor costs data'!A:A,data_tracking[[#This Row],[week]]))/data_tracking[[#This Row],[SAH Completed (Total)]],"") -> 63.73814326 | G28: =IFERROR(SUMIFS('labor costs data'!E:E,'labor costs data'!D:D,data_tracking[[#This Row],[year]],'labor costs data'!A:A,data_tracking[[#This Row],[week]])/data_tracking[[#This Row],[SAH Completed (Total)]],"") -> 30.9463759 | H28: =IFERROR((data_tracking[[#This Row],[overhead]]+SUMIFS(labor_costs[total labor cost],labor_costs[year],data_tracking[[#This Row],[year]],labor_costs[week],data_tracking[[#This Row],[week]]))/data_tracking[[#This Row],[Units Completed (Total)]],"") -> 60.32168887 | I28: =IF(SUM(data_tracking[[#This Row],[111-FILSN1 SAH]],data_tracking[[#This Row],[112-FILSN2 SAH]],data_tracking[[#This Row],[113-FILSN3 SAH]])=0,"",SUM(data_tracking[[#This Row],[111-FILSN1 SAH]],data_tracking[[#This Row],[112-FILSN2 SAH]],data_tracking[[#This Row],[113-FILSN3 SAH]])) -> 3843.324672 | J28: =IF(SUM(data_tracking[[#This Row],[111-FILSN1 Units]],data_tracking[[#This Row],[112-FILSN2 Units]],data_tracking[[#This Row],[113-FILSN3 Units]])=0,"",SUM(data_tracking[[#This Row],[111-FILSN1 Units]],data_tracking[[#This Row],[112-FILSN2 Units]],data_tracking[[#This Row],[113-FILSN3 Units]])) -> 4061 | K28: =IF(SUMIFS('2015 sah unit data'!B:B,'2015 sah unit data'!L:L,data_tracking[[#This Row],[year]],'2015 sah unit data'!K:K,data_tracking[[#This Row],[month]],'2015 sah unit data'!J:J,data_tracking[[#This Row],[week]])=0,"",SUMIFS('2015 sah unit data'!B:B,'2015 sah unit data'!L:L,data_tracking[[#This Row],[year]],'2015 sah unit data'!K:K,data_tracking[[#This Row],[month]],'2015 sah unit data'!J:J,data_tracking[[#This Row],[week]])) -> 2596.766421 | L28: =IF(SUMIFS('2015 sah unit data'!C:C,'2015 sah unit data'!L:L,data_tracking[[#This Row],[year]],'2015 sah unit data'!K:K,data_tracking[[#This Row],[month]],'2015 sah unit data'!J:J,data_tracking[[#This Row],[week]])=0,"",SUMIFS('2015 sah unit data'!C:C,'2015 sah unit data'!L:L,data_tracking[[#This Row],[year]],'2015 sah unit data'!K:K,data_tracking[[#This Row],[month]],'2015 sah unit data'!J:J,data_tracking[[#This Row],[week]])) -> 1124.558251 | M28: =IF(SUMIFS('2015 sah unit data'!D:D,'2015 sah unit data'!L:L,data_tracking[[#This Row],[year]],'2015 sah unit data'!K:K,data_tracking[[#This Row],[month]],'2015 sah unit data'!J:J,data_tracking[[#This Row],[week]])=0,"",SUMIFS('2015 sah unit data'!D:D,'2015 sah unit data'!L:L,data_tracking[[#This Row],[year]],'2015 sah unit data'!K:K,data_tracking[[#This Row],[month]],'2015 sah unit data'!J:J,data_tracking[[#This Row],[week]])) -> 122 | N28: =IF(SUMIFS('2015 sah unit data'!E:E,'2015 sah unit data'!L:L,data_tracking[[#This Row],[year]],'2015 sah unit data'!K:K,data_tracking[[#This Row],[month]],'2015 sah unit data'!J:J,data_tracking[[#This Row],[week]])=0,"",SUMIFS('2015 sah unit data'!E:E,'2015 sah unit data'!L:L,data_tracking[[#This Row],[year]],'2015 sah unit data'!K:K,data_tracking[[#This Row],[month]],'2015 sah unit data'!J:J,data_tracking[[#This Row],[week]])) -> 2499 | O28: =IF(SUMIFS('2015 sah unit data'!F:F,'2015 sah unit data'!L:L,data_tracking[[#This Row],[year]],'2015 sah unit data'!K:K,data_tracking[[#This Row],[month]],'2015 sah unit data'!J:J,data_tracking[[#This Row],[week]])=0,"",SUMIFS('2015 sah unit data'!F:F,'2015 sah unit data'!L:L,data_tracking[[#This Row],[year]],'2015 sah unit data'!K:K,data_tracking[[#This Row],[month]],'2015 sah unit data'!J:J,data_tracking[[#This Row],[week]])) -> 1440 | P28: =IF(SUMIFS('2015 sah unit data'!G:G,'2015 sah unit data'!L:L,data_tracking[[#This Row],[year]],'2015 sah unit data'!K:K,data_tracking[[#This Row],[month]],'2015 sah unit data'!J:J,data_tracking[[#This Row],[week]])=0,"",SUMIFS('2015 sah unit data'!G:G,'2015 sah unit data'!L:L,data_tracking[[#This Row],[year]],'2015 sah unit data'!K:K,data_tracking[[#This Row],[month]],'2015 sah unit data'!J:J,data_tracking[[#This Row],[week]])) -> 122 | Q28: =SUMIFS('2015 sah unit data'!I:I,'2015 sah unit data'!L:L,data_tracking[[#This Row],[year]],'2015 sah unit data'!K:K,data_tracking[[#This Row],[month]],'2015 sah unit data'!J:J,data_tracking[[#This Row],[week]]) -> 14 | R28: =SUMIFS('overhead costs data'!E:E,'overhead costs data'!C:C,data_tracking[[#This Row],[year]],'overhead costs data'!B:B,data_tracking[[#This Row],[month]]) -> 44781.938
A29: 28 | B29: 7 | C29: 2015 | D29: 36.52 | E29: 20.04 | F29: =IFERROR((data_tracking[[#This Row],[overhead]]+SUMIFS('labor costs data'!H:H,'labor costs data'!D:D,data_tracking[[#This Row],[year]],'labor costs data'!A:A,data_tracking[[#This Row],[week]]))/data_tracking[[#This Row],[SAH Completed (Total)]],"") -> 45.88509807 | G29: =IFERROR(SUMIFS('labor costs data'!E:E,'labor costs data'!D:D,data_tracking[[#This Row],[year]],'labor costs data'!A:A,data_tracking[[#This Row],[week]])/data_tracking[[#This Row],[SAH Completed (Total)]],"") -> 20.4759252 | H29: =IFERROR((data_tracking[[#This Row],[overhead]]+SUMIFS(labor_costs[total labor cost],labor_costs[year],data_tracking[[#This Row],[year]],labor_costs[week],data_tracking[[#This Row],[week]]))/data_tracking[[#This Row],[Units Completed (Total)]],"") -> 37.48127204 | I29: =IF(SUM(data_tracking[[#This Row],[111-FILSN1 SAH]],data_tracking[[#This Row],[112-FILSN2 SAH]],data_tracking[[#This Row],[113-FILSN3 SAH]])=0,"",SUM(data_tracking[[#This Row],[111-FILSN1 SAH]],data_tracking[[#This Row],[112-FILSN2 SAH]],data_tracking[[#This Row],[113-FILSN3 SAH]])) -> 5808.62495 | J29: =IF(SUM(data_tracking[[#This Row],[111-FILSN1 Units]],data_tracking[[#This Row],[112-FILSN2 Units]],data_tracking[[#This Row],[113-FILSN3 Units]])=0,"",SUM(data_tracking[[#This Row],[111-FILSN1 Units]],data_tracking[[#This Row],[112-FILSN2 Units]],data_tracking[[#This Row],[113-FILSN3 Units]])) -> 7111 | K29: =IF(SUMIFS('2015 sah unit data'!B:B,'2015 sah unit data'!L:L,data_tracking[[#This Row],[year]],'2015 sah unit data'!K:K,data_tracking[[#This Row],[month]],'2015 sah unit data'!J:J,data_tracking[[#This Row],[week]])=0,"",SUMIFS('2015 sah unit data'!B:B,'2015 sah unit data'!L:L,data_tracking[[#This Row],[year]],'2015 sah unit data'!K:K,data_tracking[[#This Row],[month]],'2015 sah unit data'!J:J,data_tracking[[#This Row],[week]])) -> 3298.267895 | L29: =IF(SUMIFS('2015 sah unit data'!C:C,'2015 sah unit data'!L:L,data_tracking[[#This Row],[year]],'2015 sah unit data'!K:K,data_tracking[[#This Row],[month]],'2015 sah unit data'!J:J,data_tracking[[#This Row],[week]])=0,"",SUMIFS('2015 sah unit data'!C:C,'2015 sah unit data'!L:L,data_tracking[[#This Row],[year]],'2015 sah unit data'!K:K,data_tracking[[#This Row],[month]],'2015 sah unit data'!J:J,data_tracking[[#This Row],[week]])) -> 2270.357055 | M29: =IF(SUMIFS('2015 sah unit data'!D:D,'2015 sah unit data'!L:L,data_tracking[[#This Row],[year]],'2015 sah unit data'!K:K,data_tracking[[#This Row],[month]],'2015 sah unit data'!J:J,data_tracking[[#This Row],[week]])=0,"",SUMIFS('2015 sah unit data'!D:D,'2015 sah unit data'!L:L,data_tracking[[#This Row],[year]],'2015 sah unit data'!K:K,data_tracking[[#This Row],[month]],'2015 sah unit data'!J:J,data_tracking[[#This Row],[week]])) -> 240 | N29: =IF(SUMIFS('2015 sah unit data'!E:E,'2015 sah unit data'!L:L,data_tracking[[#This Row],[year]],'2015 sah unit data'!K:K,data_tracking[[#This Row],[month]],'2015 sah unit data'!J:J,data_tracking[[#This Row],[week]])=0,"",SUMIFS('2015 sah unit data'!E:E,'2015 sah unit data'!L:L,data_tracking[[#This Row],[year]],'2015 sah unit data'!K:K,data_tracking[[#This Row],[month]],'2015 sah unit data'!J:J,data_tracking[[#This Row],[week]])) -> 3224 | O29: =IF(SUMIFS('2015 sah unit data'!F:F,'2015 sah unit data'!L:L,data_tracking[[#This Row],[year]],'2015 sah unit data'!K:K,data_tracking[[#This Row],[month]],'2015 sah unit data'!J:J,data_tracking[[#This Row],[week]])=0,"",SUMIFS('2015 sah unit data'!F:F,'2015 sah unit data'!L:L,data_tracking[[#This Row],[year]],'2015 sah unit data'!K:K,data_tracking[[#This Row],[month]],'2015 sah unit data'!J:J,data_tracking[[#This Row],[week]])) -> 3647 | P29: =IF(SUMIFS('2015 sah unit data'!G:G,'2015 sah unit data'!L:L,data_tracking[[#This Row],[year]],'2015 sah unit data'!K:K,data_tracking[[#This Row],[month]],'2015 sah unit data'!J:J,data_tracking[[#This Row],[week]])=0,"",SUMIFS('2015 sah unit data'!G:G,'2015 sah unit data'!L:L,data_tracking[[#This Row],[year]],'2015 sah unit data'!K:K,data_tracking[[#This Row],[month]],'2015 sah unit data'!J:J,data_tracking[[#This Row],[week]])) -> 240 | Q29: =SUMIFS('2015 sah unit data'!I:I,'2015 sah unit data'!L:L,data_tracking[[#This Row],[year]],'2015 sah unit data'!K:K,data_tracking[[#This Row],[month]],'2015 sah unit data'!J:J,data_tracking[[#This Row],[week]]) -> 19 | R29: =SUMIFS('overhead costs data'!E:E,'overhead costs data'!C:C,data_tracking[[#This Row],[year]],'overhead costs data'!B:B,data_tracking[[#This Row],[month]]) -> 66344.885
A30: 29 | B30: 7 | C30: 2015 | D30: 36.52 | E30: 20.04 | F30: =IFERROR((data_tracking[[#This Row],[overhead]]+SUMIFS('labor costs data'!H:H,'labor costs data'!D:D,data_tracking[[#This Row],[year]],'labor costs data'!A:A,data_tracking[[#This Row],[week]]))/data_tracking[[#This Row],[SAH Completed (Total)]],"") -> 47.2866073 | G30: =IFERROR(SUMIFS('labor costs data'!E:E,'labor costs data'!D:D,data_tracking[[#This Row],[year]],'labor costs data'!A:A,data_tracking[[#This Row],[week]])/data_tracking[[#This Row],[SAH Completed (Total)]],"") -> 21.63045145 | H30: =IFERROR((data_tracking[[#This Row],[overhead]]+SUMIFS(labor_costs[total labor cost],labor_costs[year],data_tracking[[#This Row],[year]],labor_costs[week],data_tracking[[#This Row],[week]]))/data_tracking[[#This Row],[Units Completed (Total)]],"") -> 38.62609577 | I30: =IF(SUM(data_tracking[[#This Row],[111-FILSN1 SAH]],data_tracking[[#This Row],[112-FILSN2 SAH]],data_tracking[[#This Row],[113-FILSN3 SAH]])=0,"",SUM(data_tracking[[#This Row],[111-FILSN1 SAH]],data_tracking[[#This Row],[112-FILSN2 SAH]],data_tracking[[#This Row],[113-FILSN3 SAH]])) -> 5808.62495 | J30: =IF(SUM(data_tracking[[#This Row],[111-FILSN1 Units]],data_tracking[[#This Row],[112-FILSN2 Units]],data_tracking[[#This Row],[113-FILSN3 Units]])=0,"",SUM(data_tracking[[#This Row],[111-FILSN1 Units]],data_tracking[[#This Row],[112-FILSN2 Units]],data_tracking[[#This Row],[113-FILSN3 Units]])) -> 7111 | K30: =IF(SUMIFS('2015 sah unit data'!B:B,'2015 sah unit data'!L:L,data_tracking[[#This Row],[year]],'2015 sah unit data'!K:K,data_tracking[[#This Row],[month]],'2015 sah unit data'!J:J,data_tracking[[#This Row],[week]])=0,"",SUMIFS('2015 sah unit data'!B:B,'2015 sah unit data'!L:L,data_tracking[[#This Row],[year]],'2015 sah unit data'!K:K,data_tracking[[#This Row],[month]],'2015 sah unit data'!J:J,data_tracking[[#This Row],[week]])) -> 3298.267895 | L30: =IF(SUMIFS('2015 sah unit data'!C:C,'2015 sah unit data'!L:L,data_tracking[[#This Row],[year]],'2015 sah unit data'!K:K,data_tracking[[#This Row],[month]],'2015 sah unit data'!J:J,data_tracking[[#This Row],[week]])=0,"",SUMIFS('2015 sah unit data'!C:C,'2015 sah unit data'!L:L,data_tracking[[#This Row],[year]],'2015 sah unit data'!K:K,data_tracking[[#This Row],[month]],'2015 sah unit data'!J:J,data_tracking[[#This Row],[week]])) -> 2270.357055 | M30: =IF(SUMIFS('2015 sah unit data'!D:D,'2015 sah unit data'!L:L,data_tracking[[#This Row],[year]],'2015 sah unit data'!K:K,data_tracking[[#This Row],[month]],'2015 sah unit data'!J:J,data_tracking[[#This Row],[week]])=0,"",SUMIFS('2015 sah unit data'!D:D,'2015 sah unit data'!L:L,data_tracking[[#This Row],[year]],'2015 sah unit data'!K:K,data_tracking[[#This Row],[month]],'2015 sah unit data'!J:J,data_tracking[[#This Row],[week]])) -> 240 | N30: =IF(SUMIFS('2015 sah unit data'!E:E,'2015 sah unit data'!L:L,data_tracking[[#This Row],[year]],'2015 sah unit data'!K:K,data_tracking[[#This Row],[month]],'2015 sah unit data'!J:J,data_tracking[[#This Row],[week]])=0,"",SUMIFS('2015 sah unit data'!E:E,'2015 sah unit data'!L:L,data_tracking[[#This Row],[year]],'2015 sah unit data'!K:K,data_tracking[[#This Row],[month]],'2015 sah unit data'!J:J,data_tracking[[#This Row],[week]])) -> 3224 | O30: =IF(SUMIFS('2015 sah unit data'!F:F,'2015 sah unit data'!L:L,data_tracking[[#This Row],[year]],'2015 sah unit data'!K:K,data_tracking[[#This Row],[month]],'2015 sah unit data'!J:J,data_tracking[[#This Row],[week]])=0,"",SUMIFS('2015 sah unit data'!F:F,'2015 sah unit data'!L:L,data_tracking[[#This Row],[year]],'2015 sah unit data'!K:K,data_tracking[[#This Row],[month]],'2015 sah unit data'!J:J,data_tracking[[#This Row],[week]])) -> 3647 | P30: =IF(SUMIFS('2015 sah unit data'!G:G,'2015 sah unit data'!L:L,data_tracking[[#This Row],[year]],'2015 sah unit data'!K:K,data_tracking[[#This Row],[month]],'2015 sah unit data'!J:J,data_tracking[[#This Row],[week]])=0,"",SUMIFS('2015 sah unit data'!G:G,'2015 sah unit data'!L:L,data_tracking[[#This Row],[year]],'2015 sah unit data'!K:K,data_tracking[[#This Row],[month]],'2015 sah unit data'!J:J,data_tracking[[#This Row],[week]])) -> 240 | Q30: =SUMIFS('2015 sah unit data'!I:I,'2015 sah unit data'!L:L,data_tracking[[#This Row],[year]],'2015 sah unit data'!K:K,data_tracking[[#This Row],[month]],'2015 sah unit data'!J:J,data_tracking[[#This Row],[week]]) -> 19 | R30: =SUMIFS('overhead costs data'!E:E,'overhead costs data'!C:C,data_tracking[[#This Row],[year]],'overhead costs data'!B:B,data_tracking[[#This Row],[month]]) -> 66344.885
A31: 30 | B31: 7 | C31: 2015 | D31: 36.52 | E31: 20.04 | F31: =IFERROR((data_tracking[[#This Row],[overhead]]+SUMIFS('labor costs data'!H:H,'labor costs data'!D:D,data_tracking[[#This Row],[year]],'labor costs data'!A:A,data_tracking[[#This Row],[week]]))/data_tracking[[#This Row],[SAH Completed (Total)]],"") -> 47.2866073 | G31: =IFERROR(SUMIFS('labor costs data'!E:E,'labor costs data'!D:D,data_tracking[[#This Row],[year]],'labor costs data'!A:A,data_tracking[[#This Row],[week]])/data_tracking[[#This Row],[SAH Completed (Total)]],"") -> 21.63045145 | H31: =IFERROR((data_tracking[[#This Row],[overhead]]+SUMIFS(labor_costs[total labor cost],labor_costs[year],data_tracking[[#This Row],[year]],labor_costs[week],data_tracking[[#This Row],[week]]))/data_tracking[[#This Row],[Units Completed (Total)]],"") -> 38.62609577 | I31: =IF(SUM(data_tracking[[#This Row],[111-FILSN1 SAH]],data_tracking[[#This Row],[112-FILSN2 SAH]],data_tracking[[#This Row],[113-FILSN3 SAH]])=0,"",SUM(data_tracking[[#This Row],[111-FILSN1 SAH]],data_tracking[[#This Row],[112-FILSN2 SAH]],data_tracking[[#This Row],[113-FILSN3 SAH]])) -> 5808.62495 | J31: =IF(SUM(data_tracking[[#This Row],[111-FILSN1 Units]],data_tracking[[#This Row],[112-FILSN2 Units]],data_tracking[[#This Row],[113-FILSN3 Units]])=0,"",SUM(data_tracking[[#This Row],[111-FILSN1 Units]],data_tracking[[#This Row],[112-FILSN2 Units]],data_tracking[[#This Row],[113-FILSN3 Units]])) -> 7111 | K31: =IF(SUMIFS('2015 sah unit data'!B:B,'2015 sah unit data'!L:L,data_tracking[[#This Row],[year]],'2015 sah unit data'!K:K,data_tracking[[#This Row],[month]],'2015 sah unit data'!J:J,data_tracking[[#This Row],[week]])=0,"",SUMIFS('2015 sah unit data'!B:B,'2015 sah unit data'!L:L,data_tracking[[#This Row],[year]],'2015 sah unit data'!K:K,data_tracking[[#This Row],[month]],'2015 sah unit data'!J:J,data_tracking[[#This Row],[week]])) -> 3298.267895 | L31: =IF(SUMIFS('2015 sah unit data'!C:C,'2015 sah unit data'!L:L,data_tracking[[#This Row],[year]],'2015 sah unit data'!K:K,data_tracking[[#This Row],[month]],'2015 sah unit data'!J:J,data_tracking[[#This Row],[week]])=0,"",SUMIFS('2015 sah unit data'!C:C,'2015 sah unit data'!L:L,data_tracking[[#This Row],[year]],'2015 sah unit data'!K:K,data_tracking[[#This Row],[month]],'2015 sah unit data'!J:J,data_tracking[[#This Row],[week]])) -> 2270.357055 | M31: =IF(SUMIFS('2015 sah unit data'!D:D,'2015 sah unit data'!L:L,data_tracking[[#This Row],[year]],'2015 sah unit data'!K:K,data_tracking[[#This Row],[month]],'2015 sah unit data'!J:J,data_tracking[[#This Row],[week]])=0,"",SUMIFS('2015 sah unit data'!D:D,'2015 sah unit data'!L:L,data_tracking[[#This Row],[year]],'2015 sah unit data'!K:K,data_tracking[[#This Row],[month]],'2015 sah unit data'!J:J,data_tracking[[#This Row],[week]])) -> 240 | N31: =IF(SUMIFS('2015 sah unit data'!E:E,'2015 sah unit data'!L:L,data_tracking[[#This Row],[year]],'2015 sah unit data'!K:K,data_tracking[[#This Row],[month]],'2015 sah unit data'!J:J,data_tracking[[#This Row],[week]])=0,"",SUMIFS('2015 sah unit data'!E:E,'2015 sah unit data'!L:L,data_tracking[[#This Row],[year]],'2015 sah unit data'!K:K,data_tracking[[#This Row],[month]],'2015 sah unit data'!J:J,data_tracking[[#This Row],[week]])) -> 3224 | O31: =IF(SUMIFS('2015 sah unit data'!F:F,'2015 sah unit data'!L:L,data_tracking[[#This Row],[year]],'2015 sah unit data'!K:K,data_tracking[[#This Row],[month]],'2015 sah unit data'!J:J,data_tracking[[#This Row],[week]])=0,"",SUMIFS('2015 sah unit data'!F:F,'2015 sah unit data'!L:L,data_tracking[[#This Row],[year]],'2015 sah unit data'!K:K,data_tracking[[#This Row],[month]],'2015 sah unit data'!J:J,data_tracking[[#This Row],[week]])) -> 3647 | P31: =IF(SUMIFS('2015 sah unit data'!G:G,'2015 sah unit data'!L:L,data_tracking[[#This Row],[year]],'2015 sah unit data'!K:K,data_tracking[[#This Row],[month]],'2015 sah unit data'!J:J,data_tracking[[#This Row],[week]])=0,"",SUMIFS('2015 sah unit data'!G:G,'2015 sah unit data'!L:L,data_tracking[[#This Row],[year]],'2015 sah unit data'!K:K,data_tracking[[#This Row],[month]],'2015 sah unit data'!J:J,data_tracking[[#This Row],[week]])) -> 240 | Q31: =SUMIFS('2015 sah unit data'!I:I,'2015 sah unit data'!L:L,data_tracking[[#This Row],[year]],'2015 sah unit data'!K:K,data_tracking[[#This Row],[month]],'2015 sah unit data'!J:J,data_tracking[[#This Row],[week]]) -> 19 | R31: =SUMIFS('overhead costs data'!E:E,'overhead costs data'!C:C,data_tracking[[#This Row],[year]],'overhead costs data'!B:B,data_tracking[[#This Row],[month]]) -> 66344.885
A32: 31 | B32: 7 | C32: 2015 | D32: 36.52 | E32: 20.04 | F32: =IFERROR((data_tracking[[#This Row],[overhead]]+SUMIFS('labor costs data'!H:H,'labor costs data'!D:D,data_tracking[[#This Row],[year]],'labor costs data'!A:A,data_tracking[[#This Row],[week]]))/data_tracking[[#This Row],[SAH Completed (Total)]],"") -> 52.33978706 | G32: =IFERROR(SUMIFS('labor costs data'!E:E,'labor costs data'!D:D,data_tracking[[#This Row],[year]],'labor costs data'!A:A,data_tracking[[#This Row],[week]])/data_tracking[[#This Row],[SAH Completed (Total)]],"") -> 24.46266822 | H32: =IFERROR((data_tracking[[#This Row],[overhead]]+SUMIFS(labor_costs[total labor cost],labor_costs[year],data_tracking[[#This Row],[year]],labor_costs[week],data_tracking[[#This Row],[week]]))/data_tracking[[#This Row],[Units Completed (Total)]],"") -> 42.75378892 | I32: =IF(SUM(data_tracking[[#This Row],[111-FILSN1 SAH]],data_tracking[[#This Row],[112-FILSN2 SAH]],data_tracking[[#This Row],[113-FILSN3 SAH]])=0,"",SUM(data_tracking[[#This Row],[111-FILSN1 SAH]],data_tracking[[#This Row],[112-FILSN2 SAH]],data_tracking[[#This Row],[113-FILSN3 SAH]])) -> 5808.62495 | J32: =IF(SUM(data_tracking[[#This Row],[111-FILSN1 Units]],data_tracking[[#This Row],[112-FILSN2 Units]],data_tracking[[#This Row],[113-FILSN3 Units]])=0,"",SUM(data_tracking[[#This Row],[111-FILSN1 Units]],data_tracking[[#This Row],[112-FILSN2 Units]],data_tracking[[#This Row],[113-FILSN3 Units]])) -> 7111 | K32: =IF(SUMIFS('2015 sah unit data'!B:B,'2015 sah unit data'!L:L,data_tracking[[#This Row],[year]],'2015 sah unit data'!K:K,data_tracking[[#This Row],[month]],'2015 sah unit data'!J:J,data_tracking[[#This Row],[week]])=0,"",SUMIFS('2015 sah unit data'!B:B,'2015 sah unit data'!L:L,data_tracking[[#This Row],[year]],'2015 sah unit data'!K:K,data_tracking[[#This Row],[month]],'2015 sah unit data'!J:J,data_tracking[[#This Row],[week]])) -> 3298.267895 | L32: =IF(SUMIFS('2015 sah unit data'!C:C,'2015 sah unit data'!L:L,data_tracking[[#This Row],[year]],'2015 sah unit data'!K:K,data_tracking[[#This Row],[month]],'2015 sah unit data'!J:J,data_tracking[[#This Row],[week]])=0,"",SUMIFS('2015 sah unit data'!C:C,'2015 sah unit data'!L:L,data_tracking[[#This Row],[year]],'2015 sah unit data'!K:K,data_tracking[[#This Row],[month]],'2015 sah unit data'!J:J,data_tracking[[#This Row],[week]])) -> 2270.357055 | M32: =IF(SUMIFS('2015 sah unit data'!D:D,'2015 sah unit data'!L:L,data_tracking[[#This Row],[year]],'2015 sah unit data'!K:K,data_tracking[[#This Row],[month]],'2015 sah unit data'!J:J,data_tracking[[#This Row],[week]])=0,"",SUMIFS('2015 sah unit data'!D:D,'2015 sah unit data'!L:L,data_tracking[[#This Row],[year]],'2015 sah unit data'!K:K,data_tracking[[#This Row],[month]],'2015 sah unit data'!J:J,data_tracking[[#This Row],[week]])) -> 240 | N32: =IF(SUMIFS('2015 sah unit data'!E:E,'2015 sah unit data'!L:L,data_tracking[[#This Row],[year]],'2015 sah unit data'!K:K,data_tracking[[#This Row],[month]],'2015 sah unit data'!J:J,data_tracking[[#This Row],[week]])=0,"",SUMIFS('2015 sah unit data'!E:E,'2015 sah unit data'!L:L,data_tracking[[#This Row],[year]],'2015 sah unit data'!K:K,data_tracking[[#This Row],[month]],'2015 sah unit data'!J:J,data_tracking[[#This Row],[week]])) -> 3224 | O32: =IF(SUMIFS('2015 sah unit data'!F:F,'2015 sah unit data'!L:L,data_tracking[[#This Row],[year]],'2015 sah unit data'!K:K,data_tracking[[#This Row],[month]],'2015 sah unit data'!J:J,data_tracking[[#This Row],[week]])=0,"",SUMIFS('2015 sah unit data'!F:F,'2015 sah unit data'!L:L,data_tracking[[#This Row],[year]],'2015 sah unit data'!K:K,data_tracking[[#This Row],[month]],'2015 sah unit data'!J:J,data_tracking[[#This Row],[week]])) -> 3647 | P32: =IF(SUMIFS('2015 sah unit data'!G:G,'2015 sah unit data'!L:L,data_tracking[[#This Row],[year]],'2015 sah unit data'!K:K,data_tracking[[#This Row],[month]],'2015 sah unit data'!J:J,data_tracking[[#This Row],[week]])=0,"",SUMIFS('2015 sah unit data'!G:G,'2015 sah unit data'!L:L,data_tracking[[#This Row],[year]],'2015 sah unit data'!K:K,data_tracking[[#This Row],[month]],'2015 sah unit data'!J:J,data_tracking[[#This Row],[week]])) -> 240 | Q32: =SUMIFS('2015 sah unit data'!I:I,'2015 sah unit data'!L:L,data_tracking[[#This Row],[year]],'2015 sah unit data'!K:K,data_tracking[[#This Row],[month]],'2015 sah unit data'!J:J,data_tracking[[#This Row],[week]]) -> 19 | R32: =SUMIFS('overhead costs data'!E:E,'overhead costs data'!C:C,data_tracking[[#This Row],[year]],'overhead costs data'!B:B,data_tracking[[#This Row],[month]]) -> 66344.885
A33: 32 | B33: 8 | C33: 2015 | D33: 36.52 | E33: 20.04 | F33: =IFERROR((data_tracking[[#This Row],[overhead]]+SUMIFS('labor costs data'!H:H,'labor costs data'!D:D,data_tracking[[#This Row],[year]],'labor costs data'!A:A,data_tracking[[#This Row],[week]]))/data_tracking[[#This Row],[SAH Completed (Total)]],"") -> 60.62044545 | G33: =IFERROR(SUMIFS('labor costs data'!E:E,'labor costs data'!D:D,data_tracking[[#This Row],[year]],'labor costs data'!A:A,data_tracking[[#This Row],[week]])/data_tracking[[#This Row],[SAH Completed (Total)]],"") -> 27.3944813 | H33: =IFERROR((data_tracking[[#This Row],[overhead]]+SUMIFS(labor_costs[total labor cost],labor_costs[year],data_tracking[[#This Row],[year]],labor_costs[week],data_tracking[[#This Row],[week]]))/data_tracking[[#This Row],[Units Completed (Total)]],"") -> 63.6511499 | I33: =IF(SUM(data_tracking[[#This Row],[111-FILSN1 SAH]],data_tracking[[#This Row],[112-FILSN2 SAH]],data_tracking[[#This Row],[113-FILSN3 SAH]])=0,"",SUM(data_tracking[[#This Row],[111-FILSN1 SAH]],data_tracking[[#This Row],[112-FILSN2 SAH]],data_tracking[[#This Row],[113-FILSN3 SAH]])) -> 5186.974101 | J33: =IF(SUM(data_tracking[[#This Row],[111-FILSN1 Units]],data_tracking[[#This Row],[112-FILSN2 Units]],data_tracking[[#This Row],[113-FILSN3 Units]])=0,"",SUM(data_tracking[[#This Row],[111-FILSN1 Units]],data_tracking[[#This Row],[112-FILSN2 Units]],data_tracking[[#This Row],[113-FILSN3 Units]])) -> 4940 | K33: =IF(SUMIFS('2015 sah unit data'!B:B,'2015 sah unit data'!L:L,data_tracking[[#This Row],[year]],'2015 sah unit data'!K:K,data_tracking[[#This Row],[month]],'2015 sah unit data'!J:J,data_tracking[[#This Row],[week]])=0,"",SUMIFS('2015 sah unit data'!B:B,'2015 sah unit data'!L:L,data_tracking[[#This Row],[year]],'2015 sah unit data'!K:K,data_tracking[[#This Row],[month]],'2015 sah unit data'!J:J,data_tracking[[#This Row],[week]])) -> 3336.73232 | L33: =IF(SUMIFS('2015 sah unit data'!C:C,'2015 sah unit data'!L:L,data_tracking[[#This Row],[year]],'2015 sah unit data'!K:K,data_tracking[[#This Row],[month]],'2015 sah unit data'!J:J,data_tracking[[#This Row],[week]])=0,"",SUMIFS('2015 sah unit data'!C:C,'2015 sah unit data'!L:L,data_tracking[[#This Row],[year]],'2015 sah unit data'!K:K,data_tracking[[#This Row],[month]],'2015 sah unit data'!J:J,data_tracking[[#This Row],[week]])) -> 1071.241781 | M33: =IF(SUMIFS('2015 sah unit data'!D:D,'2015 sah unit data'!L:L,data_tracking[[#This Row],[year]],'2015 sah unit data'!K:K,data_tracking[[#This Row],[month]],'2015 sah unit data'!J:J,data_tracking[[#This Row],[week]])=0,"",SUMIFS('2015 sah unit data'!D:D,'2015 sah unit data'!L:L,data_tracking[[#This Row],[year]],'2015 sah unit data'!K:K,data_tracking[[#This Row],[month]],'2015 sah unit data'!J:J,data_tracking[[#This Row],[week]])) -> 779 | N33: =IF(SUMIFS('2015 sah unit data'!E:E,'2015 sah unit data'!L:L,data_tracking[[#This Row],[year]],'2015 sah unit data'!K:K,data_tracking[[#This Row],[month]],'2015 sah unit data'!J:J,data_tracking[[#This Row],[week]])=0,"",SUMIFS('2015 sah unit data'!E:E,'2015 sah unit data'!L:L,data_tracking[[#This Row],[year]],'2015 sah unit data'!K:K,data_tracking[[#This Row],[month]],'2015 sah unit data'!J:J,data_tracking[[#This Row],[week]])) -> 2802 | O33: =IF(SUMIFS('2015 sah unit data'!F:F,'2015 sah unit data'!L:L,data_tracking[[#This Row],[year]],'2015 sah unit data'!K:K,data_tracking[[#This Row],[month]],'2015 sah unit data'!J:J,data_tracking[[#This Row],[week]])=0,"",SUMIFS('2015 sah unit data'!F:F,'2015 sah unit data'!L:L,data_tracking[[#This Row],[year]],'2015 sah unit data'!K:K,data_tracking[[#This Row],[month]],'2015 sah unit data'!J:J,data_tracking[[#This Row],[week]])) -> 1359 | P33: =IF(SUMIFS('2015 sah unit data'!G:G,'2015 sah unit data'!L:L,data_tracking[[#This Row],[year]],'2015 sah unit data'!K:K,data_tracking[[#This Row],[month]],'2015 sah unit data'!J:J,data_tracking[[#This Row],[week]])=0,"",SUMIFS('2015 sah unit data'!G:G,'2015 sah unit data'!L:L,data_tracking[[#This Row],[year]],'2015 sah unit data'!K:K,data_tracking[[#This Row],[month]],'2015 sah unit data'!J:J,data_tracking[[#This Row],[week]])) -> 779 | Q33: =SUMIFS('2015 sah unit data'!I:I,'2015 sah unit data'!L:L,data_tracking[[#This Row],[year]],'2015 sah unit data'!K:K,data_tracking[[#This Row],[month]],'2015 sah unit data'!J:J,data_tracking[[#This Row],[week]]) -> 16 | R33: =SUMIFS('overhead costs data'!E:E,'overhead costs data'!C:C,data_tracking[[#This Row],[year]],'overhead costs data'!B:B,data_tracking[[#This Row],[month]]) -> 76759.3725
A34: 33 | B34: 8 | C34: 2015 | D34: 36.52 | E34: 20.04 | F34: =IFERROR((data_tracking[[#This Row],[overhead]]+SUMIFS('labor costs data'!H:H,'labor costs data'!D:D,data_tracking[[#This Row],[year]],'labor costs data'!A:A,data_tracking[[#This Row],[week]]))/data_tracking[[#This Row],[SAH Completed (Total)]],"") -> 66.53256885 | G34: =IFERROR(SUMIFS('labor costs data'!E:E,'labor costs data'!D:D,data_tracking[[#This Row],[year]],'labor costs data'!A:A,data_tracking[[#This Row],[week]])/data_tracking[[#This Row],[SAH Completed (Total)]],"") -> 31.0460351 | H34: =IFERROR((data_tracking[[#This Row],[overhead]]+SUMIFS(labor_costs[total labor cost],labor_costs[year],data_tracking[[#This Row],[year]],labor_costs[week],data_tracking[[#This Row],[week]]))/data_tracking[[#This Row],[Units Completed (Total)]],"") -> 69.85884848 | I34: =IF(SUM(data_tracking[[#This Row],[111-FILSN1 SAH]],data_tracking[[#This Row],[112-FILSN2 SAH]],data_tracking[[#This Row],[113-FILSN3 SAH]])=0,"",SUM(data_tracking[[#This Row],[111-FILSN1 SAH]],data_tracking[[#This Row],[112-FILSN2 SAH]],data_tracking[[#This Row],[113-FILSN3 SAH]])) -> 5186.974101 | J34: =IF(SUM(data_tracking[[#This Row],[111-FILSN1 Units]],data_tracking[[#This Row],[112-FILSN2 Units]],data_tracking[[#This Row],[113-FILSN3 Units]])=0,"",SUM(data_tracking[[#This Row],[111-FILSN1 Units]],data_tracking[[#This Row],[112-FILSN2 Units]],data_tracking[[#This Row],[113-FILSN3 Units]])) -> 4940 | K34: =IF(SUMIFS('2015 sah unit data'!B:B,'2015 sah unit data'!L:L,data_tracking[[#This Row],[year]],'2015 sah unit data'!K:K,data_tracking[[#This Row],[month]],'2015 sah unit data'!J:J,data_tracking[[#This Row],[week]])=0,"",SUMIFS('2015 sah unit data'!B:B,'2015 sah unit data'!L:L,data_tracking[[#This Row],[year]],'2015 sah unit data'!K:K,data_tracking[[#This Row],[month]],'2015 sah unit data'!J:J,data_tracking[[#This Row],[week]])) -> 3336.73232 | L34: =IF(SUMIFS('2015 sah unit data'!C:C,'2015 sah unit data'!L:L,data_tracking[[#This Row],[year]],'2015 sah unit data'!K:K,data_tracking[[#This Row],[month]],'2015 sah unit data'!J:J,data_tracking[[#This Row],[week]])=0,"",SUMIFS('2015 sah unit data'!C:C,'2015 sah unit data'!L:L,data_tracking[[#This Row],[year]],'2015 sah unit data'!K:K,data_tracking[[#This Row],[month]],'2015 sah unit data'!J:J,data_tracking[[#This Row],[week]])) -> 1071.241781 | M34: =IF(SUMIFS('2015 sah unit data'!D:D,'2015 sah unit data'!L:L,data_tracking[[#This Row],[year]],'2015 sah unit data'!K:K,data_tracking[[#This Row],[month]],'2015 sah unit data'!J:J,data_tracking[[#This Row],[week]])=0,"",SUMIFS('2015 sah unit data'!D:D,'2015 sah unit data'!L:L,data_tracking[[#This Row],[year]],'2015 sah unit data'!K:K,data_tracking[[#This Row],[month]],'2015 sah unit data'!J:J,data_tracking[[#This Row],[week]])) -> 779 | N34: =IF(SUMIFS('2015 sah unit data'!E:E,'2015 sah unit data'!L:L,data_tracking[[#This Row],[year]],'2015 sah unit data'!K:K,data_tracking[[#This Row],[month]],'2015 sah unit data'!J:J,data_tracking[[#This Row],[week]])=0,"",SUMIFS('2015 sah unit data'!E:E,'2015 sah unit data'!L:L,data_tracking[[#This Row],[year]],'2015 sah unit data'!K:K,data_tracking[[#This Row],[month]],'2015 sah unit data'!J:J,data_tracking[[#This Row],[week]])) -> 2802 | O34: =IF(SUMIFS('2015 sah unit data'!F:F,'2015 sah unit data'!L:L,data_tracking[[#This Row],[year]],'2015 sah unit data'!K:K,data_tracking[[#This Row],[month]],'2015 sah unit data'!J:J,data_tracking[[#This Row],[week]])=0,"",SUMIFS('2015 sah unit data'!F:F,'2015 sah unit data'!L:L,data_tracking[[#This Row],[year]],'2015 sah unit data'!K:K,data_tracking[[#This Row],[month]],'2015 sah unit data'!J:J,data_tracking[[#This Row],[week]])) -> 1359 | P34: =IF(SUMIFS('2015 sah unit data'!G:G,'2015 sah unit data'!L:L,data_tracking[[#This Row],[year]],'2015 sah unit data'!K:K,data_tracking[[#This Row],[month]],'2015 sah unit data'!J:J,data_tracking[[#This Row],[week]])=0,"",SUMIFS('2015 sah unit data'!G:G,'2015 sah unit data'!L:L,data_tracking[[#This Row],[year]],'2015 sah unit data'!K:K,data_tracking[[#This Row],[month]],'2015 sah unit data'!J:J,data_tracking[[#This Row],[week]])) -> 779 | Q34: =SUMIFS('2015 sah unit data'!I:I,'2015 sah unit data'!L:L,data_tracking[[#This Row],[year]],'2015 sah unit data'!K:K,data_tracking[[#This Row],[month]],'2015 sah unit data'!J:J,data_tracking[[#This Row],[week]]) -> 16 | R34: =SUMIFS('overhead costs data'!E:E,'overhead costs data'!C:C,data_tracking[[#This Row],[year]],'overhead costs data'!B:B,data_tracking[[#This Row],[month]]) -> 76759.3725
A35: 34 | B35: 8 | C35: 2015 | D35: 36.52 | E35: 20.04 | F35: =IFERROR((data_tracking[[#This Row],[overhead]]+SUMIFS('labor costs data'!H:H,'labor costs data'!D:D,data_tracking[[#This Row],[year]],'labor costs data'!A:A,data_tracking[[#This Row],[week]]))/data_tracking[[#This Row],[SAH Completed (Total)]],"") -> 66.53256885 | G35: =IFERROR(SUMIFS('labor costs data'!E:E,'labor costs data'!D:D,data_tracking[[#This Row],[year]],'labor costs data'!A:A,data_tracking[[#This Row],[week]])/data_tracking[[#This Row],[SAH Completed (Total)]],"") -> 31.0460351 | H35: =IFERROR((data_tracking[[#This Row],[overhead]]+SUMIFS(labor_costs[total labor cost],labor_costs[year],data_tracking[[#This Row],[year]],labor_costs[week],data_tracking[[#This Row],[week]]))/data_tracking[[#This Row],[Units Completed (Total)]],"") -> 69.85884848 | I35: =IF(SUM(data_tracking[[#This Row],[111-FILSN1 SAH]],data_tracking[[#This Row],[112-FILSN2 SAH]],data_tracking[[#This Row],[113-FILSN3 SAH]])=0,"",SUM(data_tracking[[#This Row],[111-FILSN1 SAH]],data_tracking[[#This Row],[112-FILSN2 SAH]],data_tracking[[#This Row],[113-FILSN3 SAH]])) -> 5186.974101 | J35: =IF(SUM(data_tracking[[#This Row],[111-FILSN1 Units]],data_tracking[[#This Row],[112-FILSN2 Units]],data_tracking[[#This Row],[113-FILSN3 Units]])=0,"",SUM(data_tracking[[#This Row],[111-FILSN1 Units]],data_tracking[[#This Row],[112-FILSN2 Units]],data_tracking[[#This Row],[113-FILSN3 Units]])) -> 4940 | K35: =IF(SUMIFS('2015 sah unit data'!B:B,'2015 sah unit data'!L:L,data_tracking[[#This Row],[year]],'2015 sah unit data'!K:K,data_tracking[[#This Row],[month]],'2015 sah unit data'!J:J,data_tracking[[#This Row],[week]])=0,"",SUMIFS('2015 sah unit data'!B:B,'2015 sah unit data'!L:L,data_tracking[[#This Row],[year]],'2015 sah unit data'!K:K,data_tracking[[#This Row],[month]],'2015 sah unit data'!J:J,data_tracking[[#This Row],[week]])) -> 3336.73232 | L35: =IF(SUMIFS('2015 sah unit data'!C:C,'2015 sah unit data'!L:L,data_tracking[[#This Row],[year]],'2015 sah unit data'!K:K,data_tracking[[#This Row],[month]],'2015 sah unit data'!J:J,data_tracking[[#This Row],[week]])=0,"",SUMIFS('2015 sah unit data'!C:C,'2015 sah unit data'!L:L,data_tracking[[#This Row],[year]],'2015 sah unit data'!K:K,data_tracking[[#This Row],[month]],'2015 sah unit data'!J:J,data_tracking[[#This Row],[week]])) -> 1071.241781 | M35: =IF(SUMIFS('2015 sah unit data'!D:D,'2015 sah unit data'!L:L,data_tracking[[#This Row],[year]],'2015 sah unit data'!K:K,data_tracking[[#This Row],[month]],'2015 sah unit data'!J:J,data_tracking[[#This Row],[week]])=0,"",SUMIFS('2015 sah unit data'!D:D,'2015 sah unit data'!L:L,data_tracking[[#This Row],[year]],'2015 sah unit data'!K:K,data_tracking[[#This Row],[month]],'2015 sah unit data'!J:J,data_tracking[[#This Row],[week]])) -> 779 | N35: =IF(SUMIFS('2015 sah unit data'!E:E,'2015 sah unit data'!L:L,data_tracking[[#This Row],[year]],'2015 sah unit data'!K:K,data_tracking[[#This Row],[month]],'2015 sah unit data'!J:J,data_tracking[[#This Row],[week]])=0,"",SUMIFS('2015 sah unit data'!E:E,'2015 sah unit data'!L:L,data_tracking[[#This Row],[year]],'2015 sah unit data'!K:K,data_tracking[[#This Row],[month]],'2015 sah unit data'!J:J,data_tracking[[#This Row],[week]])) -> 2802 | O35: =IF(SUMIFS('2015 sah unit data'!F:F,'2015 sah unit data'!L:L,data_tracking[[#This Row],[year]],'2015 sah unit data'!K:K,data_tracking[[#This Row],[month]],'2015 sah unit data'!J:J,data_tracking[[#This Row],[week]])=0,"",SUMIFS('2015 sah unit data'!F:F,'2015 sah unit data'!L:L,data_tracking[[#This Row],[year]],'2015 sah unit data'!K:K,data_tracking[[#This Row],[month]],'2015 sah unit data'!J:J,data_tracking[[#This Row],[week]])) -> 1359 | P35: =IF(SUMIFS('2015 sah unit data'!G:G,'2015 sah unit data'!L:L,data_tracking[[#This Row],[year]],'2015 sah unit data'!K:K,data_tracking[[#This Row],[month]],'2015 sah unit data'!J:J,data_tracking[[#This Row],[week]])=0,"",SUMIFS('2015 sah unit data'!G:G,'2015 sah unit data'!L:L,data_tracking[[#This Row],[year]],'2015 sah unit data'!K:K,data_tracking[[#This Row],[month]],'2015 sah unit data'!J:J,data_tracking[[#This Row],[week]])) -> 779 | Q35: =SUMIFS('2015 sah unit data'!I:I,'2015 sah unit data'!L:L,data_tracking[[#This Row],[year]],'2015 sah unit data'!K:K,data_tracking[[#This Row],[month]],'2015 sah unit data'!J:J,data_tracking[[#This Row],[week]]) -> 16 | R35: =SUMIFS('overhead costs data'!E:E,'overhead costs data'!C:C,data_tracking[[#This Row],[year]],'overhead costs data'!B:B,data_tracking[[#This Row],[month]]) -> 76759.3725
A36: 35 | B36: 8 | C36: 2015 | D36: 36.52 | E36: 20.04 | F36: =IFERROR((data_tracking[[#This Row],[overhead]]+SUMIFS('labor costs data'!H:H,'labor costs data'!D:D,data_tracking[[#This Row],[year]],'labor costs data'!A:A,data_tracking[[#This Row],[week]]))/data_tracking[[#This Row],[SAH Completed (Total)]],"") -> 62.49851131 | G36: =IFERROR(SUMIFS('labor costs data'!E:E,'labor costs data'!D:D,data_tracking[[#This Row],[year]],'labor costs data'!A:A,data_tracking[[#This Row],[week]])/data_tracking[[#This Row],[SAH Completed (Total)]],"") -> 28.04299331 | H36: =IFERROR((data_tracking[[#This Row],[overhead]]+SUMIFS(labor_costs[total labor cost],labor_costs[year],data_tracking[[#This Row],[year]],labor_costs[week],data_tracking[[#This Row],[week]]))/data_tracking[[#This Row],[Units Completed (Total)]],"") -> 65.62310921 | I36: =IF(SUM(data_tracking[[#This Row],[111-FILSN1 SAH]],data_tracking[[#This Row],[112-FILSN2 SAH]],data_tracking[[#This Row],[113-FILSN3 SAH]])=0,"",SUM(data_tracking[[#This Row],[111-FILSN1 SAH]],data_tracking[[#This Row],[112-FILSN2 SAH]],data_tracking[[#This Row],[113-FILSN3 SAH]])) -> 5186.974101 | J36: =IF(SUM(data_tracking[[#This Row],[111-FILSN1 Units]],data_tracking[[#This Row],[112-FILSN2 Units]],data_tracking[[#This Row],[113-FILSN3 Units]])=0,"",SUM(data_tracking[[#This Row],[111-FILSN1 Units]],data_tracking[[#This Row],[112-FILSN2 Units]],data_tracking[[#This Row],[113-FILSN3 Units]])) -> 4940 | K36: =IF(SUMIFS('2015 sah unit data'!B:B,'2015 sah unit data'!L:L,data_tracking[[#This Row],[year]],'2015 sah unit data'!K:K,data_tracking[[#This Row],[month]],'2015 sah unit data'!J:J,data_tracking[[#This Row],[week]])=0,"",SUMIFS('2015 sah unit data'!B:B,'2015 sah unit data'!L:L,data_tracking[[#This Row],[year]],'2015 sah unit data'!K:K,data_tracking[[#This Row],[month]],'2015 sah unit data'!J:J,data_tracking[[#This Row],[week]])) -> 3336.73232 | L36: =IF(SUMIFS('2015 sah unit data'!C:C,'2015 sah unit data'!L:L,data_tracking[[#This Row],[year]],'2015 sah unit data'!K:K,data_tracking[[#This Row],[month]],'2015 sah unit data'!J:J,data_tracking[[#This Row],[week]])=0,"",SUMIFS('2015 sah unit data'!C:C,'2015 sah unit data'!L:L,data_tracking[[#This Row],[year]],'2015 sah unit data'!K:K,data_tracking[[#This Row],[month]],'2015 sah unit data'!J:J,data_tracking[[#This Row],[week]])) -> 1071.241781 | M36: =IF(SUMIFS('2015 sah unit data'!D:D,'2015 sah unit data'!L:L,data_tracking[[#This Row],[year]],'2015 sah unit data'!K:K,data_tracking[[#This Row],[month]],'2015 sah unit data'!J:J,data_tracking[[#This Row],[week]])=0,"",SUMIFS('2015 sah unit data'!D:D,'2015 sah unit data'!L:L,data_tracking[[#This Row],[year]],'2015 sah unit data'!K:K,data_tracking[[#This Row],[month]],'2015 sah unit data'!J:J,data_tracking[[#This Row],[week]])) -> 779 | N36: =IF(SUMIFS('2015 sah unit data'!E:E,'2015 sah unit data'!L:L,data_tracking[[#This Row],[year]],'2015 sah unit data'!K:K,data_tracking[[#This Row],[month]],'2015 sah unit data'!J:J,data_tracking[[#This Row],[week]])=0,"",SUMIFS('2015 sah unit data'!E:E,'2015 sah unit data'!L:L,data_tracking[[#This Row],[year]],'2015 sah unit data'!K:K,data_tracking[[#This Row],[month]],'2015 sah unit data'!J:J,data_tracking[[#This Row],[week]])) -> 2802 | O36: =IF(SUMIFS('2015 sah unit data'!F:F,'2015 sah unit data'!L:L,data_tracking[[#This Row],[year]],'2015 sah unit data'!K:K,data_tracking[[#This Row],[month]],'2015 sah unit data'!J:J,data_tracking[[#This Row],[week]])=0,"",SUMIFS('2015 sah unit data'!F:F,'2015 sah unit data'!L:L,data_tracking[[#This Row],[year]],'2015 sah unit data'!K:K,data_tracking[[#This Row],[month]],'2015 sah unit data'!J:J,data_tracking[[#This Row],[week]])) -> 1359 | P36: =IF(SUMIFS('2015 sah unit data'!G:G,'2015 sah unit data'!L:L,data_tracking[[#This Row],[year]],'2015 sah unit data'!K:K,data_tracking[[#This Row],[month]],'2015 sah unit data'!J:J,data_tracking[[#This Row],[week]])=0,"",SUMIFS('2015 sah unit data'!G:G,'2015 sah unit data'!L:L,data_tracking[[#This Row],[year]],'2015 sah unit data'!K:K,data_tracking[[#This Row],[month]],'2015 sah unit data'!J:J,data_tracking[[#This Row],[week]])) -> 779 | Q36: =SUMIFS('2015 sah unit data'!I:I,'2015 sah unit data'!L:L,data_tracking[[#This Row],[year]],'2015 sah unit data'!K:K,data_tracking[[#This Row],[month]],'2015 sah unit data'!J:J,data_tracking[[#This Row],[week]]) -> 16 | R36: =SUMIFS('overhead costs data'!E:E,'overhead costs data'!C:C,data_tracking[[#This Row],[year]],'overhead costs data'!B:B,data_tracking[[#This Row],[month]]) -> 76759.3725
A37: 36 | B37: 8 | C37: 2015 | D37: 36.52 | E37: 20.04 | F37: =IFERROR((data_tracking[[#This Row],[overhead]]+SUMIFS('labor costs data'!H:H,'labor costs data'!D:D,data_tracking[[#This Row],[year]],'labor costs data'!A:A,data_tracking[[#This Row],[week]]))/data_tracking[[#This Row],[SAH Completed (Total)]],"") -> 62.49851131 | G37: =IFERROR(SUMIFS('labor costs data'!E:E,'labor costs data'!D:D,data_tracking[[#This Row],[year]],'labor costs data'!A:A,data_tracking[[#This Row],[week]])/data_tracking[[#This Row],[SAH Completed (Total)]],"") -> 28.04299331 | H37: =IFERROR((data_tracking[[#This Row],[overhead]]+SUMIFS(labor_costs[total labor cost],labor_costs[year],data_tracking[[#This Row],[year]],labor_costs[week],data_tracking[[#This Row],[week]]))/data_tracking[[#This Row],[Units Completed (Total)]],"") -> 65.62310921 | I37: =IF(SUM(data_tracking[[#This Row],[111-FILSN1 SAH]],data_tracking[[#This Row],[112-FILSN2 SAH]],data_tracking[[#This Row],[113-FILSN3 SAH]])=0,"",SUM(data_tracking[[#This Row],[111-FILSN1 SAH]],data_tracking[[#This Row],[112-FILSN2 SAH]],data_tracking[[#This Row],[113-FILSN3 SAH]])) -> 5186.974101 | J37: =IF(SUM(data_tracking[[#This Row],[111-FILSN1 Units]],data_tracking[[#This Row],[112-FILSN2 Units]],data_tracking[[#This Row],[113-FILSN3 Units]])=0,"",SUM(data_tracking[[#This Row],[111-FILSN1 Units]],data_tracking[[#This Row],[112-FILSN2 Units]],data_tracking[[#This Row],[113-FILSN3 Units]])) -> 4940 | K37: =IF(SUMIFS('2015 sah unit data'!B:B,'2015 sah unit data'!L:L,data_tracking[[#This Row],[year]],'2015 sah unit data'!K:K,data_tracking[[#This Row],[month]],'2015 sah unit data'!J:J,data_tracking[[#This Row],[week]])=0,"",SUMIFS('2015 sah unit data'!B:B,'2015 sah unit data'!L:L,data_tracking[[#This Row],[year]],'2015 sah unit data'!K:K,data_tracking[[#This Row],[month]],'2015 sah unit data'!J:J,data_tracking[[#This Row],[week]])) -> 3336.73232 | L37: =IF(SUMIFS('2015 sah unit data'!C:C,'2015 sah unit data'!L:L,data_tracking[[#This Row],[year]],'2015 sah unit data'!K:K,data_tracking[[#This Row],[month]],'2015 sah unit data'!J:J,data_tracking[[#This Row],[week]])=0,"",SUMIFS('2015 sah unit data'!C:C,'2015 sah unit data'!L:L,data_tracking[[#This Row],[year]],'2015 sah unit data'!K:K,data_tracking[[#This Row],[month]],'2015 sah unit data'!J:J,data_tracking[[#This Row],[week]])) -> 1071.241781 | M37: =IF(SUMIFS('2015 sah unit data'!D:D,'2015 sah unit data'!L:L,data_tracking[[#This Row],[year]],'2015 sah unit data'!K:K,data_tracking[[#This Row],[month]],'2015 sah unit data'!J:J,data_tracking[[#This Row],[week]])=0,"",SUMIFS('2015 sah unit data'!D:D,'2015 sah unit data'!L:L,data_tracking[[#This Row],[year]],'2015 sah unit data'!K:K,data_tracking[[#This Row],[month]],'2015 sah unit data'!J:J,data_tracking[[#This Row],[week]])) -> 779 | N37: =IF(SUMIFS('2015 sah unit data'!E:E,'2015 sah unit data'!L:L,data_tracking[[#This Row],[year]],'2015 sah unit data'!K:K,data_tracking[[#This Row],[month]],'2015 sah unit data'!J:J,data_tracking[[#This Row],[week]])=0,"",SUMIFS('2015 sah unit data'!E:E,'2015 sah unit data'!L:L,data_tracking[[#This Row],[year]],'2015 sah unit data'!K:K,data_tracking[[#This Row],[month]],'2015 sah unit data'!J:J,data_tracking[[#This Row],[week]])) -> 2802 | O37: =IF(SUMIFS('2015 sah unit data'!F:F,'2015 sah unit data'!L:L,data_tracking[[#This Row],[year]],'2015 sah unit data'!K:K,data_tracking[[#This Row],[month]],'2015 sah unit data'!J:J,data_tracking[[#This Row],[week]])=0,"",SUMIFS('2015 sah unit data'!F:F,'2015 sah unit data'!L:L,data_tracking[[#This Row],[year]],'2015 sah unit data'!K:K,data_tracking[[#This Row],[month]],'2015 sah unit data'!J:J,data_tracking[[#This Row],[week]])) -> 1359 | P37: =IF(SUMIFS('2015 sah unit data'!G:G,'2015 sah unit data'!L:L,data_tracking[[#This Row],[year]],'2015 sah unit data'!K:K,data_tracking[[#This Row],[month]],'2015 sah unit data'!J:J,data_tracking[[#This Row],[week]])=0,"",SUMIFS('2015 sah unit data'!G:G,'2015 sah unit data'!L:L,data_tracking[[#This Row],[year]],'2015 sah unit data'!K:K,data_tracking[[#This Row],[month]],'2015 sah unit data'!J:J,data_tracking[[#This Row],[week]])) -> 779 | Q37: =SUMIFS('2015 sah unit data'!I:I,'2015 sah unit data'!L:L,data_tracking[[#This Row],[year]],'2015 sah unit data'!K:K,data_tracking[[#This Row],[month]],'2015 sah unit data'!J:J,data_tracking[[#This Row],[week]]) -> 16 | R37: =SUMIFS('overhead costs data'!E:E,'overhead costs data'!C:C,data_tracking[[#This Row],[year]],'overhead costs data'!B:B,data_tracking[[#This Row],[month]]) -> 76759.3725
A38: 37 | B38: 9 | C38: 2015 | D38: 36.52 | E38: 20.04 | F38: =IFERROR((data_tracking[[#This Row],[overhead]]+SUMIFS('labor costs data'!H:H,'labor costs data'!D:D,data_tracking[[#This Row],[year]],'labor costs data'!A:A,data_tracking[[#This Row],[week]]))/data_tracking[[#This Row],[SAH Completed (Total)]],"") -> 58.94545618 | G38: =IFERROR(SUMIFS('labor costs data'!E:E,'labor costs data'!D:D,data_tracking[[#This Row],[year]],'labor costs data'!A:A,data_tracking[[#This Row],[week]])/data_tracking[[#This Row],[SAH Completed (Total)]],"") -> 26.13526243 | H38: =IFERROR((data_tracking[[#This Row],[overhead]]+SUMIFS(labor_costs[total labor cost],labor_costs[year],data_tracking[[#This Row],[year]],labor_costs[week],data_tracking[[#This Row],[week]]))/data_tracking[[#This Row],[Units Completed (Total)]],"") -> 56.4232149 | I38: =IF(SUM(data_tracking[[#This Row],[111-FILSN1 SAH]],data_tracking[[#This Row],[112-FILSN2 SAH]],data_tracking[[#This Row],[113-FILSN3 SAH]])=0,"",SUM(data_tracking[[#This Row],[111-FILSN1 SAH]],data_tracking[[#This Row],[112-FILSN2 SAH]],data_tracking[[#This Row],[113-FILSN3 SAH]])) -> 5242.642402 | J38: =IF(SUM(data_tracking[[#This Row],[111-FILSN1 Units]],data_tracking[[#This Row],[112-FILSN2 Units]],data_tracking[[#This Row],[113-FILSN3 Units]])=0,"",SUM(data_tracking[[#This Row],[111-FILSN1 Units]],data_tracking[[#This Row],[112-FILSN2 Units]],data_tracking[[#This Row],[113-FILSN3 Units]])) -> 5477 | K38: =IF(SUMIFS('2015 sah unit data'!B:B,'2015 sah unit data'!L:L,data_tracking[[#This Row],[year]],'2015 sah unit data'!K:K,data_tracking[[#This Row],[month]],'2015 sah unit data'!J:J,data_tracking[[#This Row],[week]])=0,"",SUMIFS('2015 sah unit data'!B:B,'2015 sah unit data'!L:L,data_tracking[[#This Row],[year]],'2015 sah unit data'!K:K,data_tracking[[#This Row],[month]],'2015 sah unit data'!J:J,data_tracking[[#This Row],[week]])) -> 3532.990579 | L38: =IF(SUMIFS('2015 sah unit data'!C:C,'2015 sah unit data'!L:L,data_tracking[[#This Row],[year]],'2015 sah unit data'!K:K,data_tracking[[#This Row],[month]],'2015 sah unit data'!J:J,data_tracking[[#This Row],[week]])=0,"",SUMIFS('2015 sah unit data'!C:C,'2015 sah unit data'!L:L,data_tracking[[#This Row],[year]],'2015 sah unit data'!K:K,data_tracking[[#This Row],[month]],'2015 sah unit data'!J:J,data_tracking[[#This Row],[week]])) -> 1709.651823 | M38: =IF(SUMIFS('2015 sah unit data'!D:D,'2015 sah unit data'!L:L,data_tracking[[#This Row],[year]],'2015 sah unit data'!K:K,data_tracking[[#This Row],[month]],'2015 sah unit data'!J:J,data_tracking[[#This Row],[week]])=0,"",SUMIFS('2015 sah unit data'!D:D,'2015 sah unit data'!L:L,data_tracking[[#This Row],[year]],'2015 sah unit data'!K:K,data_tracking[[#This Row],[month]],'2015 sah unit data'!J:J,data_tracking[[#This Row],[week]])) ->  | N38: =IF(SUMIFS('2015 sah unit data'!E:E,'2015 sah unit data'!L:L,data_tracking[[#This Row],[year]],'2015 sah unit data'!K:K,data_tracking[[#This Row],[month]],'2015 sah unit data'!J:J,data_tracking[[#This Row],[week]])=0,"",SUMIFS('2015 sah unit data'!E:E,'2015 sah unit data'!L:L,data_tracking[[#This Row],[year]],'2015 sah unit data'!K:K,data_tracking[[#This Row],[month]],'2015 sah unit data'!J:J,data_tracking[[#This Row],[week]])) -> 3210 | O38: =IF(SUMIFS('2015 sah unit data'!F:F,'2015 sah unit data'!L:L,data_tracking[[#This Row],[year]],'2015 sah unit data'!K:K,data_tracking[[#This Row],[month]],'2015 sah unit data'!J:J,data_tracking[[#This Row],[week]])=0,"",SUMIFS('2015 sah unit data'!F:F,'2015 sah unit data'!L:L,data_tracking[[#This Row],[year]],'2015 sah unit data'!K:K,data_tracking[[#This Row],[month]],'2015 sah unit data'!J:J,data_tracking[[#This Row],[week]])) -> 2267 | P38: =IF(SUMIFS('2015 sah unit data'!G:G,'2015 sah unit data'!L:L,data_tracking[[#This Row],[year]],'2015 sah unit data'!K:K,data_tracking[[#This Row],[month]],'2015 sah unit data'!J:J,data_tracking[[#This Row],[week]])=0,"",SUMIFS('2015 sah unit data'!G:G,'2015 sah unit data'!L:L,data_tracking[[#This Row],[year]],'2015 sah unit data'!K:K,data_tracking[[#This Row],[month]],'2015 sah unit data'!J:J,data_tracking[[#This Row],[week]])) ->  | Q38: =SUMIFS('2015 sah unit data'!I:I,'2015 sah unit data'!L:L,data_tracking[[#This Row],[year]],'2015 sah unit data'!K:K,data_tracking[[#This Row],[month]],'2015 sah unit data'!J:J,data_tracking[[#This Row],[week]]) -> 20 | R38: =SUMIFS('overhead costs data'!E:E,'overhead costs data'!C:C,data_tracking[[#This Row],[year]],'overhead costs data'!B:B,data_tracking[[#This Row],[month]]) -> 70330.3
A39: 38 | B39: 9 | C39: 2015 | D39: 36.52 | E39: 20.04 | F39: =IFERROR((data_tracking[[#This Row],[overhead]]+SUMIFS('labor costs data'!H:H,'labor costs data'!D:D,data_tracking[[#This Row],[year]],'labor costs data'!A:A,data_tracking[[#This Row],[week]]))/data_tracking[[#This Row],[SAH Completed (Total)]],"") -> 58.94545618 | G39: =IFERROR(SUMIFS('labor costs data'!E:E,'labor costs data'!D:D,data_tracking[[#This Row],[year]],'labor costs data'!A:A,data_tracking[[#This Row],[week]])/data_tracking[[#This Row],[SAH Completed (Total)]],"") -> 26.13526243 | H39: =IFERROR((data_tracking[[#This Row],[overhead]]+SUMIFS(labor_costs[total labor cost],labor_costs[year],data_tracking[[#This Row],[year]],labor_costs[week],data_tracking[[#This Row],[week]]))/data_tracking[[#This Row],[Units Completed (Total)]],"") -> 56.4232149 | I39: =IF(SUM(data_tracking[[#This Row],[111-FILSN1 SAH]],data_tracking[[#This Row],[112-FILSN2 SAH]],data_tracking[[#This Row],[113-FILSN3 SAH]])=0,"",SUM(data_tracking[[#This Row],[111-FILSN1 SAH]],data_tracking[[#This Row],[112-FILSN2 SAH]],data_tracking[[#This Row],[113-FILSN3 SAH]])) -> 5242.642402 | J39: =IF(SUM(data_tracking[[#This Row],[111-FILSN1 Units]],data_tracking[[#This Row],[112-FILSN2 Units]],data_tracking[[#This Row],[113-FILSN3 Units]])=0,"",SUM(data_tracking[[#This Row],[111-FILSN1 Units]],data_tracking[[#This Row],[112-FILSN2 Units]],data_tracking[[#This Row],[113-FILSN3 Units]])) -> 5477 | K39: =IF(SUMIFS('2015 sah unit data'!B:B,'2015 sah unit data'!L:L,data_tracking[[#This Row],[year]],'2015 sah unit data'!K:K,data_tracking[[#This Row],[month]],'2015 sah unit data'!J:J,data_tracking[[#This Row],[week]])=0,"",SUMIFS('2015 sah unit data'!B:B,'2015 sah unit data'!L:L,data_tracking[[#This Row],[year]],'2015 sah unit data'!K:K,data_tracking[[#This Row],[month]],'2015 sah unit data'!J:J,data_tracking[[#This Row],[week]])) -> 3532.990579 | L39: =IF(SUMIFS('2015 sah unit data'!C:C,'2015 sah unit data'!L:L,data_tracking[[#This Row],[year]],'2015 sah unit data'!K:K,data_tracking[[#This Row],[month]],'2015 sah unit data'!J:J,data_tracking[[#This Row],[week]])=0,"",SUMIFS('2015 sah unit data'!C:C,'2015 sah unit data'!L:L,data_tracking[[#This Row],[year]],'2015 sah unit data'!K:K,data_tracking[[#This Row],[month]],'2015 sah unit data'!J:J,data_tracking[[#This Row],[week]])) -> 1709.651823 | M39: =IF(SUMIFS('2015 sah unit data'!D:D,'2015 sah unit data'!L:L,data_tracking[[#This Row],[year]],'2015 sah unit data'!K:K,data_tracking[[#This Row],[month]],'2015 sah unit data'!J:J,data_tracking[[#This Row],[week]])=0,"",SUMIFS('2015 sah unit data'!D:D,'2015 sah unit data'!L:L,data_tracking[[#This Row],[year]],'2015 sah unit data'!K:K,data_tracking[[#This Row],[month]],'2015 sah unit data'!J:J,data_tracking[[#This Row],[week]])) ->  | N39: =IF(SUMIFS('2015 sah unit data'!E:E,'2015 sah unit data'!L:L,data_tracking[[#This Row],[year]],'2015 sah unit data'!K:K,data_tracking[[#This Row],[month]],'2015 sah unit data'!J:J,data_tracking[[#This Row],[week]])=0,"",SUMIFS('2015 sah unit data'!E:E,'2015 sah unit data'!L:L,data_tracking[[#This Row],[year]],'2015 sah unit data'!K:K,data_tracking[[#This Row],[month]],'2015 sah unit data'!J:J,data_tracking[[#This Row],[week]])) -> 3210 | O39: =IF(SUMIFS('2015 sah unit data'!F:F,'2015 sah unit data'!L:L,data_tracking[[#This Row],[year]],'2015 sah unit data'!K:K,data_tracking[[#This Row],[month]],'2015 sah unit data'!J:J,data_tracking[[#This Row],[week]])=0,"",SUMIFS('2015 sah unit data'!F:F,'2015 sah unit data'!L:L,data_tracking[[#This Row],[year]],'2015 sah unit data'!K:K,data_tracking[[#This Row],[month]],'2015 sah unit data'!J:J,data_tracking[[#This Row],[week]])) -> 2267 | P39: =IF(SUMIFS('2015 sah unit data'!G:G,'2015 sah unit data'!L:L,data_tracking[[#This Row],[year]],'2015 sah unit data'!K:K,data_tracking[[#This Row],[month]],'2015 sah unit data'!J:J,data_tracking[[#This Row],[week]])=0,"",SUMIFS('2015 sah unit data'!G:G,'2015 sah unit data'!L:L,data_tracking[[#This Row],[year]],'2015 sah unit data'!K:K,data_tracking[[#This Row],[month]],'2015 sah unit data'!J:J,data_tracking[[#This Row],[week]])) ->  | Q39: =SUMIFS('2015 sah unit data'!I:I,'2015 sah unit data'!L:L,data_tracking[[#This Row],[year]],'2015 sah unit data'!K:K,data_tracking[[#This Row],[month]],'2015 sah unit data'!J:J,data_tracking[[#This Row],[week]]) -> 20 | R39: =SUMIFS('overhead costs data'!E:E,'overhead costs data'!C:C,data_tracking[[#This Row],[year]],'overhead costs data'!B:B,data_tracking[[#This Row],[month]]) -> 70330.3
A40: 39 | B40: 9 | C40: 2015 | D40: 36.52 | E40: 20.04 | F40: =IFERROR((data_tracking[[#This Row],[overhead]]+SUMIFS('labor costs data'!H:H,'labor costs data'!D:D,data_tracking[[#This Row],[year]],'labor costs data'!A:A,data_tracking[[#This Row],[week]]))/data_tracking[[#This Row],[SAH Completed (Total)]],"") -> 58.14805915 | G40: =IFERROR(SUMIFS('labor costs data'!E:E,'labor costs data'!D:D,data_tracking[[#This Row],[year]],'labor costs data'!A:A,data_tracking[[#This Row],[week]])/data_tracking[[#This Row],[SAH Completed (Total)]],"") -> 25.73950685 | H40: =IFERROR((data_tracking[[#This Row],[overhead]]+SUMIFS(labor_costs[total labor cost],labor_costs[year],data_tracking[[#This Row],[year]],labor_costs[week],data_tracking[[#This Row],[week]]))/data_tracking[[#This Row],[Units Completed (Total)]],"") -> 55.65993801 | I40: =IF(SUM(data_tracking[[#This Row],[111-FILSN1 SAH]],data_tracking[[#This Row],[112-FILSN2 SAH]],data_tracking[[#This Row],[113-FILSN3 SAH]])=0,"",SUM(data_tracking[[#This Row],[111-FILSN1 SAH]],data_tracking[[#This Row],[112-FILSN2 SAH]],data_tracking[[#This Row],[113-FILSN3 SAH]])) -> 5242.642402 | J40: =IF(SUM(data_tracking[[#This Row],[111-FILSN1 Units]],data_tracking[[#This Row],[112-FILSN2 Units]],data_tracking[[#This Row],[113-FILSN3 Units]])=0,"",SUM(data_tracking[[#This Row],[111-FILSN1 Units]],data_tracking[[#This Row],[112-FILSN2 Units]],data_tracking[[#This Row],[113-FILSN3 Units]])) -> 5477 | K40: =IF(SUMIFS('2015 sah unit data'!B:B,'2015 sah unit data'!L:L,data_tracking[[#This Row],[year]],'2015 sah unit data'!K:K,data_tracking[[#This Row],[month]],'2015 sah unit data'!J:J,data_tracking[[#This Row],[week]])=0,"",SUMIFS('2015 sah unit data'!B:B,'2015 sah unit data'!L:L,data_tracking[[#This Row],[year]],'2015 sah unit data'!K:K,data_tracking[[#This Row],[month]],'2015 sah unit data'!J:J,data_tracking[[#This Row],[week]])) -> 3532.990579 | L40: =IF(SUMIFS('2015 sah unit data'!C:C,'2015 sah unit data'!L:L,data_tracking[[#This Row],[year]],'2015 sah unit data'!K:K,data_tracking[[#This Row],[month]],'2015 sah unit data'!J:J,data_tracking[[#This Row],[week]])=0,"",SUMIFS('2015 sah unit data'!C:C,'2015 sah unit data'!L:L,data_tracking[[#This Row],[year]],'2015 sah unit data'!K:K,data_tracking[[#This Row],[month]],'2015 sah unit data'!J:J,data_tracking[[#This Row],[week]])) -> 1709.651823 | M40: =IF(SUMIFS('2015 sah unit data'!D:D,'2015 sah unit data'!L:L,data_tracking[[#This Row],[year]],'2015 sah unit data'!K:K,data_tracking[[#This Row],[month]],'2015 sah unit data'!J:J,data_tracking[[#This Row],[week]])=0,"",SUMIFS('2015 sah unit data'!D:D,'2015 sah unit data'!L:L,data_tracking[[#This Row],[year]],'2015 sah unit data'!K:K,data_tracking[[#This Row],[month]],'2015 sah unit data'!J:J,data_tracking[[#This Row],[week]])) ->  | N40: =IF(SUMIFS('2015 sah unit data'!E:E,'2015 sah unit data'!L:L,data_tracking[[#This Row],[year]],'2015 sah unit data'!K:K,data_tracking[[#This Row],[month]],'2015 sah unit data'!J:J,data_tracking[[#This Row],[week]])=0,"",SUMIFS('2015 sah unit data'!E:E,'2015 sah unit data'!L:L,data_tracking[[#This Row],[year]],'2015 sah unit data'!K:K,data_tracking[[#This Row],[month]],'2015 sah unit data'!J:J,data_tracking[[#This Row],[week]])) -> 3210 | O40: =IF(SUMIFS('2015 sah unit data'!F:F,'2015 sah unit data'!L:L,data_tracking[[#This Row],[year]],'2015 sah unit data'!K:K,data_tracking[[#This Row],[month]],'2015 sah unit data'!J:J,data_tracking[[#This Row],[week]])=0,"",SUMIFS('2015 sah unit data'!F:F,'2015 sah unit data'!L:L,data_tracking[[#This Row],[year]],'2015 sah unit data'!K:K,data_tracking[[#This Row],[month]],'2015 sah unit data'!J:J,data_tracking[[#This Row],[week]])) -> 2267 | P40: =IF(SUMIFS('2015 sah unit data'!G:G,'2015 sah unit data'!L:L,data_tracking[[#This Row],[year]],'2015 sah unit data'!K:K,data_tracking[[#This Row],[month]],'2015 sah unit data'!J:J,data_tracking[[#This Row],[week]])=0,"",SUMIFS('2015 sah unit data'!G:G,'2015 sah unit data'!L:L,data_tracking[[#This Row],[year]],'2015 sah unit data'!K:K,data_tracking[[#This Row],[month]],'2015 sah unit data'!J:J,data_tracking[[#This Row],[week]])) ->  | Q40: =SUMIFS('2015 sah unit data'!I:I,'2015 sah unit data'!L:L,data_tracking[[#This Row],[year]],'2015 sah unit data'!K:K,data_tracking[[#This Row],[month]],'2015 sah unit data'!J:J,data_tracking[[#This Row],[week]]) -> 20 | R40: =SUMIFS('overhead costs data'!E:E,'overhead costs data'!C:C,data_tracking[[#This Row],[year]],'overhead costs data'!B:B,data_tracking[[#This Row],[month]]) -> 70330.3
A41: 40 | B41: 9 | C41: 2015 | D41: 36.52 | E41: 20.04 | F41: =IFERROR((data_tracking[[#This Row],[overhead]]+SUMIFS('labor costs data'!H:H,'labor costs data'!D:D,data_tracking[[#This Row],[year]],'labor costs data'!A:A,data_tracking[[#This Row],[week]]))/data_tracking[[#This Row],[SAH Completed (Total)]],"") -> 58.14805915 | G41: =IFERROR(SUMIFS('labor costs data'!E:E,'labor costs data'!D:D,data_tracking[[#This Row],[year]],'labor costs data'!A:A,data_tracking[[#This Row],[week]])/data_tracking[[#This Row],[SAH Completed (Total)]],"") -> 25.73950685 | H41: =IFERROR((data_tracking[[#This Row],[overhead]]+SUMIFS(labor_costs[total labor cost],labor_costs[year],data_tracking[[#This Row],[year]],labor_costs[week],data_tracking[[#This Row],[week]]))/data_tracking[[#This Row],[Units Completed (Total)]],"") -> 55.65993801 | I41: =IF(SUM(data_tracking[[#This Row],[111-FILSN1 SAH]],data_tracking[[#This Row],[112-FILSN2 SAH]],data_tracking[[#This Row],[113-FILSN3 SAH]])=0,"",SUM(data_tracking[[#This Row],[111-FILSN1 SAH]],data_tracking[[#This Row],[112-FILSN2 SAH]],data_tracking[[#This Row],[113-FILSN3 SAH]])) -> 5242.642402 | J41: =IF(SUM(data_tracking[[#This Row],[111-FILSN1 Units]],data_tracking[[#This Row],[112-FILSN2 Units]],data_tracking[[#This Row],[113-FILSN3 Units]])=0,"",SUM(data_tracking[[#This Row],[111-FILSN1 Units]],data_tracking[[#This Row],[112-FILSN2 Units]],data_tracking[[#This Row],[113-FILSN3 Units]])) -> 5477 | K41: =IF(SUMIFS('2015 sah unit data'!B:B,'2015 sah unit data'!L:L,data_tracking[[#This Row],[year]],'2015 sah unit data'!K:K,data_tracking[[#This Row],[month]],'2015 sah unit data'!J:J,data_tracking[[#This Row],[week]])=0,"",SUMIFS('2015 sah unit data'!B:B,'2015 sah unit data'!L:L,data_tracking[[#This Row],[year]],'2015 sah unit data'!K:K,data_tracking[[#This Row],[month]],'2015 sah unit data'!J:J,data_tracking[[#This Row],[week]])) -> 3532.990579 | L41: =IF(SUMIFS('2015 sah unit data'!C:C,'2015 sah unit data'!L:L,data_tracking[[#This Row],[year]],'2015 sah unit data'!K:K,data_tracking[[#This Row],[month]],'2015 sah unit data'!J:J,data_tracking[[#This Row],[week]])=0,"",SUMIFS('2015 sah unit data'!C:C,'2015 sah unit data'!L:L,data_tracking[[#This Row],[year]],'2015 sah unit data'!K:K,data_tracking[[#This Row],[month]],'2015 sah unit data'!J:J,data_tracking[[#This Row],[week]])) -> 1709.651823 | M41: =IF(SUMIFS('2015 sah unit data'!D:D,'2015 sah unit data'!L:L,data_tracking[[#This Row],[year]],'2015 sah unit data'!K:K,data_tracking[[#This Row],[month]],'2015 sah unit data'!J:J,data_tracking[[#This Row],[week]])=0,"",SUMIFS('2015 sah unit data'!D:D,'2015 sah unit data'!L:L,data_tracking[[#This Row],[year]],'2015 sah unit data'!K:K,data_tracking[[#This Row],[month]],'2015 sah unit data'!J:J,data_tracking[[#This Row],[week]])) ->  | N41: =IF(SUMIFS('2015 sah unit data'!E:E,'2015 sah unit data'!L:L,data_tracking[[#This Row],[year]],'2015 sah unit data'!K:K,data_tracking[[#This Row],[month]],'2015 sah unit data'!J:J,data_tracking[[#This Row],[week]])=0,"",SUMIFS('2015 sah unit data'!E:E,'2015 sah unit data'!L:L,data_tracking[[#This Row],[year]],'2015 sah unit data'!K:K,data_tracking[[#This Row],[month]],'2015 sah unit data'!J:J,data_tracking[[#This Row],[week]])) -> 3210 | O41: =IF(SUMIFS('2015 sah unit data'!F:F,'2015 sah unit data'!L:L,data_tracking[[#This Row],[year]],'2015 sah unit data'!K:K,data_tracking[[#This Row],[month]],'2015 sah unit data'!J:J,data_tracking[[#This Row],[week]])=0,"",SUMIFS('2015 sah unit data'!F:F,'2015 sah unit data'!L:L,data_tracking[[#This Row],[year]],'2015 sah unit data'!K:K,data_tracking[[#This Row],[month]],'2015 sah unit data'!J:J,data_tracking[[#This Row],[week]])) -> 2267 | P41: =IF(SUMIFS('2015 sah unit data'!G:G,'2015 sah unit data'!L:L,data_tracking[[#This Row],[year]],'2015 sah unit data'!K:K,data_tracking[[#This Row],[month]],'2015 sah unit data'!J:J,data_tracking[[#This Row],[week]])=0,"",SUMIFS('2015 sah unit data'!G:G,'2015 sah unit data'!L:L,data_tracking[[#This Row],[year]],'2015 sah unit data'!K:K,data_tracking[[#This Row],[month]],'2015 sah unit data'!J:J,data_tracking[[#This Row],[week]])) ->  | Q41: =SUMIFS('2015 sah unit data'!I:I,'2015 sah unit data'!L:L,data_tracking[[#This Row],[year]],'2015 sah unit data'!K:K,data_tracking[[#This Row],[month]],'2015 sah unit data'!J:J,data_tracking[[#This Row],[week]]) -> 20 | R41: =SUMIFS('overhead costs data'!E:E,'overhead costs data'!C:C,data_tracking[[#This Row],[year]],'overhead costs data'!B:B,data_tracking[[#This Row],[month]]) -> 70330.3
A42: 41 | B42: 10 | C42: 2015 | D42: 36.52 | E42: 20.04 | F42: =IFERROR((data_tracking[[#This Row],[overhead]]+SUMIFS('labor costs data'!H:H,'labor costs data'!D:D,data_tracking[[#This Row],[year]],'labor costs data'!A:A,data_tracking[[#This Row],[week]]))/data_tracking[[#This Row],[SAH Completed (Total)]],"") -> 49.32625606 | G42: =IFERROR(SUMIFS('labor costs data'!E:E,'labor costs data'!D:D,data_tracking[[#This Row],[year]],'labor costs data'!A:A,data_tracking[[#This Row],[week]])/data_tracking[[#This Row],[SAH Completed (Total)]],"") -> 21.12490614 | H42: =IFERROR((data_tracking[[#This Row],[overhead]]+SUMIFS(labor_costs[total labor cost],labor_costs[year],data_tracking[[#This Row],[year]],labor_costs[week],data_tracking[[#This Row],[week]]))/data_tracking[[#This Row],[Units Completed (Total)]],"") -> 49.02329904 | I42: =IF(SUM(data_tracking[[#This Row],[111-FILSN1 SAH]],data_tracking[[#This Row],[112-FILSN2 SAH]],data_tracking[[#This Row],[113-FILSN3 SAH]])=0,"",SUM(data_tracking[[#This Row],[111-FILSN1 SAH]],data_tracking[[#This Row],[112-FILSN2 SAH]],data_tracking[[#This Row],[113-FILSN3 SAH]])) -> 5998.927481 | J42: =IF(SUM(data_tracking[[#This Row],[111-FILSN1 Units]],data_tracking[[#This Row],[112-FILSN2 Units]],data_tracking[[#This Row],[113-FILSN3 Units]])=0,"",SUM(data_tracking[[#This Row],[111-FILSN1 Units]],data_tracking[[#This Row],[112-FILSN2 Units]],data_tracking[[#This Row],[113-FILSN3 Units]])) -> 6036 | K42: =IF(SUMIFS('2015 sah unit data'!B:B,'2015 sah unit data'!L:L,data_tracking[[#This Row],[year]],'2015 sah unit data'!K:K,data_tracking[[#This Row],[month]],'2015 sah unit data'!J:J,data_tracking[[#This Row],[week]])=0,"",SUMIFS('2015 sah unit data'!B:B,'2015 sah unit data'!L:L,data_tracking[[#This Row],[year]],'2015 sah unit data'!K:K,data_tracking[[#This Row],[month]],'2015 sah unit data'!J:J,data_tracking[[#This Row],[week]])) -> 3302.096465 | L42: =IF(SUMIFS('2015 sah unit data'!C:C,'2015 sah unit data'!L:L,data_tracking[[#This Row],[year]],'2015 sah unit data'!K:K,data_tracking[[#This Row],[month]],'2015 sah unit data'!J:J,data_tracking[[#This Row],[week]])=0,"",SUMIFS('2015 sah unit data'!C:C,'2015 sah unit data'!L:L,data_tracking[[#This Row],[year]],'2015 sah unit data'!K:K,data_tracking[[#This Row],[month]],'2015 sah unit data'!J:J,data_tracking[[#This Row],[week]])) -> 2332.831017 | M42: =IF(SUMIFS('2015 sah unit data'!D:D,'2015 sah unit data'!L:L,data_tracking[[#This Row],[year]],'2015 sah unit data'!K:K,data_tracking[[#This Row],[month]],'2015 sah unit data'!J:J,data_tracking[[#This Row],[week]])=0,"",SUMIFS('2015 sah unit data'!D:D,'2015 sah unit data'!L:L,data_tracking[[#This Row],[year]],'2015 sah unit data'!K:K,data_tracking[[#This Row],[month]],'2015 sah unit data'!J:J,data_tracking[[#This Row],[week]])) -> 364 | N42: =IF(SUMIFS('2015 sah unit data'!E:E,'2015 sah unit data'!L:L,data_tracking[[#This Row],[year]],'2015 sah unit data'!K:K,data_tracking[[#This Row],[month]],'2015 sah unit data'!J:J,data_tracking[[#This Row],[week]])=0,"",SUMIFS('2015 sah unit data'!E:E,'2015 sah unit data'!L:L,data_tracking[[#This Row],[year]],'2015 sah unit data'!K:K,data_tracking[[#This Row],[month]],'2015 sah unit data'!J:J,data_tracking[[#This Row],[week]])) -> 3076 | O42: =IF(SUMIFS('2015 sah unit data'!F:F,'2015 sah unit data'!L:L,data_tracking[[#This Row],[year]],'2015 sah unit data'!K:K,data_tracking[[#This Row],[month]],'2015 sah unit data'!J:J,data_tracking[[#This Row],[week]])=0,"",SUMIFS('2015 sah unit data'!F:F,'2015 sah unit data'!L:L,data_tracking[[#This Row],[year]],'2015 sah unit data'!K:K,data_tracking[[#This Row],[month]],'2015 sah unit data'!J:J,data_tracking[[#This Row],[week]])) -> 2596 | P42: =IF(SUMIFS('2015 sah unit data'!G:G,'2015 sah unit data'!L:L,data_tracking[[#This Row],[year]],'2015 sah unit data'!K:K,data_tracking[[#This Row],[month]],'2015 sah unit data'!J:J,data_tracking[[#This Row],[week]])=0,"",SUMIFS('2015 sah unit data'!G:G,'2015 sah unit data'!L:L,data_tracking[[#This Row],[year]],'2015 sah unit data'!K:K,data_tracking[[#This Row],[month]],'2015 sah unit data'!J:J,data_tracking[[#This Row],[week]])) -> 364 | Q42: =SUMIFS('2015 sah unit data'!I:I,'2015 sah unit data'!L:L,data_tracking[[#This Row],[year]],'2015 sah unit data'!K:K,data_tracking[[#This Row],[month]],'2015 sah unit data'!J:J,data_tracking[[#This Row],[week]]) -> 18 | R42: =SUMIFS('overhead costs data'!E:E,'overhead costs data'!C:C,data_tracking[[#This Row],[year]],'overhead costs data'!B:B,data_tracking[[#This Row],[month]]) -> 69086.69
A43: 42 | B43: 10 | C43: 2015 | D43: 36.52 | E43: 20.04 | F43: =IFERROR((data_tracking[[#This Row],[overhead]]+SUMIFS('labor costs data'!H:H,'labor costs data'!D:D,data_tracking[[#This Row],[year]],'labor costs data'!A:A,data_tracking[[#This Row],[week]]))/data_tracking[[#This Row],[SAH Completed (Total)]],"") -> 49.32625606 | G43: =IFERROR(SUMIFS('labor costs data'!E:E,'labor costs data'!D:D,data_tracking[[#This Row],[year]],'labor costs data'!A:A,data_tracking[[#This Row],[week]])/data_tracking[[#This Row],[SAH Completed (Total)]],"") -> 21.12490614 | H43: =IFERROR((data_tracking[[#This Row],[overhead]]+SUMIFS(labor_costs[total labor cost],labor_costs[year],data_tracking[[#This Row],[year]],labor_costs[week],data_tracking[[#This Row],[week]]))/data_tracking[[#This Row],[Units Completed (Total)]],"") -> 49.02329904 | I43: =IF(SUM(data_tracking[[#This Row],[111-FILSN1 SAH]],data_tracking[[#This Row],[112-FILSN2 SAH]],data_tracking[[#This Row],[113-FILSN3 SAH]])=0,"",SUM(data_tracking[[#This Row],[111-FILSN1 SAH]],data_tracking[[#This Row],[112-FILSN2 SAH]],data_tracking[[#This Row],[113-FILSN3 SAH]])) -> 5998.927481 | J43: =IF(SUM(data_tracking[[#This Row],[111-FILSN1 Units]],data_tracking[[#This Row],[112-FILSN2 Units]],data_tracking[[#This Row],[113-FILSN3 Units]])=0,"",SUM(data_tracking[[#This Row],[111-FILSN1 Units]],data_tracking[[#This Row],[112-FILSN2 Units]],data_tracking[[#This Row],[113-FILSN3 Units]])) -> 6036 | K43: =IF(SUMIFS('2015 sah unit data'!B:B,'2015 sah unit data'!L:L,data_tracking[[#This Row],[year]],'2015 sah unit data'!K:K,data_tracking[[#This Row],[month]],'2015 sah unit data'!J:J,data_tracking[[#This Row],[week]])=0,"",SUMIFS('2015 sah unit data'!B:B,'2015 sah unit data'!L:L,data_tracking[[#This Row],[year]],'2015 sah unit data'!K:K,data_tracking[[#This Row],[month]],'2015 sah unit data'!J:J,data_tracking[[#This Row],[week]])) -> 3302.096465 | L43: =IF(SUMIFS('2015 sah unit data'!C:C,'2015 sah unit data'!L:L,data_tracking[[#This Row],[year]],'2015 sah unit data'!K:K,data_tracking[[#This Row],[month]],'2015 sah unit data'!J:J,data_tracking[[#This Row],[week]])=0,"",SUMIFS('2015 sah unit data'!C:C,'2015 sah unit data'!L:L,data_tracking[[#This Row],[year]],'2015 sah unit data'!K:K,data_tracking[[#This Row],[month]],'2015 sah unit data'!J:J,data_tracking[[#This Row],[week]])) -> 2332.831017 | M43: =IF(SUMIFS('2015 sah unit data'!D:D,'2015 sah unit data'!L:L,data_tracking[[#This Row],[year]],'2015 sah unit data'!K:K,data_tracking[[#This Row],[month]],'2015 sah unit data'!J:J,data_tracking[[#This Row],[week]])=0,"",SUMIFS('2015 sah unit data'!D:D,'2015 sah unit data'!L:L,data_tracking[[#This Row],[year]],'2015 sah unit data'!K:K,data_tracking[[#This Row],[month]],'2015 sah unit data'!J:J,data_tracking[[#This Row],[week]])) -> 364 | N43: =IF(SUMIFS('2015 sah unit data'!E:E,'2015 sah unit data'!L:L,data_tracking[[#This Row],[year]],'2015 sah unit data'!K:K,data_tracking[[#This Row],[month]],'2015 sah unit data'!J:J,data_tracking[[#This Row],[week]])=0,"",SUMIFS('2015 sah unit data'!E:E,'2015 sah unit data'!L:L,data_tracking[[#This Row],[year]],'2015 sah unit data'!K:K,data_tracking[[#This Row],[month]],'2015 sah unit data'!J:J,data_tracking[[#This Row],[week]])) -> 3076 | O43: =IF(SUMIFS('2015 sah unit data'!F:F,'2015 sah unit data'!L:L,data_tracking[[#This Row],[year]],'2015 sah unit data'!K:K,data_tracking[[#This Row],[month]],'2015 sah unit data'!J:J,data_tracking[[#This Row],[week]])=0,"",SUMIFS('2015 sah unit data'!F:F,'2015 sah unit data'!L:L,data_tracking[[#This Row],[year]],'2015 sah unit data'!K:K,data_tracking[[#This Row],[month]],'2015 sah unit data'!J:J,data_tracking[[#This Row],[week]])) -> 2596 | P43: =IF(SUMIFS('2015 sah unit data'!G:G,'2015 sah unit data'!L:L,data_tracking[[#This Row],[year]],'2015 sah unit data'!K:K,data_tracking[[#This Row],[month]],'2015 sah unit data'!J:J,data_tracking[[#This Row],[week]])=0,"",SUMIFS('2015 sah unit data'!G:G,'2015 sah unit data'!L:L,data_tracking[[#This Row],[year]],'2015 sah unit data'!K:K,data_tracking[[#This Row],[month]],'2015 sah unit data'!J:J,data_tracking[[#This Row],[week]])) -> 364 | Q43: =SUMIFS('2015 sah unit data'!I:I,'2015 sah unit data'!L:L,data_tracking[[#This Row],[year]],'2015 sah unit data'!K:K,data_tracking[[#This Row],[month]],'2015 sah unit data'!J:J,data_tracking[[#This Row],[week]]) -> 18 | R43: =SUMIFS('overhead costs data'!E:E,'overhead costs data'!C:C,data_tracking[[#This Row],[year]],'overhead costs data'!B:B,data_tracking[[#This Row],[month]]) -> 69086.69
A44: 43 | B44: 10 | C44: 2015 | D44: 36.52 | E44: 20.04 | F44: =IFERROR((data_tracking[[#This Row],[overhead]]+SUMIFS('labor costs data'!H:H,'labor costs data'!D:D,data_tracking[[#This Row],[year]],'labor costs data'!A:A,data_tracking[[#This Row],[week]]))/data_tracking[[#This Row],[SAH Completed (Total)]],"") -> 47.32409341 | G44: =IFERROR(SUMIFS('labor costs data'!E:E,'labor costs data'!D:D,data_tracking[[#This Row],[year]],'labor costs data'!A:A,data_tracking[[#This Row],[week]])/data_tracking[[#This Row],[SAH Completed (Total)]],"") -> 20.12440313 | H44: =IFERROR((data_tracking[[#This Row],[overhead]]+SUMIFS(labor_costs[total labor cost],labor_costs[year],data_tracking[[#This Row],[year]],labor_costs[week],data_tracking[[#This Row],[week]]))/data_tracking[[#This Row],[Units Completed (Total)]],"") -> 47.03343348 | I44: =IF(SUM(data_tracking[[#This Row],[111-FILSN1 SAH]],data_tracking[[#This Row],[112-FILSN2 SAH]],data_tracking[[#This Row],[113-FILSN3 SAH]])=0,"",SUM(data_tracking[[#This Row],[111-FILSN1 SAH]],data_tracking[[#This Row],[112-FILSN2 SAH]],data_tracking[[#This Row],[113-FILSN3 SAH]])) -> 5998.927481 | J44: =IF(SUM(data_tracking[[#This Row],[111-FILSN1 Units]],data_tracking[[#This Row],[112-FILSN2 Units]],data_tracking[[#This Row],[113-FILSN3 Units]])=0,"",SUM(data_tracking[[#This Row],[111-FILSN1 Units]],data_tracking[[#This Row],[112-FILSN2 Units]],data_tracking[[#This Row],[113-FILSN3 Units]])) -> 6036 | K44: =IF(SUMIFS('2015 sah unit data'!B:B,'2015 sah unit data'!L:L,data_tracking[[#This Row],[year]],'2015 sah unit data'!K:K,data_tracking[[#This Row],[month]],'2015 sah unit data'!J:J,data_tracking[[#This Row],[week]])=0,"",SUMIFS('2015 sah unit data'!B:B,'2015 sah unit data'!L:L,data_tracking[[#This Row],[year]],'2015 sah unit data'!K:K,data_tracking[[#This Row],[month]],'2015 sah unit data'!J:J,data_tracking[[#This Row],[week]])) -> 3302.096465 | L44: =IF(SUMIFS('2015 sah unit data'!C:C,'2015 sah unit data'!L:L,data_tracking[[#This Row],[year]],'2015 sah unit data'!K:K,data_tracking[[#This Row],[month]],'2015 sah unit data'!J:J,data_tracking[[#This Row],[week]])=0,"",SUMIFS('2015 sah unit data'!C:C,'2015 sah unit data'!L:L,data_tracking[[#This Row],[year]],'2015 sah unit data'!K:K,data_tracking[[#This Row],[month]],'2015 sah unit data'!J:J,data_tracking[[#This Row],[week]])) -> 2332.831017 | M44: =IF(SUMIFS('2015 sah unit data'!D:D,'2015 sah unit data'!L:L,data_tracking[[#This Row],[year]],'2015 sah unit data'!K:K,data_tracking[[#This Row],[month]],'2015 sah unit data'!J:J,data_tracking[[#This Row],[week]])=0,"",SUMIFS('2015 sah unit data'!D:D,'2015 sah unit data'!L:L,data_tracking[[#This Row],[year]],'2015 sah unit data'!K:K,data_tracking[[#This Row],[month]],'2015 sah unit data'!J:J,data_tracking[[#This Row],[week]])) -> 364 | N44: =IF(SUMIFS('2015 sah unit data'!E:E,'2015 sah unit data'!L:L,data_tracking[[#This Row],[year]],'2015 sah unit data'!K:K,data_tracking[[#This Row],[month]],'2015 sah unit data'!J:J,data_tracking[[#This Row],[week]])=0,"",SUMIFS('2015 sah unit data'!E:E,'2015 sah unit data'!L:L,data_tracking[[#This Row],[year]],'2015 sah unit data'!K:K,data_tracking[[#This Row],[month]],'2015 sah unit data'!J:J,data_tracking[[#This Row],[week]])) -> 3076 | O44: =IF(SUMIFS('2015 sah unit data'!F:F,'2015 sah unit data'!L:L,data_tracking[[#This Row],[year]],'2015 sah unit data'!K:K,data_tracking[[#This Row],[month]],'2015 sah unit data'!J:J,data_tracking[[#This Row],[week]])=0,"",SUMIFS('2015 sah unit data'!F:F,'2015 sah unit data'!L:L,data_tracking[[#This Row],[year]],'2015 sah unit data'!K:K,data_tracking[[#This Row],[month]],'2015 sah unit data'!J:J,data_tracking[[#This Row],[week]])) -> 2596 | P44: =IF(SUMIFS('2015 sah unit data'!G:G,'2015 sah unit data'!L:L,data_tracking[[#This Row],[year]],'2015 sah unit data'!K:K,data_tracking[[#This Row],[month]],'2015 sah unit data'!J:J,data_tracking[[#This Row],[week]])=0,"",SUMIFS('2015 sah unit data'!G:G,'2015 sah unit data'!L:L,data_tracking[[#This Row],[year]],'2015 sah unit data'!K:K,data_tracking[[#This Row],[month]],'2015 sah unit data'!J:J,data_tracking[[#This Row],[week]])) -> 364 | Q44: =SUMIFS('2015 sah unit data'!I:I,'2015 sah unit data'!L:L,data_tracking[[#This Row],[year]],'2015 sah unit data'!K:K,data_tracking[[#This Row],[month]],'2015 sah unit data'!J:J,data_tracking[[#This Row],[week]]) -> 18 | R44: =SUMIFS('overhead costs data'!E:E,'overhead costs data'!C:C,data_tracking[[#This Row],[year]],'overhead costs data'!B:B,data_tracking[[#This Row],[month]]) -> 69086.69
A45: 44 | B45: 10 | C45: 2015 | D45: 36.52 | E45: 20.04 | F45: =IFERROR((data_tracking[[#This Row],[overhead]]+SUMIFS('labor costs data'!H:H,'labor costs data'!D:D,data_tracking[[#This Row],[year]],'labor costs data'!A:A,data_tracking[[#This Row],[week]]))/data_tracking[[#This Row],[SAH Completed (Total)]],"") -> 47.32409341 | G45: =IFERROR(SUMIFS('labor costs data'!E:E,'labor costs data'!D:D,data_tracking[[#This Row],[year]],'labor costs data'!A:A,data_tracking[[#This Row],[week]])/data_tracking[[#This Row],[SAH Completed (Total)]],"") -> 20.12440313 | H45: =IFERROR((data_tracking[[#This Row],[overhead]]+SUMIFS(labor_costs[total labor cost],labor_costs[year],data_tracking[[#This Row],[year]],labor_costs[week],data_tracking[[#This Row],[week]]))/data_tracking[[#This Row],[Units Completed (Total)]],"") -> 47.03343348 | I45: =IF(SUM(data_tracking[[#This Row],[111-FILSN1 SAH]],data_tracking[[#This Row],[112-FILSN2 SAH]],data_tracking[[#This Row],[113-FILSN3 SAH]])=0,"",SUM(data_tracking[[#This Row],[111-FILSN1 SAH]],data_tracking[[#This Row],[112-FILSN2 SAH]],data_tracking[[#This Row],[113-FILSN3 SAH]])) -> 5998.927481 | J45: =IF(SUM(data_tracking[[#This Row],[111-FILSN1 Units]],data_tracking[[#This Row],[112-FILSN2 Units]],data_tracking[[#This Row],[113-FILSN3 Units]])=0,"",SUM(data_tracking[[#This Row],[111-FILSN1 Units]],data_tracking[[#This Row],[112-FILSN2 Units]],data_tracking[[#This Row],[113-FILSN3 Units]])) -> 6036 | K45: =IF(SUMIFS('2015 sah unit data'!B:B,'2015 sah unit data'!L:L,data_tracking[[#This Row],[year]],'2015 sah unit data'!K:K,data_tracking[[#This Row],[month]],'2015 sah unit data'!J:J,data_tracking[[#This Row],[week]])=0,"",SUMIFS('2015 sah unit data'!B:B,'2015 sah unit data'!L:L,data_tracking[[#This Row],[year]],'2015 sah unit data'!K:K,data_tracking[[#This Row],[month]],'2015 sah unit data'!J:J,data_tracking[[#This Row],[week]])) -> 3302.096465 | L45: =IF(SUMIFS('2015 sah unit data'!C:C,'2015 sah unit data'!L:L,data_tracking[[#This Row],[year]],'2015 sah unit data'!K:K,data_tracking[[#This Row],[month]],'2015 sah unit data'!J:J,data_tracking[[#This Row],[week]])=0,"",SUMIFS('2015 sah unit data'!C:C,'2015 sah unit data'!L:L,data_tracking[[#This Row],[year]],'2015 sah unit data'!K:K,data_tracking[[#This Row],[month]],'2015 sah unit data'!J:J,data_tracking[[#This Row],[week]])) -> 2332.831017 | M45: =IF(SUMIFS('2015 sah unit data'!D:D,'2015 sah unit data'!L:L,data_tracking[[#This Row],[year]],'2015 sah unit data'!K:K,data_tracking[[#This Row],[month]],'2015 sah unit data'!J:J,data_tracking[[#This Row],[week]])=0,"",SUMIFS('2015 sah unit data'!D:D,'2015 sah unit data'!L:L,data_tracking[[#This Row],[year]],'2015 sah unit data'!K:K,data_tracking[[#This Row],[month]],'2015 sah unit data'!J:J,data_tracking[[#This Row],[week]])) -> 364 | N45: =IF(SUMIFS('2015 sah unit data'!E:E,'2015 sah unit data'!L:L,data_tracking[[#This Row],[year]],'2015 sah unit data'!K:K,data_tracking[[#This Row],[month]],'2015 sah unit data'!J:J,data_tracking[[#This Row],[week]])=0,"",SUMIFS('2015 sah unit data'!E:E,'2015 sah unit data'!L:L,data_tracking[[#This Row],[year]],'2015 sah unit data'!K:K,data_tracking[[#This Row],[month]],'2015 sah unit data'!J:J,data_tracking[[#This Row],[week]])) -> 3076 | O45: =IF(SUMIFS('2015 sah unit data'!F:F,'2015 sah unit data'!L:L,data_tracking[[#This Row],[year]],'2015 sah unit data'!K:K,data_tracking[[#This Row],[month]],'2015 sah unit data'!J:J,data_tracking[[#This Row],[week]])=0,"",SUMIFS('2015 sah unit data'!F:F,'2015 sah unit data'!L:L,data_tracking[[#This Row],[year]],'2015 sah unit data'!K:K,data_tracking[[#This Row],[month]],'2015 sah unit data'!J:J,data_tracking[[#This Row],[week]])) -> 2596 | P45: =IF(SUMIFS('2015 sah unit data'!G:G,'2015 sah unit data'!L:L,data_tracking[[#This Row],[year]],'2015 sah unit data'!K:K,data_tracking[[#This Row],[month]],'2015 sah unit data'!J:J,data_tracking[[#This Row],[week]])=0,"",SUMIFS('2015 sah unit data'!G:G,'2015 sah unit data'!L:L,data_tracking[[#This Row],[year]],'2015 sah unit data'!K:K,data_tracking[[#This Row],[month]],'2015 sah unit data'!J:J,data_tracking[[#This Row],[week]])) -> 364 | Q45: =SUMIFS('2015 sah unit data'!I:I,'2015 sah unit data'!L:L,data_tracking[[#This Row],[year]],'2015 sah unit data'!K:K,data_tracking[[#This Row],[month]],'2015 sah unit data'!J:J,data_tracking[[#This Row],[week]]) -> 18 | R45: =SUMIFS('overhead costs data'!E:E,'overhead costs data'!C:C,data_tracking[[#This Row],[year]],'overhead costs data'!B:B,data_tracking[[#This Row],[month]]) -> 69086.69
A46: 45 | B46: 11 | C46: 2015 | D46: 36.52 | E46: 20.04 | F46: =IFERROR((data_tracking[[#This Row],[overhead]]+SUMIFS('labor costs data'!H:H,'labor costs data'!D:D,data_tracking[[#This Row],[year]],'labor costs data'!A:A,data_tracking[[#This Row],[week]]))/data_tracking[[#This Row],[SAH Completed (Total)]],"") -> 54.82431443 | G46: =IFERROR(SUMIFS('labor costs data'!E:E,'labor costs data'!D:D,data_tracking[[#This Row],[year]],'labor costs data'!A:A,data_tracking[[#This Row],[week]])/data_tracking[[#This Row],[SAH Completed (Total)]],"") -> 20.12430076 | H46: =IFERROR((data_tracking[[#This Row],[overhead]]+SUMIFS(labor_costs[total labor cost],labor_costs[year],data_tracking[[#This Row],[year]],labor_costs[week],data_tracking[[#This Row],[week]]))/data_tracking[[#This Row],[Units Completed (Total)]],"") -> 65.21761536 | I46: =IF(SUM(data_tracking[[#This Row],[111-FILSN1 SAH]],data_tracking[[#This Row],[112-FILSN2 SAH]],data_tracking[[#This Row],[113-FILSN3 SAH]])=0,"",SUM(data_tracking[[#This Row],[111-FILSN1 SAH]],data_tracking[[#This Row],[112-FILSN2 SAH]],data_tracking[[#This Row],[113-FILSN3 SAH]])) -> 4717.853113 | J46: =IF(SUM(data_tracking[[#This Row],[111-FILSN1 Units]],data_tracking[[#This Row],[112-FILSN2 Units]],data_tracking[[#This Row],[113-FILSN3 Units]])=0,"",SUM(data_tracking[[#This Row],[111-FILSN1 Units]],data_tracking[[#This Row],[112-FILSN2 Units]],data_tracking[[#This Row],[113-FILSN3 Units]])) -> 3966 | K46: =IF(SUMIFS('2015 sah unit data'!B:B,'2015 sah unit data'!L:L,data_tracking[[#This Row],[year]],'2015 sah unit data'!K:K,data_tracking[[#This Row],[month]],'2015 sah unit data'!J:J,data_tracking[[#This Row],[week]])=0,"",SUMIFS('2015 sah unit data'!B:B,'2015 sah unit data'!L:L,data_tracking[[#This Row],[year]],'2015 sah unit data'!K:K,data_tracking[[#This Row],[month]],'2015 sah unit data'!J:J,data_tracking[[#This Row],[week]])) -> 2433.102982 | L46: =IF(SUMIFS('2015 sah unit data'!C:C,'2015 sah unit data'!L:L,data_tracking[[#This Row],[year]],'2015 sah unit data'!K:K,data_tracking[[#This Row],[month]],'2015 sah unit data'!J:J,data_tracking[[#This Row],[week]])=0,"",SUMIFS('2015 sah unit data'!C:C,'2015 sah unit data'!L:L,data_tracking[[#This Row],[year]],'2015 sah unit data'!K:K,data_tracking[[#This Row],[month]],'2015 sah unit data'!J:J,data_tracking[[#This Row],[week]])) -> 1633.750131 | M46: =IF(SUMIFS('2015 sah unit data'!D:D,'2015 sah unit data'!L:L,data_tracking[[#This Row],[year]],'2015 sah unit data'!K:K,data_tracking[[#This Row],[month]],'2015 sah unit data'!J:J,data_tracking[[#This Row],[week]])=0,"",SUMIFS('2015 sah unit data'!D:D,'2015 sah unit data'!L:L,data_tracking[[#This Row],[year]],'2015 sah unit data'!K:K,data_tracking[[#This Row],[month]],'2015 sah unit data'!J:J,data_tracking[[#This Row],[week]])) -> 651 | N46: =IF(SUMIFS('2015 sah unit data'!E:E,'2015 sah unit data'!L:L,data_tracking[[#This Row],[year]],'2015 sah unit data'!K:K,data_tracking[[#This Row],[month]],'2015 sah unit data'!J:J,data_tracking[[#This Row],[week]])=0,"",SUMIFS('2015 sah unit data'!E:E,'2015 sah unit data'!L:L,data_tracking[[#This Row],[year]],'2015 sah unit data'!K:K,data_tracking[[#This Row],[month]],'2015 sah unit data'!J:J,data_tracking[[#This Row],[week]])) -> 1872 | O46: =IF(SUMIFS('2015 sah unit data'!F:F,'2015 sah unit data'!L:L,data_tracking[[#This Row],[year]],'2015 sah unit data'!K:K,data_tracking[[#This Row],[month]],'2015 sah unit data'!J:J,data_tracking[[#This Row],[week]])=0,"",SUMIFS('2015 sah unit data'!F:F,'2015 sah unit data'!L:L,data_tracking[[#This Row],[year]],'2015 sah unit data'!K:K,data_tracking[[#This Row],[month]],'2015 sah unit data'!J:J,data_tracking[[#This Row],[week]])) -> 1443 | P46: =IF(SUMIFS('2015 sah unit data'!G:G,'2015 sah unit data'!L:L,data_tracking[[#This Row],[year]],'2015 sah unit data'!K:K,data_tracking[[#This Row],[month]],'2015 sah unit data'!J:J,data_tracking[[#This Row],[week]])=0,"",SUMIFS('2015 sah unit data'!G:G,'2015 sah unit data'!L:L,data_tracking[[#This Row],[year]],'2015 sah unit data'!K:K,data_tracking[[#This Row],[month]],'2015 sah unit data'!J:J,data_tracking[[#This Row],[week]])) -> 651 | Q46: =SUMIFS('2015 sah unit data'!I:I,'2015 sah unit data'!L:L,data_tracking[[#This Row],[year]],'2015 sah unit data'!K:K,data_tracking[[#This Row],[month]],'2015 sah unit data'!J:J,data_tracking[[#This Row],[week]]) -> 13 | R46: =SUMIFS('overhead costs data'!E:E,'overhead costs data'!C:C,data_tracking[[#This Row],[year]],'overhead costs data'!B:B,data_tracking[[#This Row],[month]]) -> 72217.3075
A47: 46 | B47: 11 | C47: 2015 | D47: 36.52 | E47: 20.04 | F47: =IFERROR((data_tracking[[#This Row],[overhead]]+SUMIFS('labor costs data'!H:H,'labor costs data'!D:D,data_tracking[[#This Row],[year]],'labor costs data'!A:A,data_tracking[[#This Row],[week]]))/data_tracking[[#This Row],[SAH Completed (Total)]],"") -> 54.82431443 | G47: =IFERROR(SUMIFS('labor costs data'!E:E,'labor costs data'!D:D,data_tracking[[#This Row],[year]],'labor costs data'!A:A,data_tracking[[#This Row],[week]])/data_tracking[[#This Row],[SAH Completed (Total)]],"") -> 20.12430076 | H47: =IFERROR((data_tracking[[#This Row],[overhead]]+SUMIFS(labor_costs[total labor cost],labor_costs[year],data_tracking[[#This Row],[year]],labor_costs[week],data_tracking[[#This Row],[week]]))/data_tracking[[#This Row],[Units Completed (Total)]],"") -> 65.21761536 | I47: =IF(SUM(data_tracking[[#This Row],[111-FILSN1 SAH]],data_tracking[[#This Row],[112-FILSN2 SAH]],data_tracking[[#This Row],[113-FILSN3 SAH]])=0,"",SUM(data_tracking[[#This Row],[111-FILSN1 SAH]],data_tracking[[#This Row],[112-FILSN2 SAH]],data_tracking[[#This Row],[113-FILSN3 SAH]])) -> 4717.853113 | J47: =IF(SUM(data_tracking[[#This Row],[111-FILSN1 Units]],data_tracking[[#This Row],[112-FILSN2 Units]],data_tracking[[#This Row],[113-FILSN3 Units]])=0,"",SUM(data_tracking[[#This Row],[111-FILSN1 Units]],data_tracking[[#This Row],[112-FILSN2 Units]],data_tracking[[#This Row],[113-FILSN3 Units]])) -> 3966 | K47: =IF(SUMIFS('2015 sah unit data'!B:B,'2015 sah unit data'!L:L,data_tracking[[#This Row],[year]],'2015 sah unit data'!K:K,data_tracking[[#This Row],[month]],'2015 sah unit data'!J:J,data_tracking[[#This Row],[week]])=0,"",SUMIFS('2015 sah unit data'!B:B,'2015 sah unit data'!L:L,data_tracking[[#This Row],[year]],'2015 sah unit data'!K:K,data_tracking[[#This Row],[month]],'2015 sah unit data'!J:J,data_tracking[[#This Row],[week]])) -> 2433.102982 | L47: =IF(SUMIFS('2015 sah unit data'!C:C,'2015 sah unit data'!L:L,data_tracking[[#This Row],[year]],'2015 sah unit data'!K:K,data_tracking[[#This Row],[month]],'2015 sah unit data'!J:J,data_tracking[[#This Row],[week]])=0,"",SUMIFS('2015 sah unit data'!C:C,'2015 sah unit data'!L:L,data_tracking[[#This Row],[year]],'2015 sah unit data'!K:K,data_tracking[[#This Row],[month]],'2015 sah unit data'!J:J,data_tracking[[#This Row],[week]])) -> 1633.750131 | M47: =IF(SUMIFS('2015 sah unit data'!D:D,'2015 sah unit data'!L:L,data_tracking[[#This Row],[year]],'2015 sah unit data'!K:K,data_tracking[[#This Row],[month]],'2015 sah unit data'!J:J,data_tracking[[#This Row],[week]])=0,"",SUMIFS('2015 sah unit data'!D:D,'2015 sah unit data'!L:L,data_tracking[[#This Row],[year]],'2015 sah unit data'!K:K,data_tracking[[#This Row],[month]],'2015 sah unit data'!J:J,data_tracking[[#This Row],[week]])) -> 651 | N47: =IF(SUMIFS('2015 sah unit data'!E:E,'2015 sah unit data'!L:L,data_tracking[[#This Row],[year]],'2015 sah unit data'!K:K,data_tracking[[#This Row],[month]],'2015 sah unit data'!J:J,data_tracking[[#This Row],[week]])=0,"",SUMIFS('2015 sah unit data'!E:E,'2015 sah unit data'!L:L,data_tracking[[#This Row],[year]],'2015 sah unit data'!K:K,data_tracking[[#This Row],[month]],'2015 sah unit data'!J:J,data_tracking[[#This Row],[week]])) -> 1872 | O47: =IF(SUMIFS('2015 sah unit data'!F:F,'2015 sah unit data'!L:L,data_tracking[[#This Row],[year]],'2015 sah unit data'!K:K,data_tracking[[#This Row],[month]],'2015 sah unit data'!J:J,data_tracking[[#This Row],[week]])=0,"",SUMIFS('2015 sah unit data'!F:F,'2015 sah unit data'!L:L,data_tracking[[#This Row],[year]],'2015 sah unit data'!K:K,data_tracking[[#This Row],[month]],'2015 sah unit data'!J:J,data_tracking[[#This Row],[week]])) -> 1443 | P47: =IF(SUMIFS('2015 sah unit data'!G:G,'2015 sah unit data'!L:L,data_tracking[[#This Row],[year]],'2015 sah unit data'!K:K,data_tracking[[#This Row],[month]],'2015 sah unit data'!J:J,data_tracking[[#This Row],[week]])=0,"",SUMIFS('2015 sah unit data'!G:G,'2015 sah unit data'!L:L,data_tracking[[#This Row],[year]],'2015 sah unit data'!K:K,data_tracking[[#This Row],[month]],'2015 sah unit data'!J:J,data_tracking[[#This Row],[week]])) -> 651 | Q47: =SUMIFS('2015 sah unit data'!I:I,'2015 sah unit data'!L:L,data_tracking[[#This Row],[year]],'2015 sah unit data'!K:K,data_tracking[[#This Row],[month]],'2015 sah unit data'!J:J,data_tracking[[#This Row],[week]]) -> 13 | R47: =SUMIFS('overhead costs data'!E:E,'overhead costs data'!C:C,data_tracking[[#This Row],[year]],'overhead costs data'!B:B,data_tracking[[#This Row],[month]]) -> 72217.3075
A48: 47 | B48: 11 | C48: 2015 | D48: 36.52 | E48: 20.04 | F48: =IFERROR((data_tracking[[#This Row],[overhead]]+SUMIFS('labor costs data'!H:H,'labor costs data'!D:D,data_tracking[[#This Row],[year]],'labor costs data'!A:A,data_tracking[[#This Row],[week]]))/data_tracking[[#This Row],[SAH Completed (Total)]],"") -> 59.6678459 | G48: =IFERROR(SUMIFS('labor costs data'!E:E,'labor costs data'!D:D,data_tracking[[#This Row],[year]],'labor costs data'!A:A,data_tracking[[#This Row],[week]])/data_tracking[[#This Row],[SAH Completed (Total)]],"") -> 23.66151665 | H48: =IFERROR((data_tracking[[#This Row],[overhead]]+SUMIFS(labor_costs[total labor cost],labor_costs[year],data_tracking[[#This Row],[year]],labor_costs[week],data_tracking[[#This Row],[week]]))/data_tracking[[#This Row],[Units Completed (Total)]],"") -> 70.97935767 | I48: =IF(SUM(data_tracking[[#This Row],[111-FILSN1 SAH]],data_tracking[[#This Row],[112-FILSN2 SAH]],data_tracking[[#This Row],[113-FILSN3 SAH]])=0,"",SUM(data_tracking[[#This Row],[111-FILSN1 SAH]],data_tracking[[#This Row],[112-FILSN2 SAH]],data_tracking[[#This Row],[113-FILSN3 SAH]])) -> 4717.853113 | J48: =IF(SUM(data_tracking[[#This Row],[111-FILSN1 Units]],data_tracking[[#This Row],[112-FILSN2 Units]],data_tracking[[#This Row],[113-FILSN3 Units]])=0,"",SUM(data_tracking[[#This Row],[111-FILSN1 Units]],data_tracking[[#This Row],[112-FILSN2 Units]],data_tracking[[#This Row],[113-FILSN3 Units]])) -> 3966 | K48: =IF(SUMIFS('2015 sah unit data'!B:B,'2015 sah unit data'!L:L,data_tracking[[#This Row],[year]],'2015 sah unit data'!K:K,data_tracking[[#This Row],[month]],'2015 sah unit data'!J:J,data_tracking[[#This Row],[week]])=0,"",SUMIFS('2015 sah unit data'!B:B,'2015 sah unit data'!L:L,data_tracking[[#This Row],[year]],'2015 sah unit data'!K:K,data_tracking[[#This Row],[month]],'2015 sah unit data'!J:J,data_tracking[[#This Row],[week]])) -> 2433.102982 | L48: =IF(SUMIFS('2015 sah unit data'!C:C,'2015 sah unit data'!L:L,data_tracking[[#This Row],[year]],'2015 sah unit data'!K:K,data_tracking[[#This Row],[month]],'2015 sah unit data'!J:J,data_tracking[[#This Row],[week]])=0,"",SUMIFS('2015 sah unit data'!C:C,'2015 sah unit data'!L:L,data_tracking[[#This Row],[year]],'2015 sah unit data'!K:K,data_tracking[[#This Row],[month]],'2015 sah unit data'!J:J,data_tracking[[#This Row],[week]])) -> 1633.750131 | M48: =IF(SUMIFS('2015 sah unit data'!D:D,'2015 sah unit data'!L:L,data_tracking[[#This Row],[year]],'2015 sah unit data'!K:K,data_tracking[[#This Row],[month]],'2015 sah unit data'!J:J,data_tracking[[#This Row],[week]])=0,"",SUMIFS('2015 sah unit data'!D:D,'2015 sah unit data'!L:L,data_tracking[[#This Row],[year]],'2015 sah unit data'!K:K,data_tracking[[#This Row],[month]],'2015 sah unit data'!J:J,data_tracking[[#This Row],[week]])) -> 651 | N48: =IF(SUMIFS('2015 sah unit data'!E:E,'2015 sah unit data'!L:L,data_tracking[[#This Row],[year]],'2015 sah unit data'!K:K,data_tracking[[#This Row],[month]],'2015 sah unit data'!J:J,data_tracking[[#This Row],[week]])=0,"",SUMIFS('2015 sah unit data'!E:E,'2015 sah unit data'!L:L,data_tracking[[#This Row],[year]],'2015 sah unit data'!K:K,data_tracking[[#This Row],[month]],'2015 sah unit data'!J:J,data_tracking[[#This Row],[week]])) -> 1872 | O48: =IF(SUMIFS('2015 sah unit data'!F:F,'2015 sah unit data'!L:L,data_tracking[[#This Row],[year]],'2015 sah unit data'!K:K,data_tracking[[#This Row],[month]],'2015 sah unit data'!J:J,data_tracking[[#This Row],[week]])=0,"",SUMIFS('2015 sah unit data'!F:F,'2015 sah unit data'!L:L,data_tracking[[#This Row],[year]],'2015 sah unit data'!K:K,data_tracking[[#This Row],[month]],'2015 sah unit data'!J:J,data_tracking[[#This Row],[week]])) -> 1443 | P48: =IF(SUMIFS('2015 sah unit data'!G:G,'2015 sah unit data'!L:L,data_tracking[[#This Row],[year]],'2015 sah unit data'!K:K,data_tracking[[#This Row],[month]],'2015 sah unit data'!J:J,data_tracking[[#This Row],[week]])=0,"",SUMIFS('2015 sah unit data'!G:G,'2015 sah unit data'!L:L,data_tracking[[#This Row],[year]],'2015 sah unit data'!K:K,data_tracking[[#This Row],[month]],'2015 sah unit data'!J:J,data_tracking[[#This Row],[week]])) -> 651 | Q48: =SUMIFS('2015 sah unit data'!I:I,'2015 sah unit data'!L:L,data_tracking[[#This Row],[year]],'2015 sah unit data'!K:K,data_tracking[[#This Row],[month]],'2015 sah unit data'!J:J,data_tracking[[#This Row],[week]]) -> 13 | R48: =SUMIFS('overhead costs data'!E:E,'overhead costs data'!C:C,data_tracking[[#This Row],[year]],'overhead costs data'!B:B,data_tracking[[#This Row],[month]]) -> 72217.3075
A49: 48 | B49: 11 | C49: 2015 | D49: 36.52 | E49: 20.04 | F49: =IFERROR((data_tracking[[#This Row],[overhead]]+SUMIFS('labor costs data'!H:H,'labor costs data'!D:D,data_tracking[[#This Row],[year]],'labor costs data'!A:A,data_tracking[[#This Row],[week]]))/data_tracking[[#This Row],[SAH Completed (Total)]],"") -> 59.6678459 | G49: =IFERROR(SUMIFS('labor costs data'!E:E,'labor costs data'!D:D,data_tracking[[#This Row],[year]],'labor costs data'!A:A,data_tracking[[#This Row],[week]])/data_tracking[[#This Row],[SAH Completed (Total)]],"") -> 23.66151665 | H49: =IFERROR((data_tracking[[#This Row],[overhead]]+SUMIFS(labor_costs[total labor cost],labor_costs[year],data_tracking[[#This Row],[year]],labor_costs[week],data_tracking[[#This Row],[week]]))/data_tracking[[#This Row],[Units Completed (Total)]],"") -> 70.97935767 | I49: =IF(SUM(data_tracking[[#This Row],[111-FILSN1 SAH]],data_tracking[[#This Row],[112-FILSN2 SAH]],data_tracking[[#This Row],[113-FILSN3 SAH]])=0,"",SUM(data_tracking[[#This Row],[111-FILSN1 SAH]],data_tracking[[#This Row],[112-FILSN2 SAH]],data_tracking[[#This Row],[113-FILSN3 SAH]])) -> 4717.853113 | J49: =IF(SUM(data_tracking[[#This Row],[111-FILSN1 Units]],data_tracking[[#This Row],[112-FILSN2 Units]],data_tracking[[#This Row],[113-FILSN3 Units]])=0,"",SUM(data_tracking[[#This Row],[111-FILSN1 Units]],data_tracking[[#This Row],[112-FILSN2 Units]],data_tracking[[#This Row],[113-FILSN3 Units]])) -> 3966 | K49: =IF(SUMIFS('2015 sah unit data'!B:B,'2015 sah unit data'!L:L,data_tracking[[#This Row],[year]],'2015 sah unit data'!K:K,data_tracking[[#This Row],[month]],'2015 sah unit data'!J:J,data_tracking[[#This Row],[week]])=0,"",SUMIFS('2015 sah unit data'!B:B,'2015 sah unit data'!L:L,data_tracking[[#This Row],[year]],'2015 sah unit data'!K:K,data_tracking[[#This Row],[month]],'2015 sah unit data'!J:J,data_tracking[[#This Row],[week]])) -> 2433.102982 | L49: =IF(SUMIFS('2015 sah unit data'!C:C,'2015 sah unit data'!L:L,data_tracking[[#This Row],[year]],'2015 sah unit data'!K:K,data_tracking[[#This Row],[month]],'2015 sah unit data'!J:J,data_tracking[[#This Row],[week]])=0,"",SUMIFS('2015 sah unit data'!C:C,'2015 sah unit data'!L:L,data_tracking[[#This Row],[year]],'2015 sah unit data'!K:K,data_tracking[[#This Row],[month]],'2015 sah unit data'!J:J,data_tracking[[#This Row],[week]])) -> 1633.750131 | M49: =IF(SUMIFS('2015 sah unit data'!D:D,'2015 sah unit data'!L:L,data_tracking[[#This Row],[year]],'2015 sah unit data'!K:K,data_tracking[[#This Row],[month]],'2015 sah unit data'!J:J,data_tracking[[#This Row],[week]])=0,"",SUMIFS('2015 sah unit data'!D:D,'2015 sah unit data'!L:L,data_tracking[[#This Row],[year]],'2015 sah unit data'!K:K,data_tracking[[#This Row],[month]],'2015 sah unit data'!J:J,data_tracking[[#This Row],[week]])) -> 651 | N49: =IF(SUMIFS('2015 sah unit data'!E:E,'2015 sah unit data'!L:L,data_tracking[[#This Row],[year]],'2015 sah unit data'!K:K,data_tracking[[#This Row],[month]],'2015 sah unit data'!J:J,data_tracking[[#This Row],[week]])=0,"",SUMIFS('2015 sah unit data'!E:E,'2015 sah unit data'!L:L,data_tracking[[#This Row],[year]],'2015 sah unit data'!K:K,data_tracking[[#This Row],[month]],'2015 sah unit data'!J:J,data_tracking[[#This Row],[week]])) -> 1872 | O49: =IF(SUMIFS('2015 sah unit data'!F:F,'2015 sah unit data'!L:L,data_tracking[[#This Row],[year]],'2015 sah unit data'!K:K,data_tracking[[#This Row],[month]],'2015 sah unit data'!J:J,data_tracking[[#This Row],[week]])=0,"",SUMIFS('2015 sah unit data'!F:F,'2015 sah unit data'!L:L,data_tracking[[#This Row],[year]],'2015 sah unit data'!K:K,data_tracking[[#This Row],[month]],'2015 sah unit data'!J:J,data_tracking[[#This Row],[week]])) -> 1443 | P49: =IF(SUMIFS('2015 sah unit data'!G:G,'2015 sah unit data'!L:L,data_tracking[[#This Row],[year]],'2015 sah unit data'!K:K,data_tracking[[#This Row],[month]],'2015 sah unit data'!J:J,data_tracking[[#This Row],[week]])=0,"",SUMIFS('2015 sah unit data'!G:G,'2015 sah unit data'!L:L,data_tracking[[#This Row],[year]],'2015 sah unit data'!K:K,data_tracking[[#This Row],[month]],'2015 sah unit data'!J:J,data_tracking[[#This Row],[week]])) -> 651 | Q49: =SUMIFS('2015 sah unit data'!I:I,'2015 sah unit data'!L:L,data_tracking[[#This Row],[year]],'2015 sah unit data'!K:K,data_tracking[[#This Row],[month]],'2015 sah unit data'!J:J,data_tracking[[#This Row],[week]]) -> 13 | R49: =SUMIFS('overhead costs data'!E:E,'overhead costs data'!C:C,data_tracking[[#This Row],[year]],'overhead costs data'!B:B,data_tracking[[#This Row],[month]]) -> 72217.3075
A50: 49 | B50: 12 | C50: 2015 | D50: 36.52 | E50: 20.04 | F50: =IFERROR((data_tracking[[#This Row],[overhead]]+SUMIFS('labor costs data'!H:H,'labor costs data'!D:D,data_tracking[[#This Row],[year]],'labor costs data'!A:A,data_tracking[[#This Row],[week]]))/data_tracking[[#This Row],[SAH Completed (Total)]],"") -> 62.44267303 | G50: =IFERROR(SUMIFS('labor costs data'!E:E,'labor costs data'!D:D,data_tracking[[#This Row],[year]],'labor costs data'!A:A,data_tracking[[#This Row],[week]])/data_tracking[[#This Row],[SAH Completed (Total)]],"") -> 24.07818141 | H50: =IFERROR((data_tracking[[#This Row],[overhead]]+SUMIFS(labor_costs[total labor cost],labor_costs[year],data_tracking[[#This Row],[year]],labor_costs[week],data_tracking[[#This Row],[week]]))/data_tracking[[#This Row],[Units Completed (Total)]],"") -> 65.86968857 | I50: =IF(SUM(data_tracking[[#This Row],[111-FILSN1 SAH]],data_tracking[[#This Row],[112-FILSN2 SAH]],data_tracking[[#This Row],[113-FILSN3 SAH]])=0,"",SUM(data_tracking[[#This Row],[111-FILSN1 SAH]],data_tracking[[#This Row],[112-FILSN2 SAH]],data_tracking[[#This Row],[113-FILSN3 SAH]])) -> 4760.685123 | J50: =IF(SUM(data_tracking[[#This Row],[111-FILSN1 Units]],data_tracking[[#This Row],[112-FILSN2 Units]],data_tracking[[#This Row],[113-FILSN3 Units]])=0,"",SUM(data_tracking[[#This Row],[111-FILSN1 Units]],data_tracking[[#This Row],[112-FILSN2 Units]],data_tracking[[#This Row],[113-FILSN3 Units]])) -> 4513 | K50: =IF(SUMIFS('2015 sah unit data'!B:B,'2015 sah unit data'!L:L,data_tracking[[#This Row],[year]],'2015 sah unit data'!K:K,data_tracking[[#This Row],[month]],'2015 sah unit data'!J:J,data_tracking[[#This Row],[week]])=0,"",SUMIFS('2015 sah unit data'!B:B,'2015 sah unit data'!L:L,data_tracking[[#This Row],[year]],'2015 sah unit data'!K:K,data_tracking[[#This Row],[month]],'2015 sah unit data'!J:J,data_tracking[[#This Row],[week]])) -> 2640.262146 | L50: =IF(SUMIFS('2015 sah unit data'!C:C,'2015 sah unit data'!L:L,data_tracking[[#This Row],[year]],'2015 sah unit data'!K:K,data_tracking[[#This Row],[month]],'2015 sah unit data'!J:J,data_tracking[[#This Row],[week]])=0,"",SUMIFS('2015 sah unit data'!C:C,'2015 sah unit data'!L:L,data_tracking[[#This Row],[year]],'2015 sah unit data'!K:K,data_tracking[[#This Row],[month]],'2015 sah unit data'!J:J,data_tracking[[#This Row],[week]])) -> 1576.422977 | M50: =IF(SUMIFS('2015 sah unit data'!D:D,'2015 sah unit data'!L:L,data_tracking[[#This Row],[year]],'2015 sah unit data'!K:K,data_tracking[[#This Row],[month]],'2015 sah unit data'!J:J,data_tracking[[#This Row],[week]])=0,"",SUMIFS('2015 sah unit data'!D:D,'2015 sah unit data'!L:L,data_tracking[[#This Row],[year]],'2015 sah unit data'!K:K,data_tracking[[#This Row],[month]],'2015 sah unit data'!J:J,data_tracking[[#This Row],[week]])) -> 544 | N50: =IF(SUMIFS('2015 sah unit data'!E:E,'2015 sah unit data'!L:L,data_tracking[[#This Row],[year]],'2015 sah unit data'!K:K,data_tracking[[#This Row],[month]],'2015 sah unit data'!J:J,data_tracking[[#This Row],[week]])=0,"",SUMIFS('2015 sah unit data'!E:E,'2015 sah unit data'!L:L,data_tracking[[#This Row],[year]],'2015 sah unit data'!K:K,data_tracking[[#This Row],[month]],'2015 sah unit data'!J:J,data_tracking[[#This Row],[week]])) -> 2227 | O50: =IF(SUMIFS('2015 sah unit data'!F:F,'2015 sah unit data'!L:L,data_tracking[[#This Row],[year]],'2015 sah unit data'!K:K,data_tracking[[#This Row],[month]],'2015 sah unit data'!J:J,data_tracking[[#This Row],[week]])=0,"",SUMIFS('2015 sah unit data'!F:F,'2015 sah unit data'!L:L,data_tracking[[#This Row],[year]],'2015 sah unit data'!K:K,data_tracking[[#This Row],[month]],'2015 sah unit data'!J:J,data_tracking[[#This Row],[week]])) -> 1742 | P50: =IF(SUMIFS('2015 sah unit data'!G:G,'2015 sah unit data'!L:L,data_tracking[[#This Row],[year]],'2015 sah unit data'!K:K,data_tracking[[#This Row],[month]],'2015 sah unit data'!J:J,data_tracking[[#This Row],[week]])=0,"",SUMIFS('2015 sah unit data'!G:G,'2015 sah unit data'!L:L,data_tracking[[#This Row],[year]],'2015 sah unit data'!K:K,data_tracking[[#This Row],[month]],'2015 sah unit data'!J:J,data_tracking[[#This Row],[week]])) -> 544 | Q50: =SUMIFS('2015 sah unit data'!I:I,'2015 sah unit data'!L:L,data_tracking[[#This Row],[year]],'2015 sah unit data'!K:K,data_tracking[[#This Row],[month]],'2015 sah unit data'!J:J,data_tracking[[#This Row],[week]]) -> 16 | R50: =SUMIFS('overhead costs data'!E:E,'overhead costs data'!C:C,data_tracking[[#This Row],[year]],'overhead costs data'!B:B,data_tracking[[#This Row],[month]]) -> 80054.604
A51: 50 | B51: 12 | C51: 2015 | D51: 36.52 | E51: 20.04 | F51: =IFERROR((data_tracking[[#This Row],[overhead]]+SUMIFS('labor costs data'!H:H,'labor costs data'!D:D,data_tracking[[#This Row],[year]],'labor costs data'!A:A,data_tracking[[#This Row],[week]]))/data_tracking[[#This Row],[SAH Completed (Total)]],"") -> 62.44267303 | G51: =IFERROR(SUMIFS('labor costs data'!E:E,'labor costs data'!D:D,data_tracking[[#This Row],[year]],'labor costs data'!A:A,data_tracking[[#This Row],[week]])/data_tracking[[#This Row],[SAH Completed (Total)]],"") -> 24.07818141 | H51: =IFERROR((data_tracking[[#This Row],[overhead]]+SUMIFS(labor_costs[total labor cost],labor_costs[year],data_tracking[[#This Row],[year]],labor_costs[week],data_tracking[[#This Row],[week]]))/data_tracking[[#This Row],[Units Completed (Total)]],"") -> 65.86968857 | I51: =IF(SUM(data_tracking[[#This Row],[111-FILSN1 SAH]],data_tracking[[#This Row],[112-FILSN2 SAH]],data_tracking[[#This Row],[113-FILSN3 SAH]])=0,"",SUM(data_tracking[[#This Row],[111-FILSN1 SAH]],data_tracking[[#This Row],[112-FILSN2 SAH]],data_tracking[[#This Row],[113-FILSN3 SAH]])) -> 4760.685123 | J51: =IF(SUM(data_tracking[[#This Row],[111-FILSN1 Units]],data_tracking[[#This Row],[112-FILSN2 Units]],data_tracking[[#This Row],[113-FILSN3 Units]])=0,"",SUM(data_tracking[[#This Row],[111-FILSN1 Units]],data_tracking[[#This Row],[112-FILSN2 Units]],data_tracking[[#This Row],[113-FILSN3 Units]])) -> 4513 | K51: =IF(SUMIFS('2015 sah unit data'!B:B,'2015 sah unit data'!L:L,data_tracking[[#This Row],[year]],'2015 sah unit data'!K:K,data_tracking[[#This Row],[month]],'2015 sah unit data'!J:J,data_tracking[[#This Row],[week]])=0,"",SUMIFS('2015 sah unit data'!B:B,'2015 sah unit data'!L:L,data_tracking[[#This Row],[year]],'2015 sah unit data'!K:K,data_tracking[[#This Row],[month]],'2015 sah unit data'!J:J,data_tracking[[#This Row],[week]])) -> 2640.262146 | L51: =IF(SUMIFS('2015 sah unit data'!C:C,'2015 sah unit data'!L:L,data_tracking[[#This Row],[year]],'2015 sah unit data'!K:K,data_tracking[[#This Row],[month]],'2015 sah unit data'!J:J,data_tracking[[#This Row],[week]])=0,"",SUMIFS('2015 sah unit data'!C:C,'2015 sah unit data'!L:L,data_tracking[[#This Row],[year]],'2015 sah unit data'!K:K,data_tracking[[#This Row],[month]],'2015 sah unit data'!J:J,data_tracking[[#This Row],[week]])) -> 1576.422977 | M51: =IF(SUMIFS('2015 sah unit data'!D:D,'2015 sah unit data'!L:L,data_tracking[[#This Row],[year]],'2015 sah unit data'!K:K,data_tracking[[#This Row],[month]],'2015 sah unit data'!J:J,data_tracking[[#This Row],[week]])=0,"",SUMIFS('2015 sah unit data'!D:D,'2015 sah unit data'!L:L,data_tracking[[#This Row],[year]],'2015 sah unit data'!K:K,data_tracking[[#This Row],[month]],'2015 sah unit data'!J:J,data_tracking[[#This Row],[week]])) -> 544 | N51: =IF(SUMIFS('2015 sah unit data'!E:E,'2015 sah unit data'!L:L,data_tracking[[#This Row],[year]],'2015 sah unit data'!K:K,data_tracking[[#This Row],[month]],'2015 sah unit data'!J:J,data_tracking[[#This Row],[week]])=0,"",SUMIFS('2015 sah unit data'!E:E,'2015 sah unit data'!L:L,data_tracking[[#This Row],[year]],'2015 sah unit data'!K:K,data_tracking[[#This Row],[month]],'2015 sah unit data'!J:J,data_tracking[[#This Row],[week]])) -> 2227 | O51: =IF(SUMIFS('2015 sah unit data'!F:F,'2015 sah unit data'!L:L,data_tracking[[#This Row],[year]],'2015 sah unit data'!K:K,data_tracking[[#This Row],[month]],'2015 sah unit data'!J:J,data_tracking[[#This Row],[week]])=0,"",SUMIFS('2015 sah unit data'!F:F,'2015 sah unit data'!L:L,data_tracking[[#This Row],[year]],'2015 sah unit data'!K:K,data_tracking[[#This Row],[month]],'2015 sah unit data'!J:J,data_tracking[[#This Row],[week]])) -> 1742 | P51: =IF(SUMIFS('2015 sah unit data'!G:G,'2015 sah unit data'!L:L,data_tracking[[#This Row],[year]],'2015 sah unit data'!K:K,data_tracking[[#This Row],[month]],'2015 sah unit data'!J:J,data_tracking[[#This Row],[week]])=0,"",SUMIFS('2015 sah unit data'!G:G,'2015 sah unit data'!L:L,data_tracking[[#This Row],[year]],'2015 sah unit data'!K:K,data_tracking[[#This Row],[month]],'2015 sah unit data'!J:J,data_tracking[[#This Row],[week]])) -> 544 | Q51: =SUMIFS('2015 sah unit data'!I:I,'2015 sah unit data'!L:L,data_tracking[[#This Row],[year]],'2015 sah unit data'!K:K,data_tracking[[#This Row],[month]],'2015 sah unit data'!J:J,data_tracking[[#This Row],[week]]) -> 16 | R51: =SUMIFS('overhead costs data'!E:E,'overhead costs data'!C:C,data_tracking[[#This Row],[year]],'overhead costs data'!B:B,data_tracking[[#This Row],[month]]) -> 80054.604
A52: 51 | B52: 12 | C52: 2015 | D52: 36.52 | E52: 20.04 | F52: =IFERROR((data_tracking[[#This Row],[overhead]]+SUMIFS('labor costs data'!H:H,'labor costs data'!D:D,data_tracking[[#This Row],[year]],'labor costs data'!A:A,data_tracking[[#This Row],[week]]))/data_tracking[[#This Row],[SAH Completed (Total)]],"") -> 64.68313374 | G52: =IFERROR(SUMIFS('labor costs data'!E:E,'labor costs data'!D:D,data_tracking[[#This Row],[year]],'labor costs data'!A:A,data_tracking[[#This Row],[week]])/data_tracking[[#This Row],[SAH Completed (Total)]],"") -> 25.78272493 | H52: =IFERROR((data_tracking[[#This Row],[overhead]]+SUMIFS(labor_costs[total labor cost],labor_costs[year],data_tracking[[#This Row],[year]],labor_costs[week],data_tracking[[#This Row],[week]]))/data_tracking[[#This Row],[Units Completed (Total)]],"") -> 68.23311157 | I52: =IF(SUM(data_tracking[[#This Row],[111-FILSN1 SAH]],data_tracking[[#This Row],[112-FILSN2 SAH]],data_tracking[[#This Row],[113-FILSN3 SAH]])=0,"",SUM(data_tracking[[#This Row],[111-FILSN1 SAH]],data_tracking[[#This Row],[112-FILSN2 SAH]],data_tracking[[#This Row],[113-FILSN3 SAH]])) -> 4760.685123 | J52: =IF(SUM(data_tracking[[#This Row],[111-FILSN1 Units]],data_tracking[[#This Row],[112-FILSN2 Units]],data_tracking[[#This Row],[113-FILSN3 Units]])=0,"",SUM(data_tracking[[#This Row],[111-FILSN1 Units]],data_tracking[[#This Row],[112-FILSN2 Units]],data_tracking[[#This Row],[113-FILSN3 Units]])) -> 4513 | K52: =IF(SUMIFS('2015 sah unit data'!B:B,'2015 sah unit data'!L:L,data_tracking[[#This Row],[year]],'2015 sah unit data'!K:K,data_tracking[[#This Row],[month]],'2015 sah unit data'!J:J,data_tracking[[#This Row],[week]])=0,"",SUMIFS('2015 sah unit data'!B:B,'2015 sah unit data'!L:L,data_tracking[[#This Row],[year]],'2015 sah unit data'!K:K,data_tracking[[#This Row],[month]],'2015 sah unit data'!J:J,data_tracking[[#This Row],[week]])) -> 2640.262146 | L52: =IF(SUMIFS('2015 sah unit data'!C:C,'2015 sah unit data'!L:L,data_tracking[[#This Row],[year]],'2015 sah unit data'!K:K,data_tracking[[#This Row],[month]],'2015 sah unit data'!J:J,data_tracking[[#This Row],[week]])=0,"",SUMIFS('2015 sah unit data'!C:C,'2015 sah unit data'!L:L,data_tracking[[#This Row],[year]],'2015 sah unit data'!K:K,data_tracking[[#This Row],[month]],'2015 sah unit data'!J:J,data_tracking[[#This Row],[week]])) -> 1576.422977 | M52: =IF(SUMIFS('2015 sah unit data'!D:D,'2015 sah unit data'!L:L,data_tracking[[#This Row],[year]],'2015 sah unit data'!K:K,data_tracking[[#This Row],[month]],'2015 sah unit data'!J:J,data_tracking[[#This Row],[week]])=0,"",SUMIFS('2015 sah unit data'!D:D,'2015 sah unit data'!L:L,data_tracking[[#This Row],[year]],'2015 sah unit data'!K:K,data_tracking[[#This Row],[month]],'2015 sah unit data'!J:J,data_tracking[[#This Row],[week]])) -> 544 | N52: =IF(SUMIFS('2015 sah unit data'!E:E,'2015 sah unit data'!L:L,data_tracking[[#This Row],[year]],'2015 sah unit data'!K:K,data_tracking[[#This Row],[month]],'2015 sah unit data'!J:J,data_tracking[[#This Row],[week]])=0,"",SUMIFS('2015 sah unit data'!E:E,'2015 sah unit data'!L:L,data_tracking[[#This Row],[year]],'2015 sah unit data'!K:K,data_tracking[[#This Row],[month]],'2015 sah unit data'!J:J,data_tracking[[#This Row],[week]])) -> 2227 | O52: =IF(SUMIFS('2015 sah unit data'!F:F,'2015 sah unit data'!L:L,data_tracking[[#This Row],[year]],'2015 sah unit data'!K:K,data_tracking[[#This Row],[month]],'2015 sah unit data'!J:J,data_tracking[[#This Row],[week]])=0,"",SUMIFS('2015 sah unit data'!F:F,'2015 sah unit data'!L:L,data_tracking[[#This Row],[year]],'2015 sah unit data'!K:K,data_tracking[[#This Row],[month]],'2015 sah unit data'!J:J,data_tracking[[#This Row],[week]])) -> 1742 | P52: =IF(SUMIFS('2015 sah unit data'!G:G,'2015 sah unit data'!L:L,data_tracking[[#This Row],[year]],'2015 sah unit data'!K:K,data_tracking[[#This Row],[month]],'2015 sah unit data'!J:J,data_tracking[[#This Row],[week]])=0,"",SUMIFS('2015 sah unit data'!G:G,'2015 sah unit data'!L:L,data_tracking[[#This Row],[year]],'2015 sah unit data'!K:K,data_tracking[[#This Row],[month]],'2015 sah unit data'!J:J,data_tracking[[#This Row],[week]])) -> 544 | Q52: =SUMIFS('2015 sah unit data'!I:I,'2015 sah unit data'!L:L,data_tracking[[#This Row],[year]],'2015 sah unit data'!K:K,data_tracking[[#This Row],[month]],'2015 sah unit data'!J:J,data_tracking[[#This Row],[week]]) -> 16 | R52: =SUMIFS('overhead costs data'!E:E,'overhead costs data'!C:C,data_tracking[[#This Row],[year]],'overhead costs data'!B:B,data_tracking[[#This Row],[month]]) -> 80054.604
A53: 52 | B53: 12 | C53: 2015 | D53: 36.52 | E53: 20.04 | F53: =IFERROR((data_tracking[[#This Row],[overhead]]+SUMIFS('labor costs data'!H:H,'labor costs data'!D:D,data_tracking[[#This Row],[year]],'labor costs data'!A:A,data_tracking[[#This Row],[week]]))/data_tracking[[#This Row],[SAH Completed (Total)]],"") -> 64.68313374 | G53: =IFERROR(SUMIFS('labor costs data'!E:E,'labor costs data'!D:D,data_tracking[[#This Row],[year]],'labor costs data'!A:A,data_tracking[[#This Row],[week]])/data_tracking[[#This Row],[SAH Completed (Total)]],"") -> 25.78272493 | H53: =IFERROR((data_tracking[[#This Row],[overhead]]+SUMIFS(labor_costs[total labor cost],labor_costs[year],data_tracking[[#This Row],[year]],labor_costs[week],data_tracking[[#This Row],[week]]))/data_tracking[[#This Row],[Units Completed (Total)]],"") -> 68.23311157 | I53: =IF(SUM(data_tracking[[#This Row],[111-FILSN1 SAH]],data_tracking[[#This Row],[112-FILSN2 SAH]],data_tracking[[#This Row],[113-FILSN3 SAH]])=0,"",SUM(data_tracking[[#This Row],[111-FILSN1 SAH]],data_tracking[[#This Row],[112-FILSN2 SAH]],data_tracking[[#This Row],[113-FILSN3 SAH]])) -> 4760.685123 | J53: =IF(SUM(data_tracking[[#This Row],[111-FILSN1 Units]],data_tracking[[#This Row],[112-FILSN2 Units]],data_tracking[[#This Row],[113-FILSN3 Units]])=0,"",SUM(data_tracking[[#This Row],[111-FILSN1 Units]],data_tracking[[#This Row],[112-FILSN2 Units]],data_tracking[[#This Row],[113-FILSN3 Units]])) -> 4513 | K53: =IF(SUMIFS('2015 sah unit data'!B:B,'2015 sah unit data'!L:L,data_tracking[[#This Row],[year]],'2015 sah unit data'!K:K,data_tracking[[#This Row],[month]],'2015 sah unit data'!J:J,data_tracking[[#This Row],[week]])=0,"",SUMIFS('2015 sah unit data'!B:B,'2015 sah unit data'!L:L,data_tracking[[#This Row],[year]],'2015 sah unit data'!K:K,data_tracking[[#This Row],[month]],'2015 sah unit data'!J:J,data_tracking[[#This Row],[week]])) -> 2640.262146 | L53: =IF(SUMIFS('2015 sah unit data'!C:C,'2015 sah unit data'!L:L,data_tracking[[#This Row],[year]],'2015 sah unit data'!K:K,data_tracking[[#This Row],[month]],'2015 sah unit data'!J:J,data_tracking[[#This Row],[week]])=0,"",SUMIFS('2015 sah unit data'!C:C,'2015 sah unit data'!L:L,data_tracking[[#This Row],[year]],'2015 sah unit data'!K:K,data_tracking[[#This Row],[month]],'2015 sah unit data'!J:J,data_tracking[[#This Row],[week]])) -> 1576.422977 | M53: =IF(SUMIFS('2015 sah unit data'!D:D,'2015 sah unit data'!L:L,data_tracking[[#This Row],[year]],'2015 sah unit data'!K:K,data_tracking[[#This Row],[month]],'2015 sah unit data'!J:J,data_tracking[[#This Row],[week]])=0,"",SUMIFS('2015 sah unit data'!D:D,'2015 sah unit data'!L:L,data_tracking[[#This Row],[year]],'2015 sah unit data'!K:K,data_tracking[[#This Row],[month]],'2015 sah unit data'!J:J,data_tracking[[#This Row],[week]])) -> 544 | N53: =IF(SUMIFS('2015 sah unit data'!E:E,'2015 sah unit data'!L:L,data_tracking[[#This Row],[year]],'2015 sah unit data'!K:K,data_tracking[[#This Row],[month]],'2015 sah unit data'!J:J,data_tracking[[#This Row],[week]])=0,"",SUMIFS('2015 sah unit data'!E:E,'2015 sah unit data'!L:L,data_tracking[[#This Row],[year]],'2015 sah unit data'!K:K,data_tracking[[#This Row],[month]],'2015 sah unit data'!J:J,data_tracking[[#This Row],[week]])) -> 2227 | O53: =IF(SUMIFS('2015 sah unit data'!F:F,'2015 sah unit data'!L:L,data_tracking[[#This Row],[year]],'2015 sah unit data'!K:K,data_tracking[[#This Row],[month]],'2015 sah unit data'!J:J,data_tracking[[#This Row],[week]])=0,"",SUMIFS('2015 sah unit data'!F:F,'2015 sah unit data'!L:L,data_tracking[[#This Row],[year]],'2015 sah unit data'!K:K,data_tracking[[#This Row],[month]],'2015 sah unit data'!J:J,data_tracking[[#This Row],[week]])) -> 1742 | P53: =IF(SUMIFS('2015 sah unit data'!G:G,'2015 sah unit data'!L:L,data_tracking[[#This Row],[year]],'2015 sah unit data'!K:K,data_tracking[[#This Row],[month]],'2015 sah unit data'!J:J,data_tracking[[#This Row],[week]])=0,"",SUMIFS('2015 sah unit data'!G:G,'2015 sah unit data'!L:L,data_tracking[[#This Row],[year]],'2015 sah unit data'!K:K,data_tracking[[#This Row],[month]],'2015 sah unit data'!J:J,data_tracking[[#This Row],[week]])) -> 544 | Q53: =SUMIFS('2015 sah unit data'!I:I,'2015 sah unit data'!L:L,data_tracking[[#This Row],[year]],'2015 sah unit data'!K:K,data_tracking[[#This Row],[month]],'2015 sah unit data'!J:J,data_tracking[[#This Row],[week]]) -> 16 | R53: =SUMIFS('overhead costs data'!E:E,'overhead costs data'!C:C,data_tracking[[#This Row],[year]],'overhead costs data'!B:B,data_tracking[[#This Row],[month]]) -> 80054.604
A54: 53 | B54: 12 | C54: 2015 | D54: 36.52 | E54: 20.04 | F54: =IFERROR((data_tracking[[#This Row],[overhead]]+SUMIFS('labor costs data'!H:H,'labor costs data'!D:D,data_tracking[[#This Row],[year]],'labor costs data'!A:A,data_tracking[[#This Row],[week]]))/data_tracking[[#This Row],[SAH Completed (Total)]],"") -> 30.93188264 | G54: =IFERROR(SUMIFS('labor costs data'!E:E,'labor costs data'!D:D,data_tracking[[#This Row],[year]],'labor costs data'!A:A,data_tracking[[#This Row],[week]])/data_tracking[[#This Row],[SAH Completed (Total)]],"") -> 4.23032809 | H54: =IFERROR((data_tracking[[#This Row],[overhead]]+SUMIFS(labor_costs[total labor cost],labor_costs[year],data_tracking[[#This Row],[year]],labor_costs[week],data_tracking[[#This Row],[week]]))/data_tracking[[#This Row],[Units Completed (Total)]],"") -> 32.62950443 | I54: =IF(SUM(data_tracking[[#This Row],[111-FILSN1 SAH]],data_tracking[[#This Row],[112-FILSN2 SAH]],data_tracking[[#This Row],[113-FILSN3 SAH]])=0,"",SUM(data_tracking[[#This Row],[111-FILSN1 SAH]],data_tracking[[#This Row],[112-FILSN2 SAH]],data_tracking[[#This Row],[113-FILSN3 SAH]])) -> 4760.685123 | J54: =IF(SUM(data_tracking[[#This Row],[111-FILSN1 Units]],data_tracking[[#This Row],[112-FILSN2 Units]],data_tracking[[#This Row],[113-FILSN3 Units]])=0,"",SUM(data_tracking[[#This Row],[111-FILSN1 Units]],data_tracking[[#This Row],[112-FILSN2 Units]],data_tracking[[#This Row],[113-FILSN3 Units]])) -> 4513 | K54: =IF(SUMIFS('2015 sah unit data'!B:B,'2015 sah unit data'!L:L,data_tracking[[#This Row],[year]],'2015 sah unit data'!K:K,data_tracking[[#This Row],[month]],'2015 sah unit data'!J:J,data_tracking[[#This Row],[week]])=0,"",SUMIFS('2015 sah unit data'!B:B,'2015 sah unit data'!L:L,data_tracking[[#This Row],[year]],'2015 sah unit data'!K:K,data_tracking[[#This Row],[month]],'2015 sah unit data'!J:J,data_tracking[[#This Row],[week]])) -> 2640.262146 | L54: =IF(SUMIFS('2015 sah unit data'!C:C,'2015 sah unit data'!L:L,data_tracking[[#This Row],[year]],'2015 sah unit data'!K:K,data_tracking[[#This Row],[month]],'2015 sah unit data'!J:J,data_tracking[[#This Row],[week]])=0,"",SUMIFS('2015 sah unit data'!C:C,'2015 sah unit data'!L:L,data_tracking[[#This Row],[year]],'2015 sah unit data'!K:K,data_tracking[[#This Row],[month]],'2015 sah unit data'!J:J,data_tracking[[#This Row],[week]])) -> 1576.422977 | M54: =IF(SUMIFS('2015 sah unit data'!D:D,'2015 sah unit data'!L:L,data_tracking[[#This Row],[year]],'2015 sah unit data'!K:K,data_tracking[[#This Row],[month]],'2015 sah unit data'!J:J,data_tracking[[#This Row],[week]])=0,"",SUMIFS('2015 sah unit data'!D:D,'2015 sah unit data'!L:L,data_tracking[[#This Row],[year]],'2015 sah unit data'!K:K,data_tracking[[#This Row],[month]],'2015 sah unit data'!J:J,data_tracking[[#This Row],[week]])) -> 544 | N54: =IF(SUMIFS('2015 sah unit data'!E:E,'2015 sah unit data'!L:L,data_tracking[[#This Row],[year]],'2015 sah unit data'!K:K,data_tracking[[#This Row],[month]],'2015 sah unit data'!J:J,data_tracking[[#This Row],[week]])=0,"",SUMIFS('2015 sah unit data'!E:E,'2015 sah unit data'!L:L,data_tracking[[#This Row],[year]],'2015 sah unit data'!K:K,data_tracking[[#This Row],[month]],'2015 sah unit data'!J:J,data_tracking[[#This Row],[week]])) -> 2227 | O54: =IF(SUMIFS('2015 sah unit data'!F:F,'2015 sah unit data'!L:L,data_tracking[[#This Row],[year]],'2015 sah unit data'!K:K,data_tracking[[#This Row],[month]],'2015 sah unit data'!J:J,data_tracking[[#This Row],[week]])=0,"",SUMIFS('2015 sah unit data'!F:F,'2015 sah unit data'!L:L,data_tracking[[#This Row],[year]],'2015 sah unit data'!K:K,data_tracking[[#This Row],[month]],'2015 sah unit data'!J:J,data_tracking[[#This Row],[week]])) -> 1742 | P54: =IF(SUMIFS('2015 sah unit data'!G:G,'2015 sah unit data'!L:L,data_tracking[[#This Row],[year]],'2015 sah unit data'!K:K,data_tracking[[#This Row],[month]],'2015 sah unit data'!J:J,data_tracking[[#This Row],[week]])=0,"",SUMIFS('2015 sah unit data'!G:G,'2015 sah unit data'!L:L,data_tracking[[#This Row],[year]],'2015 sah unit data'!K:K,data_tracking[[#This Row],[month]],'2015 sah unit data'!J:J,data_tracking[[#This Row],[week]])) -> 544 | Q54: =SUMIFS('2015 sah unit data'!I:I,'2015 sah unit data'!L:L,data_tracking[[#This Row],[year]],'2015 sah unit data'!K:K,data_tracking[[#This Row],[month]],'2015 sah unit data'!J:J,data_tracking[[#This Row],[week]]) -> 16 | R54: =SUMIFS('overhead costs data'!E:E,'overhead costs data'!C:C,data_tracking[[#This Row],[year]],'overhead costs data'!B:B,data_tracking[[#This Row],[month]]) -> 80054.604
A55: 1 | B55: 1 | C55: 2016 | D55: =D54*1.089 -> 39.77028 | E55: =E54*1.089 -> 21.82356 | F55: =IFERROR((data_tracking[[#This Row],[overhead]]+SUMIFS('labor costs data'!H:H,'labor costs data'!D:D,data_tracking[[#This Row],[year]],'labor costs data'!A:A,data_tracking[[#This Row],[week]]))/data_tracking[[#This Row],[SAH Completed (Total)]],"") ->  | G55: =IFERROR(SUMIFS('labor costs data'!E:E,'labor costs data'!D:D,data_tracking[[#This Row],[year]],'labor costs data'!A:A,data_tracking[[#This Row],[week]])/data_tracking[[#This Row],[SAH Completed (Total)]],"") ->  | H55: =IFERROR((data_tracking[[#This Row],[overhead]]+SUMIFS(labor_costs[total labor cost],labor_costs[year],data_tracking[[#This Row],[year]],labor_costs[week],data_tracking[[#This Row],[week]]))/data_tracking[[#This Row],[Units Completed (Total)]],"") ->  | I55: =IF(SUM(data_tracking[[#This Row],[111-FILSN1 SAH]],data_tracking[[#This Row],[112-FILSN2 SAH]],data_tracking[[#This Row],[113-FILSN3 SAH]])=0,"",SUM(data_tracking[[#This Row],[111-FILSN1 SAH]],data_tracking[[#This Row],[112-FILSN2 SAH]],data_tracking[[#This Row],[113-FILSN3 SAH]])) ->  | J55: =IF(SUM(data_tracking[[#This Row],[111-FILSN1 Units]],data_tracking[[#This Row],[112-FILSN2 Units]],data_tracking[[#This Row],[113-FILSN3 Units]])=0,"",SUM(data_tracking[[#This Row],[111-FILSN1 Units]],data_tracking[[#This Row],[112-FILSN2 Units]],data_tracking[[#This Row],[113-FILSN3 Units]])) ->  | K55: =IF(SUMIFS('2015 sah unit data'!B:B,'2015 sah unit data'!L:L,data_tracking[[#This Row],[year]],'2015 sah unit data'!K:K,data_tracking[[#This Row],[month]],'2015 sah unit data'!J:J,data_tracking[[#This Row],[week]])=0,"",SUMIFS('2015 sah unit data'!B:B,'2015 sah unit data'!L:L,data_tracking[[#This Row],[year]],'2015 sah unit data'!K:K,data_tracking[[#This Row],[month]],'2015 sah unit data'!J:J,data_tracking[[#This Row],[week]])) ->  | L55: =IF(SUMIFS('2015 sah unit data'!C:C,'2015 sah unit data'!L:L,data_tracking[[#This Row],[year]],'2015 sah unit data'!K:K,data_tracking[[#This Row],[month]],'2015 sah unit data'!J:J,data_tracking[[#This Row],[week]])=0,"",SUMIFS('2015 sah unit data'!C:C,'2015 sah unit data'!L:L,data_tracking[[#This Row],[year]],'2015 sah unit data'!K:K,data_tracking[[#This Row],[month]],'2015 sah unit data'!J:J,data_tracking[[#This Row],[week]])) ->  | M55: =IF(SUMIFS('2015 sah unit data'!D:D,'2015 sah unit data'!L:L,data_tracking[[#This Row],[year]],'2015 sah unit data'!K:K,data_tracking[[#This Row],[month]],'2015 sah unit data'!J:J,data_tracking[[#This Row],[week]])=0,"",SUMIFS('2015 sah unit data'!D:D,'2015 sah unit data'!L:L,data_tracking[[#This Row],[year]],'2015 sah unit data'!K:K,data_tracking[[#This Row],[month]],'2015 sah unit data'!J:J,data_tracking[[#This Row],[week]])) ->  | N55: =IF(SUMIFS('2015 sah unit data'!E:E,'2015 sah unit data'!L:L,data_tracking[[#This Row],[year]],'2015 sah unit data'!K:K,data_tracking[[#This Row],[month]],'2015 sah unit data'!J:J,data_tracking[[#This Row],[week]])=0,"",SUMIFS('2015 sah unit data'!E:E,'2015 sah unit data'!L:L,data_tracking[[#This Row],[year]],'2015 sah unit data'!K:K,data_tracking[[#This Row],[month]],'2015 sah unit data'!J:J,data_tracking[[#This Row],[week]])) ->  | O55: =IF(SUMIFS('2015 sah unit data'!F:F,'2015 sah unit data'!L:L,data_tracking[[#This Row],[year]],'2015 sah unit data'!K:K,data_tracking[[#This Row],[month]],'2015 sah unit data'!J:J,data_tracking[[#This Row],[week]])=0,"",SUMIFS('2015 sah unit data'!F:F,'2015 sah unit data'!L:L,data_tracking[[#This Row],[year]],'2015 sah unit data'!K:K,data_tracking[[#This Row],[month]],'2015 sah unit data'!J:J,data_tracking[[#This Row],[week]])) ->  | P55: =IF(SUMIFS('2015 sah unit data'!G:G,'2015 sah unit data'!L:L,data_tracking[[#This Row],[year]],'2015 sah unit data'!K:K,data_tracking[[#This Row],[month]],'2015 sah unit data'!J:J,data_tracking[[#This Row],[week]])=0,"",SUMIFS('2015 sah unit data'!G:G,'2015 sah unit data'!L:L,data_tracking[[#This Row],[year]],'2015 sah unit data'!K:K,data_tracking[[#This Row],[month]],'2015 sah unit data'!J:J,data_tracking[[#This Row],[week]])) ->  | R55: =SUMIFS('overhead costs data'!E:E,'overhead costs data'!C:C,data_tracking[[#This Row],[year]],'overhead costs data'!B:B,data_tracking[[#This Row],[month]]) -> 70000
A56: 2 | B56: 1 | C56: 2016 | D56: 39.77028 | E56: 21.82356 | F56: =IFERROR((data_tracking[[#This Row],[overhead]]+SUMIFS('labor costs data'!H:H,'labor costs data'!D:D,data_tracking[[#This Row],[year]],'labor costs data'!A:A,data_tracking[[#This Row],[week]]))/data_tracking[[#This Row],[SAH Completed (Total)]],"") -> 67.53908002 | G56: =IFERROR(SUMIFS('labor costs data'!E:E,'labor costs data'!D:D,data_tracking[[#This Row],[year]],'labor costs data'!A:A,data_tracking[[#This Row],[week]])/data_tracking[[#This Row],[SAH Completed (Total)]],"") -> 29.28620132 | H56: =IFERROR((data_tracking[[#This Row],[overhead]]+SUMIFS(labor_costs[total labor cost],labor_costs[year],data_tracking[[#This Row],[year]],labor_costs[week],data_tracking[[#This Row],[week]]))/data_tracking[[#This Row],[Units Completed (Total)]],"") -> 53.23413148 | I56: =IF(SUM(data_tracking[[#This Row],[111-FILSN1 SAH]],data_tracking[[#This Row],[112-FILSN2 SAH]],data_tracking[[#This Row],[113-FILSN3 SAH]])=0,"",SUM(data_tracking[[#This Row],[111-FILSN1 SAH]],data_tracking[[#This Row],[112-FILSN2 SAH]],data_tracking[[#This Row],[113-FILSN3 SAH]])) -> 4532.135408 | J56: =IF(SUM(data_tracking[[#This Row],[111-FILSN1 Units]],data_tracking[[#This Row],[112-FILSN2 Units]],data_tracking[[#This Row],[113-FILSN3 Units]])=0,"",SUM(data_tracking[[#This Row],[111-FILSN1 Units]],data_tracking[[#This Row],[112-FILSN2 Units]],data_tracking[[#This Row],[113-FILSN3 Units]])) -> 5750 | K56: =IF(SUMIFS('2015 sah unit data'!B:B,'2015 sah unit data'!L:L,data_tracking[[#This Row],[year]],'2015 sah unit data'!K:K,data_tracking[[#This Row],[month]],'2015 sah unit data'!J:J,data_tracking[[#This Row],[week]])=0,"",SUMIFS('2015 sah unit data'!B:B,'2015 sah unit data'!L:L,data_tracking[[#This Row],[year]],'2015 sah unit data'!K:K,data_tracking[[#This Row],[month]],'2015 sah unit data'!J:J,data_tracking[[#This Row],[week]])) -> 1948.343667 | L56: =IF(SUMIFS('2015 sah unit data'!C:C,'2015 sah unit data'!L:L,data_tracking[[#This Row],[year]],'2015 sah unit data'!K:K,data_tracking[[#This Row],[month]],'2015 sah unit data'!J:J,data_tracking[[#This Row],[week]])=0,"",SUMIFS('2015 sah unit data'!C:C,'2015 sah unit data'!L:L,data_tracking[[#This Row],[year]],'2015 sah unit data'!K:K,data_tracking[[#This Row],[month]],'2015 sah unit data'!J:J,data_tracking[[#This Row],[week]])) -> 1694.616742 | M56: =IF(SUMIFS('2015 sah unit data'!D:D,'2015 sah unit data'!L:L,data_tracking[[#This Row],[year]],'2015 sah unit data'!K:K,data_tracking[[#This Row],[month]],'2015 sah unit data'!J:J,data_tracking[[#This Row],[week]])=0,"",SUMIFS('2015 sah unit data'!D:D,'2015 sah unit data'!L:L,data_tracking[[#This Row],[year]],'2015 sah unit data'!K:K,data_tracking[[#This Row],[month]],'2015 sah unit data'!J:J,data_tracking[[#This Row],[week]])) -> 889.175 | N56: =IF(SUMIFS('2015 sah unit data'!E:E,'2015 sah unit data'!L:L,data_tracking[[#This Row],[year]],'2015 sah unit data'!K:K,data_tracking[[#This Row],[month]],'2015 sah unit data'!J:J,data_tracking[[#This Row],[week]])=0,"",SUMIFS('2015 sah unit data'!E:E,'2015 sah unit data'!L:L,data_tracking[[#This Row],[year]],'2015 sah unit data'!K:K,data_tracking[[#This Row],[month]],'2015 sah unit data'!J:J,data_tracking[[#This Row],[week]])) -> 1575 | O56: =IF(SUMIFS('2015 sah unit data'!F:F,'2015 sah unit data'!L:L,data_tracking[[#This Row],[year]],'2015 sah unit data'!K:K,data_tracking[[#This Row],[month]],'2015 sah unit data'!J:J,data_tracking[[#This Row],[week]])=0,"",SUMIFS('2015 sah unit data'!F:F,'2015 sah unit data'!L:L,data_tracking[[#This Row],[year]],'2015 sah unit data'!K:K,data_tracking[[#This Row],[month]],'2015 sah unit data'!J:J,data_tracking[[#This Row],[week]])) -> 2465 | P56: =IF(SUMIFS('2015 sah unit data'!G:G,'2015 sah unit data'!L:L,data_tracking[[#This Row],[year]],'2015 sah unit data'!K:K,data_tracking[[#This Row],[month]],'2015 sah unit data'!J:J,data_tracking[[#This Row],[week]])=0,"",SUMIFS('2015 sah unit data'!G:G,'2015 sah unit data'!L:L,data_tracking[[#This Row],[year]],'2015 sah unit data'!K:K,data_tracking[[#This Row],[month]],'2015 sah unit data'!J:J,data_tracking[[#This Row],[week]])) -> 1710 | R56: =SUMIFS('overhead costs data'!E:E,'overhead costs data'!C:C,data_tracking[[#This Row],[year]],'overhead costs data'!B:B,data_tracking[[#This Row],[month]]) -> 70000
A57: 3 | B57: 1 | C57: 2016 | D57: 39.77028 | E57: 21.82356 | F57: =IFERROR((data_tracking[[#This Row],[overhead]]+SUMIFS('labor costs data'!H:H,'labor costs data'!D:D,data_tracking[[#This Row],[year]],'labor costs data'!A:A,data_tracking[[#This Row],[week]]))/data_tracking[[#This Row],[SAH Completed (Total)]],"") -> 44.19206689 | G57: =IFERROR(SUMIFS('labor costs data'!E:E,'labor costs data'!D:D,data_tracking[[#This Row],[year]],'labor costs data'!A:A,data_tracking[[#This Row],[week]])/data_tracking[[#This Row],[SAH Completed (Total)]],"") -> 17.23022836 | H57: =IFERROR((data_tracking[[#This Row],[overhead]]+SUMIFS(labor_costs[total labor cost],labor_costs[year],data_tracking[[#This Row],[year]],labor_costs[week],data_tracking[[#This Row],[week]]))/data_tracking[[#This Row],[Units Completed (Total)]],"") -> 47.67951084 | I57: =IF(SUM(data_tracking[[#This Row],[111-FILSN1 SAH]],data_tracking[[#This Row],[112-FILSN2 SAH]],data_tracking[[#This Row],[113-FILSN3 SAH]])=0,"",SUM(data_tracking[[#This Row],[111-FILSN1 SAH]],data_tracking[[#This Row],[112-FILSN2 SAH]],data_tracking[[#This Row],[113-FILSN3 SAH]])) -> 5874.6955 | J57: =IF(SUM(data_tracking[[#This Row],[111-FILSN1 Units]],data_tracking[[#This Row],[112-FILSN2 Units]],data_tracking[[#This Row],[113-FILSN3 Units]])=0,"",SUM(data_tracking[[#This Row],[111-FILSN1 Units]],data_tracking[[#This Row],[112-FILSN2 Units]],data_tracking[[#This Row],[113-FILSN3 Units]])) -> 5445 | K57: =IF(SUMIFS('2015 sah unit data'!B:B,'2015 sah unit data'!L:L,data_tracking[[#This Row],[year]],'2015 sah unit data'!K:K,data_tracking[[#This Row],[month]],'2015 sah unit data'!J:J,data_tracking[[#This Row],[week]])=0,"",SUMIFS('2015 sah unit data'!B:B,'2015 sah unit data'!L:L,data_tracking[[#This Row],[year]],'2015 sah unit data'!K:K,data_tracking[[#This Row],[month]],'2015 sah unit data'!J:J,data_tracking[[#This Row],[week]])) -> 3488.023667 | L57: =IF(SUMIFS('2015 sah unit data'!C:C,'2015 sah unit data'!L:L,data_tracking[[#This Row],[year]],'2015 sah unit data'!K:K,data_tracking[[#This Row],[month]],'2015 sah unit data'!J:J,data_tracking[[#This Row],[week]])=0,"",SUMIFS('2015 sah unit data'!C:C,'2015 sah unit data'!L:L,data_tracking[[#This Row],[year]],'2015 sah unit data'!K:K,data_tracking[[#This Row],[month]],'2015 sah unit data'!J:J,data_tracking[[#This Row],[week]])) -> 1695.3755 | M57: =IF(SUMIFS('2015 sah unit data'!D:D,'2015 sah unit data'!L:L,data_tracking[[#This Row],[year]],'2015 sah unit data'!K:K,data_tracking[[#This Row],[month]],'2015 sah unit data'!J:J,data_tracking[[#This Row],[week]])=0,"",SUMIFS('2015 sah unit data'!D:D,'2015 sah unit data'!L:L,data_tracking[[#This Row],[year]],'2015 sah unit data'!K:K,data_tracking[[#This Row],[month]],'2015 sah unit data'!J:J,data_tracking[[#This Row],[week]])) -> 691.2963333 | N57: =IF(SUMIFS('2015 sah unit data'!E:E,'2015 sah unit data'!L:L,data_tracking[[#This Row],[year]],'2015 sah unit data'!K:K,data_tracking[[#This Row],[month]],'2015 sah unit data'!J:J,data_tracking[[#This Row],[week]])=0,"",SUMIFS('2015 sah unit data'!E:E,'2015 sah unit data'!L:L,data_tracking[[#This Row],[year]],'2015 sah unit data'!K:K,data_tracking[[#This Row],[month]],'2015 sah unit data'!J:J,data_tracking[[#This Row],[week]])) -> 3160 | O57: =IF(SUMIFS('2015 sah unit data'!F:F,'2015 sah unit data'!L:L,data_tracking[[#This Row],[year]],'2015 sah unit data'!K:K,data_tracking[[#This Row],[month]],'2015 sah unit data'!J:J,data_tracking[[#This Row],[week]])=0,"",SUMIFS('2015 sah unit data'!F:F,'2015 sah unit data'!L:L,data_tracking[[#This Row],[year]],'2015 sah unit data'!K:K,data_tracking[[#This Row],[month]],'2015 sah unit data'!J:J,data_tracking[[#This Row],[week]])) -> 1570 | P57: =IF(SUMIFS('2015 sah unit data'!G:G,'2015 sah unit data'!L:L,data_tracking[[#This Row],[year]],'2015 sah unit data'!K:K,data_tracking[[#This Row],[month]],'2015 sah unit data'!J:J,data_tracking[[#This Row],[week]])=0,"",SUMIFS('2015 sah unit data'!G:G,'2015 sah unit data'!L:L,data_tracking[[#This Row],[year]],'2015 sah unit data'!K:K,data_tracking[[#This Row],[month]],'2015 sah unit data'!J:J,data_tracking[[#This Row],[week]])) -> 715 | R57: =SUMIFS('overhead costs data'!E:E,'overhead costs data'!C:C,data_tracking[[#This Row],[year]],'overhead costs data'!B:B,data_tracking[[#This Row],[month]]) -> 70000
A58: 4 | B58: 1 | C58: 2016 | D58: 39.77028 | E58: 21.82356 | F58: =IFERROR((data_tracking[[#This Row],[overhead]]+SUMIFS('labor costs data'!H:H,'labor costs data'!D:D,data_tracking[[#This Row],[year]],'labor costs data'!A:A,data_tracking[[#This Row],[week]]))/data_tracking[[#This Row],[SAH Completed (Total)]],"") -> 54.43299578 | G58: =IFERROR(SUMIFS('labor costs data'!E:E,'labor costs data'!D:D,data_tracking[[#This Row],[year]],'labor costs data'!A:A,data_tracking[[#This Row],[week]])/data_tracking[[#This Row],[SAH Completed (Total)]],"") -> 21.22310662 | H58: =IFERROR((data_tracking[[#This Row],[overhead]]+SUMIFS(labor_costs[total labor cost],labor_costs[year],data_tracking[[#This Row],[year]],labor_costs[week],data_tracking[[#This Row],[week]]))/data_tracking[[#This Row],[Units Completed (Total)]],"") -> 54.19936044 | I58: =IF(SUM(data_tracking[[#This Row],[111-FILSN1 SAH]],data_tracking[[#This Row],[112-FILSN2 SAH]],data_tracking[[#This Row],[113-FILSN3 SAH]])=0,"",SUM(data_tracking[[#This Row],[111-FILSN1 SAH]],data_tracking[[#This Row],[112-FILSN2 SAH]],data_tracking[[#This Row],[113-FILSN3 SAH]])) -> 4769.440535 | J58: =IF(SUM(data_tracking[[#This Row],[111-FILSN1 Units]],data_tracking[[#This Row],[112-FILSN2 Units]],data_tracking[[#This Row],[113-FILSN3 Units]])=0,"",SUM(data_tracking[[#This Row],[111-FILSN1 Units]],data_tracking[[#This Row],[112-FILSN2 Units]],data_tracking[[#This Row],[113-FILSN3 Units]])) -> 4790 | K58: =IF(SUMIFS('2015 sah unit data'!B:B,'2015 sah unit data'!L:L,data_tracking[[#This Row],[year]],'2015 sah unit data'!K:K,data_tracking[[#This Row],[month]],'2015 sah unit data'!J:J,data_tracking[[#This Row],[week]])=0,"",SUMIFS('2015 sah unit data'!B:B,'2015 sah unit data'!L:L,data_tracking[[#This Row],[year]],'2015 sah unit data'!K:K,data_tracking[[#This Row],[month]],'2015 sah unit data'!J:J,data_tracking[[#This Row],[week]])) -> 2336.950417 | L58: =IF(SUMIFS('2015 sah unit data'!C:C,'2015 sah unit data'!L:L,data_tracking[[#This Row],[year]],'2015 sah unit data'!K:K,data_tracking[[#This Row],[month]],'2015 sah unit data'!J:J,data_tracking[[#This Row],[week]])=0,"",SUMIFS('2015 sah unit data'!C:C,'2015 sah unit data'!L:L,data_tracking[[#This Row],[year]],'2015 sah unit data'!K:K,data_tracking[[#This Row],[month]],'2015 sah unit data'!J:J,data_tracking[[#This Row],[week]])) -> 1916.403368 | M58: =IF(SUMIFS('2015 sah unit data'!D:D,'2015 sah unit data'!L:L,data_tracking[[#This Row],[year]],'2015 sah unit data'!K:K,data_tracking[[#This Row],[month]],'2015 sah unit data'!J:J,data_tracking[[#This Row],[week]])=0,"",SUMIFS('2015 sah unit data'!D:D,'2015 sah unit data'!L:L,data_tracking[[#This Row],[year]],'2015 sah unit data'!K:K,data_tracking[[#This Row],[month]],'2015 sah unit data'!J:J,data_tracking[[#This Row],[week]])) -> 516.08675 | N58: =IF(SUMIFS('2015 sah unit data'!E:E,'2015 sah unit data'!L:L,data_tracking[[#This Row],[year]],'2015 sah unit data'!K:K,data_tracking[[#This Row],[month]],'2015 sah unit data'!J:J,data_tracking[[#This Row],[week]])=0,"",SUMIFS('2015 sah unit data'!E:E,'2015 sah unit data'!L:L,data_tracking[[#This Row],[year]],'2015 sah unit data'!K:K,data_tracking[[#This Row],[month]],'2015 sah unit data'!J:J,data_tracking[[#This Row],[week]])) -> 2275 | O58: =IF(SUMIFS('2015 sah unit data'!F:F,'2015 sah unit data'!L:L,data_tracking[[#This Row],[year]],'2015 sah unit data'!K:K,data_tracking[[#This Row],[month]],'2015 sah unit data'!J:J,data_tracking[[#This Row],[week]])=0,"",SUMIFS('2015 sah unit data'!F:F,'2015 sah unit data'!L:L,data_tracking[[#This Row],[year]],'2015 sah unit data'!K:K,data_tracking[[#This Row],[month]],'2015 sah unit data'!J:J,data_tracking[[#This Row],[week]])) -> 1810 | P58: =IF(SUMIFS('2015 sah unit data'!G:G,'2015 sah unit data'!L:L,data_tracking[[#This Row],[year]],'2015 sah unit data'!K:K,data_tracking[[#This Row],[month]],'2015 sah unit data'!J:J,data_tracking[[#This Row],[week]])=0,"",SUMIFS('2015 sah unit data'!G:G,'2015 sah unit data'!L:L,data_tracking[[#This Row],[year]],'2015 sah unit data'!K:K,data_tracking[[#This Row],[month]],'2015 sah unit data'!J:J,data_tracking[[#This Row],[week]])) -> 705 | R58: =SUMIFS('overhead costs data'!E:E,'overhead costs data'!C:C,data_tracking[[#This Row],[year]],'overhead costs data'!B:B,data_tracking[[#This Row],[month]]) -> 70000
A59: 5 | B59: 2 | C59: 2016 | D59: 39.77028 | E59: 21.82356 | F59: =IFERROR((data_tracking[[#This Row],[overhead]]+SUMIFS('labor costs data'!H:H,'labor costs data'!D:D,data_tracking[[#This Row],[year]],'labor costs data'!A:A,data_tracking[[#This Row],[week]]))/data_tracking[[#This Row],[SAH Completed (Total)]],"") -> 50.38167568 | G59: =IFERROR(SUMIFS('labor costs data'!E:E,'labor costs data'!D:D,data_tracking[[#This Row],[year]],'labor costs data'!A:A,data_tracking[[#This Row],[week]])/data_tracking[[#This Row],[SAH Completed (Total)]],"") -> 19.24953632 | H59: =IFERROR((data_tracking[[#This Row],[overhead]]+SUMIFS(labor_costs[total labor cost],labor_costs[year],data_tracking[[#This Row],[year]],labor_costs[week],data_tracking[[#This Row],[week]]))/data_tracking[[#This Row],[Units Completed (Total)]],"") -> 71.55396937 | I59: =IF(SUM(data_tracking[[#This Row],[111-FILSN1 SAH]],data_tracking[[#This Row],[112-FILSN2 SAH]],data_tracking[[#This Row],[113-FILSN3 SAH]])=0,"",SUM(data_tracking[[#This Row],[111-FILSN1 SAH]],data_tracking[[#This Row],[112-FILSN2 SAH]],data_tracking[[#This Row],[113-FILSN3 SAH]])) -> 5193.810298 | J59: =IF(SUM(data_tracking[[#This Row],[111-FILSN1 Units]],data_tracking[[#This Row],[112-FILSN2 Units]],data_tracking[[#This Row],[113-FILSN3 Units]])=0,"",SUM(data_tracking[[#This Row],[111-FILSN1 Units]],data_tracking[[#This Row],[112-FILSN2 Units]],data_tracking[[#This Row],[113-FILSN3 Units]])) -> 3657 | K59: =IF(SUMIFS('2015 sah unit data'!B:B,'2015 sah unit data'!L:L,data_tracking[[#This Row],[year]],'2015 sah unit data'!K:K,data_tracking[[#This Row],[month]],'2015 sah unit data'!J:J,data_tracking[[#This Row],[week]])=0,"",SUMIFS('2015 sah unit data'!B:B,'2015 sah unit data'!L:L,data_tracking[[#This Row],[year]],'2015 sah unit data'!K:K,data_tracking[[#This Row],[month]],'2015 sah unit data'!J:J,data_tracking[[#This Row],[week]])) -> 2932.026542 | L59: =IF(SUMIFS('2015 sah unit data'!C:C,'2015 sah unit data'!L:L,data_tracking[[#This Row],[year]],'2015 sah unit data'!K:K,data_tracking[[#This Row],[month]],'2015 sah unit data'!J:J,data_tracking[[#This Row],[week]])=0,"",SUMIFS('2015 sah unit data'!C:C,'2015 sah unit data'!L:L,data_tracking[[#This Row],[year]],'2015 sah unit data'!K:K,data_tracking[[#This Row],[month]],'2015 sah unit data'!J:J,data_tracking[[#This Row],[week]])) -> 2054.450423 | M59: =IF(SUMIFS('2015 sah unit data'!D:D,'2015 sah unit data'!L:L,data_tracking[[#This Row],[year]],'2015 sah unit data'!K:K,data_tracking[[#This Row],[month]],'2015 sah unit data'!J:J,data_tracking[[#This Row],[week]])=0,"",SUMIFS('2015 sah unit data'!D:D,'2015 sah unit data'!L:L,data_tracking[[#This Row],[year]],'2015 sah unit data'!K:K,data_tracking[[#This Row],[month]],'2015 sah unit data'!J:J,data_tracking[[#This Row],[week]])) -> 207.3333333 | N59: =IF(SUMIFS('2015 sah unit data'!E:E,'2015 sah unit data'!L:L,data_tracking[[#This Row],[year]],'2015 sah unit data'!K:K,data_tracking[[#This Row],[month]],'2015 sah unit data'!J:J,data_tracking[[#This Row],[week]])=0,"",SUMIFS('2015 sah unit data'!E:E,'2015 sah unit data'!L:L,data_tracking[[#This Row],[year]],'2015 sah unit data'!K:K,data_tracking[[#This Row],[month]],'2015 sah unit data'!J:J,data_tracking[[#This Row],[week]])) -> 2025 | O59: =IF(SUMIFS('2015 sah unit data'!F:F,'2015 sah unit data'!L:L,data_tracking[[#This Row],[year]],'2015 sah unit data'!K:K,data_tracking[[#This Row],[month]],'2015 sah unit data'!J:J,data_tracking[[#This Row],[week]])=0,"",SUMIFS('2015 sah unit data'!F:F,'2015 sah unit data'!L:L,data_tracking[[#This Row],[year]],'2015 sah unit data'!K:K,data_tracking[[#This Row],[month]],'2015 sah unit data'!J:J,data_tracking[[#This Row],[week]])) -> 1232 | P59: =IF(SUMIFS('2015 sah unit data'!G:G,'2015 sah unit data'!L:L,data_tracking[[#This Row],[year]],'2015 sah unit data'!K:K,data_tracking[[#This Row],[month]],'2015 sah unit data'!J:J,data_tracking[[#This Row],[week]])=0,"",SUMIFS('2015 sah unit data'!G:G,'2015 sah unit data'!L:L,data_tracking[[#This Row],[year]],'2015 sah unit data'!K:K,data_tracking[[#This Row],[month]],'2015 sah unit data'!J:J,data_tracking[[#This Row],[week]])) -> 400 | R59: =SUMIFS('overhead costs data'!E:E,'overhead costs data'!C:C,data_tracking[[#This Row],[year]],'overhead costs data'!B:B,data_tracking[[#This Row],[month]]) -> 70000
A60: 6 | B60: 2 | C60: 2016 | D60: 39.77028 | E60: 21.82356 | F60: =IFERROR((data_tracking[[#This Row],[overhead]]+SUMIFS('labor costs data'!H:H,'labor costs data'!D:D,data_tracking[[#This Row],[year]],'labor costs data'!A:A,data_tracking[[#This Row],[week]]))/data_tracking[[#This Row],[SAH Completed (Total)]],"") -> 43.10486905 | G60: =IFERROR(SUMIFS('labor costs data'!E:E,'labor costs data'!D:D,data_tracking[[#This Row],[year]],'labor costs data'!A:A,data_tracking[[#This Row],[week]])/data_tracking[[#This Row],[SAH Completed (Total)]],"") -> 16.46925656 | H60: =IFERROR((data_tracking[[#This Row],[overhead]]+SUMIFS(labor_costs[total labor cost],labor_costs[year],data_tracking[[#This Row],[year]],labor_costs[week],data_tracking[[#This Row],[week]]))/data_tracking[[#This Row],[Units Completed (Total)]],"") -> 49.46557013 | I60: =IF(SUM(data_tracking[[#This Row],[111-FILSN1 SAH]],data_tracking[[#This Row],[112-FILSN2 SAH]],data_tracking[[#This Row],[113-FILSN3 SAH]])=0,"",SUM(data_tracking[[#This Row],[111-FILSN1 SAH]],data_tracking[[#This Row],[112-FILSN2 SAH]],data_tracking[[#This Row],[113-FILSN3 SAH]])) -> 6070.610392 | J60: =IF(SUM(data_tracking[[#This Row],[111-FILSN1 Units]],data_tracking[[#This Row],[112-FILSN2 Units]],data_tracking[[#This Row],[113-FILSN3 Units]])=0,"",SUM(data_tracking[[#This Row],[111-FILSN1 Units]],data_tracking[[#This Row],[112-FILSN2 Units]],data_tracking[[#This Row],[113-FILSN3 Units]])) -> 5290 | K60: =IF(SUMIFS('2015 sah unit data'!B:B,'2015 sah unit data'!L:L,data_tracking[[#This Row],[year]],'2015 sah unit data'!K:K,data_tracking[[#This Row],[month]],'2015 sah unit data'!J:J,data_tracking[[#This Row],[week]])=0,"",SUMIFS('2015 sah unit data'!B:B,'2015 sah unit data'!L:L,data_tracking[[#This Row],[year]],'2015 sah unit data'!K:K,data_tracking[[#This Row],[month]],'2015 sah unit data'!J:J,data_tracking[[#This Row],[week]])) -> 2697.388125 | L60: =IF(SUMIFS('2015 sah unit data'!C:C,'2015 sah unit data'!L:L,data_tracking[[#This Row],[year]],'2015 sah unit data'!K:K,data_tracking[[#This Row],[month]],'2015 sah unit data'!J:J,data_tracking[[#This Row],[week]])=0,"",SUMIFS('2015 sah unit data'!C:C,'2015 sah unit data'!L:L,data_tracking[[#This Row],[year]],'2015 sah unit data'!K:K,data_tracking[[#This Row],[month]],'2015 sah unit data'!J:J,data_tracking[[#This Row],[week]])) -> 2506.368933 | M60: =IF(SUMIFS('2015 sah unit data'!D:D,'2015 sah unit data'!L:L,data_tracking[[#This Row],[year]],'2015 sah unit data'!K:K,data_tracking[[#This Row],[month]],'2015 sah unit data'!J:J,data_tracking[[#This Row],[week]])=0,"",SUMIFS('2015 sah unit data'!D:D,'2015 sah unit data'!L:L,data_tracking[[#This Row],[year]],'2015 sah unit data'!K:K,data_tracking[[#This Row],[month]],'2015 sah unit data'!J:J,data_tracking[[#This Row],[week]])) -> 866.8533333 | N60: =IF(SUMIFS('2015 sah unit data'!E:E,'2015 sah unit data'!L:L,data_tracking[[#This Row],[year]],'2015 sah unit data'!K:K,data_tracking[[#This Row],[month]],'2015 sah unit data'!J:J,data_tracking[[#This Row],[week]])=0,"",SUMIFS('2015 sah unit data'!E:E,'2015 sah unit data'!L:L,data_tracking[[#This Row],[year]],'2015 sah unit data'!K:K,data_tracking[[#This Row],[month]],'2015 sah unit data'!J:J,data_tracking[[#This Row],[week]])) -> 1650 | O60: =IF(SUMIFS('2015 sah unit data'!F:F,'2015 sah unit data'!L:L,data_tracking[[#This Row],[year]],'2015 sah unit data'!K:K,data_tracking[[#This Row],[month]],'2015 sah unit data'!J:J,data_tracking[[#This Row],[week]])=0,"",SUMIFS('2015 sah unit data'!F:F,'2015 sah unit data'!L:L,data_tracking[[#This Row],[year]],'2015 sah unit data'!K:K,data_tracking[[#This Row],[month]],'2015 sah unit data'!J:J,data_tracking[[#This Row],[week]])) -> 2040 | P60: =IF(SUMIFS('2015 sah unit data'!G:G,'2015 sah unit data'!L:L,data_tracking[[#This Row],[year]],'2015 sah unit data'!K:K,data_tracking[[#This Row],[month]],'2015 sah unit data'!J:J,data_tracking[[#This Row],[week]])=0,"",SUMIFS('2015 sah unit data'!G:G,'2015 sah unit data'!L:L,data_tracking[[#This Row],[year]],'2015 sah unit data'!K:K,data_tracking[[#This Row],[month]],'2015 sah unit data'!J:J,data_tracking[[#This Row],[week]])) -> 1600 | R60: =SUMIFS('overhead costs data'!E:E,'overhead costs data'!C:C,data_tracking[[#This Row],[year]],'overhead costs data'!B:B,data_tracking[[#This Row],[month]]) -> 70000
A61: 7 | B61: 2 | C61: 2016 | D61: 39.77028 | E61: 21.82356 | F61: =IFERROR((data_tracking[[#This Row],[overhead]]+SUMIFS('labor costs data'!H:H,'labor costs data'!D:D,data_tracking[[#This Row],[year]],'labor costs data'!A:A,data_tracking[[#This Row],[week]]))/data_tracking[[#This Row],[SAH Completed (Total)]],"") -> 48.95059798 | G61: =IFERROR(SUMIFS('labor costs data'!E:E,'labor costs data'!D:D,data_tracking[[#This Row],[year]],'labor costs data'!A:A,data_tracking[[#This Row],[week]])/data_tracking[[#This Row],[SAH Completed (Total)]],"") -> 18.47642137 | H61: =IFERROR((data_tracking[[#This Row],[overhead]]+SUMIFS(labor_costs[total labor cost],labor_costs[year],data_tracking[[#This Row],[year]],labor_costs[week],data_tracking[[#This Row],[week]]))/data_tracking[[#This Row],[Units Completed (Total)]],"") -> 34.86092177 | I61: =IF(SUM(data_tracking[[#This Row],[111-FILSN1 SAH]],data_tracking[[#This Row],[112-FILSN2 SAH]],data_tracking[[#This Row],[113-FILSN3 SAH]])=0,"",SUM(data_tracking[[#This Row],[111-FILSN1 SAH]],data_tracking[[#This Row],[112-FILSN2 SAH]],data_tracking[[#This Row],[113-FILSN3 SAH]])) -> 5184.56405 | J61: =IF(SUM(data_tracking[[#This Row],[111-FILSN1 Units]],data_tracking[[#This Row],[112-FILSN2 Units]],data_tracking[[#This Row],[113-FILSN3 Units]])=0,"",SUM(data_tracking[[#This Row],[111-FILSN1 Units]],data_tracking[[#This Row],[112-FILSN2 Units]],data_tracking[[#This Row],[113-FILSN3 Units]])) -> 7280 | K61: =IF(SUMIFS('2015 sah unit data'!B:B,'2015 sah unit data'!L:L,data_tracking[[#This Row],[year]],'2015 sah unit data'!K:K,data_tracking[[#This Row],[month]],'2015 sah unit data'!J:J,data_tracking[[#This Row],[week]])=0,"",SUMIFS('2015 sah unit data'!B:B,'2015 sah unit data'!L:L,data_tracking[[#This Row],[year]],'2015 sah unit data'!K:K,data_tracking[[#This Row],[month]],'2015 sah unit data'!J:J,data_tracking[[#This Row],[week]])) -> 2572.829667 | L61: =IF(SUMIFS('2015 sah unit data'!C:C,'2015 sah unit data'!L:L,data_tracking[[#This Row],[year]],'2015 sah unit data'!K:K,data_tracking[[#This Row],[month]],'2015 sah unit data'!J:J,data_tracking[[#This Row],[week]])=0,"",SUMIFS('2015 sah unit data'!C:C,'2015 sah unit data'!L:L,data_tracking[[#This Row],[year]],'2015 sah unit data'!K:K,data_tracking[[#This Row],[month]],'2015 sah unit data'!J:J,data_tracking[[#This Row],[week]])) -> 1655.660717 | M61: =IF(SUMIFS('2015 sah unit data'!D:D,'2015 sah unit data'!L:L,data_tracking[[#This Row],[year]],'2015 sah unit data'!K:K,data_tracking[[#This Row],[month]],'2015 sah unit data'!J:J,data_tracking[[#This Row],[week]])=0,"",SUMIFS('2015 sah unit data'!D:D,'2015 sah unit data'!L:L,data_tracking[[#This Row],[year]],'2015 sah unit data'!K:K,data_tracking[[#This Row],[month]],'2015 sah unit data'!J:J,data_tracking[[#This Row],[week]])) -> 956.0736667 | N61: =IF(SUMIFS('2015 sah unit data'!E:E,'2015 sah unit data'!L:L,data_tracking[[#This Row],[year]],'2015 sah unit data'!K:K,data_tracking[[#This Row],[month]],'2015 sah unit data'!J:J,data_tracking[[#This Row],[week]])=0,"",SUMIFS('2015 sah unit data'!E:E,'2015 sah unit data'!L:L,data_tracking[[#This Row],[year]],'2015 sah unit data'!K:K,data_tracking[[#This Row],[month]],'2015 sah unit data'!J:J,data_tracking[[#This Row],[week]])) -> 1750 | O61: =IF(SUMIFS('2015 sah unit data'!F:F,'2015 sah unit data'!L:L,data_tracking[[#This Row],[year]],'2015 sah unit data'!K:K,data_tracking[[#This Row],[month]],'2015 sah unit data'!J:J,data_tracking[[#This Row],[week]])=0,"",SUMIFS('2015 sah unit data'!F:F,'2015 sah unit data'!L:L,data_tracking[[#This Row],[year]],'2015 sah unit data'!K:K,data_tracking[[#This Row],[month]],'2015 sah unit data'!J:J,data_tracking[[#This Row],[week]])) -> 3250 | P61: =IF(SUMIFS('2015 sah unit data'!G:G,'2015 sah unit data'!L:L,data_tracking[[#This Row],[year]],'2015 sah unit data'!K:K,data_tracking[[#This Row],[month]],'2015 sah unit data'!J:J,data_tracking[[#This Row],[week]])=0,"",SUMIFS('2015 sah unit data'!G:G,'2015 sah unit data'!L:L,data_tracking[[#This Row],[year]],'2015 sah unit data'!K:K,data_tracking[[#This Row],[month]],'2015 sah unit data'!J:J,data_tracking[[#This Row],[week]])) -> 2280 | R61: =SUMIFS('overhead costs data'!E:E,'overhead costs data'!C:C,data_tracking[[#This Row],[year]],'overhead costs data'!B:B,data_tracking[[#This Row],[month]]) -> 70000
A62: 8 | B62: 2 | C62: 2016 | D62: 39.77028 | E62: 21.82356 | F62: =IFERROR((data_tracking[[#This Row],[overhead]]+SUMIFS('labor costs data'!H:H,'labor costs data'!D:D,data_tracking[[#This Row],[year]],'labor costs data'!A:A,data_tracking[[#This Row],[week]]))/data_tracking[[#This Row],[SAH Completed (Total)]],"") -> 73.47649173 | G62: =IFERROR(SUMIFS('labor costs data'!E:E,'labor costs data'!D:D,data_tracking[[#This Row],[year]],'labor costs data'!A:A,data_tracking[[#This Row],[week]])/data_tracking[[#This Row],[SAH Completed (Total)]],"") -> 27.73372907 | H62: =IFERROR((data_tracking[[#This Row],[overhead]]+SUMIFS(labor_costs[total labor cost],labor_costs[year],data_tracking[[#This Row],[year]],labor_costs[week],data_tracking[[#This Row],[week]]))/data_tracking[[#This Row],[Units Completed (Total)]],"") -> 72.11921299 | I62: =IF(SUM(data_tracking[[#This Row],[111-FILSN1 SAH]],data_tracking[[#This Row],[112-FILSN2 SAH]],data_tracking[[#This Row],[113-FILSN3 SAH]])=0,"",SUM(data_tracking[[#This Row],[111-FILSN1 SAH]],data_tracking[[#This Row],[112-FILSN2 SAH]],data_tracking[[#This Row],[113-FILSN3 SAH]])) -> 3453.996027 | J62: =IF(SUM(data_tracking[[#This Row],[111-FILSN1 Units]],data_tracking[[#This Row],[112-FILSN2 Units]],data_tracking[[#This Row],[113-FILSN3 Units]])=0,"",SUM(data_tracking[[#This Row],[111-FILSN1 Units]],data_tracking[[#This Row],[112-FILSN2 Units]],data_tracking[[#This Row],[113-FILSN3 Units]])) -> 3519 | K62: =IF(SUMIFS('2015 sah unit data'!B:B,'2015 sah unit data'!L:L,data_tracking[[#This Row],[year]],'2015 sah unit data'!K:K,data_tracking[[#This Row],[month]],'2015 sah unit data'!J:J,data_tracking[[#This Row],[week]])=0,"",SUMIFS('2015 sah unit data'!B:B,'2015 sah unit data'!L:L,data_tracking[[#This Row],[year]],'2015 sah unit data'!K:K,data_tracking[[#This Row],[month]],'2015 sah unit data'!J:J,data_tracking[[#This Row],[week]])) -> 1439.387667 | L62: =IF(SUMIFS('2015 sah unit data'!C:C,'2015 sah unit data'!L:L,data_tracking[[#This Row],[year]],'2015 sah unit data'!K:K,data_tracking[[#This Row],[month]],'2015 sah unit data'!J:J,data_tracking[[#This Row],[week]])=0,"",SUMIFS('2015 sah unit data'!C:C,'2015 sah unit data'!L:L,data_tracking[[#This Row],[year]],'2015 sah unit data'!K:K,data_tracking[[#This Row],[month]],'2015 sah unit data'!J:J,data_tracking[[#This Row],[week]])) -> 1494.8729 | M62: =IF(SUMIFS('2015 sah unit data'!D:D,'2015 sah unit data'!L:L,data_tracking[[#This Row],[year]],'2015 sah unit data'!K:K,data_tracking[[#This Row],[month]],'2015 sah unit data'!J:J,data_tracking[[#This Row],[week]])=0,"",SUMIFS('2015 sah unit data'!D:D,'2015 sah unit data'!L:L,data_tracking[[#This Row],[year]],'2015 sah unit data'!K:K,data_tracking[[#This Row],[month]],'2015 sah unit data'!J:J,data_tracking[[#This Row],[week]])) -> 519.73546 | N62: =IF(SUMIFS('2015 sah unit data'!E:E,'2015 sah unit data'!L:L,data_tracking[[#This Row],[year]],'2015 sah unit data'!K:K,data_tracking[[#This Row],[month]],'2015 sah unit data'!J:J,data_tracking[[#This Row],[week]])=0,"",SUMIFS('2015 sah unit data'!E:E,'2015 sah unit data'!L:L,data_tracking[[#This Row],[year]],'2015 sah unit data'!K:K,data_tracking[[#This Row],[month]],'2015 sah unit data'!J:J,data_tracking[[#This Row],[week]])) -> 1200 | O62: =IF(SUMIFS('2015 sah unit data'!F:F,'2015 sah unit data'!L:L,data_tracking[[#This Row],[year]],'2015 sah unit data'!K:K,data_tracking[[#This Row],[month]],'2015 sah unit data'!J:J,data_tracking[[#This Row],[week]])=0,"",SUMIFS('2015 sah unit data'!F:F,'2015 sah unit data'!L:L,data_tracking[[#This Row],[year]],'2015 sah unit data'!K:K,data_tracking[[#This Row],[month]],'2015 sah unit data'!J:J,data_tracking[[#This Row],[week]])) -> 1090 | P62: =IF(SUMIFS('2015 sah unit data'!G:G,'2015 sah unit data'!L:L,data_tracking[[#This Row],[year]],'2015 sah unit data'!K:K,data_tracking[[#This Row],[month]],'2015 sah unit data'!J:J,data_tracking[[#This Row],[week]])=0,"",SUMIFS('2015 sah unit data'!G:G,'2015 sah unit data'!L:L,data_tracking[[#This Row],[year]],'2015 sah unit data'!K:K,data_tracking[[#This Row],[month]],'2015 sah unit data'!J:J,data_tracking[[#This Row],[week]])) -> 1229 | R62: =SUMIFS('overhead costs data'!E:E,'overhead costs data'!C:C,data_tracking[[#This Row],[year]],'overhead costs data'!B:B,data_tracking[[#This Row],[month]]) -> 70000
A63: 9 | B63: 3 | C63: 2016 | D63: 39.77028 | E63: 21.82356 | F63: =IFERROR((data_tracking[[#This Row],[overhead]]+SUMIFS('labor costs data'!H:H,'labor costs data'!D:D,data_tracking[[#This Row],[year]],'labor costs data'!A:A,data_tracking[[#This Row],[week]]))/data_tracking[[#This Row],[SAH Completed (Total)]],"") -> 50.46536358 | G63: =IFERROR(SUMIFS('labor costs data'!E:E,'labor costs data'!D:D,data_tracking[[#This Row],[year]],'labor costs data'!A:A,data_tracking[[#This Row],[week]])/data_tracking[[#This Row],[SAH Completed (Total)]],"") -> 20.4604719 | H63: =IFERROR((data_tracking[[#This Row],[overhead]]+SUMIFS(labor_costs[total labor cost],labor_costs[year],data_tracking[[#This Row],[year]],labor_costs[week],data_tracking[[#This Row],[week]]))/data_tracking[[#This Row],[Units Completed (Total)]],"") -> 49.26770718 | I63: =IF(SUM(data_tracking[[#This Row],[111-FILSN1 SAH]],data_tracking[[#This Row],[112-FILSN2 SAH]],data_tracking[[#This Row],[113-FILSN3 SAH]])=0,"",SUM(data_tracking[[#This Row],[111-FILSN1 SAH]],data_tracking[[#This Row],[112-FILSN2 SAH]],data_tracking[[#This Row],[113-FILSN3 SAH]])) -> 4879.386237 | J63: =IF(SUM(data_tracking[[#This Row],[111-FILSN1 Units]],data_tracking[[#This Row],[112-FILSN2 Units]],data_tracking[[#This Row],[113-FILSN3 Units]])=0,"",SUM(data_tracking[[#This Row],[111-FILSN1 Units]],data_tracking[[#This Row],[112-FILSN2 Units]],data_tracking[[#This Row],[113-FILSN3 Units]])) -> 4998 | K63: =IF(SUMIFS('2015 sah unit data'!B:B,'2015 sah unit data'!L:L,data_tracking[[#This Row],[year]],'2015 sah unit data'!K:K,data_tracking[[#This Row],[month]],'2015 sah unit data'!J:J,data_tracking[[#This Row],[week]])=0,"",SUMIFS('2015 sah unit data'!B:B,'2015 sah unit data'!L:L,data_tracking[[#This Row],[year]],'2015 sah unit data'!K:K,data_tracking[[#This Row],[month]],'2015 sah unit data'!J:J,data_tracking[[#This Row],[week]])) -> 2744.597083 | L63: =IF(SUMIFS('2015 sah unit data'!C:C,'2015 sah unit data'!L:L,data_tracking[[#This Row],[year]],'2015 sah unit data'!K:K,data_tracking[[#This Row],[month]],'2015 sah unit data'!J:J,data_tracking[[#This Row],[week]])=0,"",SUMIFS('2015 sah unit data'!C:C,'2015 sah unit data'!L:L,data_tracking[[#This Row],[year]],'2015 sah unit data'!K:K,data_tracking[[#This Row],[month]],'2015 sah unit data'!J:J,data_tracking[[#This Row],[week]])) -> 1359.17015 | M63: =IF(SUMIFS('2015 sah unit data'!D:D,'2015 sah unit data'!L:L,data_tracking[[#This Row],[year]],'2015 sah unit data'!K:K,data_tracking[[#This Row],[month]],'2015 sah unit data'!J:J,data_tracking[[#This Row],[week]])=0,"",SUMIFS('2015 sah unit data'!D:D,'2015 sah unit data'!L:L,data_tracking[[#This Row],[year]],'2015 sah unit data'!K:K,data_tracking[[#This Row],[month]],'2015 sah unit data'!J:J,data_tracking[[#This Row],[week]])) -> 775.6190033 | N63: =IF(SUMIFS('2015 sah unit data'!E:E,'2015 sah unit data'!L:L,data_tracking[[#This Row],[year]],'2015 sah unit data'!K:K,data_tracking[[#This Row],[month]],'2015 sah unit data'!J:J,data_tracking[[#This Row],[week]])=0,"",SUMIFS('2015 sah unit data'!E:E,'2015 sah unit data'!L:L,data_tracking[[#This Row],[year]],'2015 sah unit data'!K:K,data_tracking[[#This Row],[month]],'2015 sah unit data'!J:J,data_tracking[[#This Row],[week]])) -> 2000 | O63: =IF(SUMIFS('2015 sah unit data'!F:F,'2015 sah unit data'!L:L,data_tracking[[#This Row],[year]],'2015 sah unit data'!K:K,data_tracking[[#This Row],[month]],'2015 sah unit data'!J:J,data_tracking[[#This Row],[week]])=0,"",SUMIFS('2015 sah unit data'!F:F,'2015 sah unit data'!L:L,data_tracking[[#This Row],[year]],'2015 sah unit data'!K:K,data_tracking[[#This Row],[month]],'2015 sah unit data'!J:J,data_tracking[[#This Row],[week]])) -> 2080 | P63: =IF(SUMIFS('2015 sah unit data'!G:G,'2015 sah unit data'!L:L,data_tracking[[#This Row],[year]],'2015 sah unit data'!K:K,data_tracking[[#This Row],[month]],'2015 sah unit data'!J:J,data_tracking[[#This Row],[week]])=0,"",SUMIFS('2015 sah unit data'!G:G,'2015 sah unit data'!L:L,data_tracking[[#This Row],[year]],'2015 sah unit data'!K:K,data_tracking[[#This Row],[month]],'2015 sah unit data'!J:J,data_tracking[[#This Row],[week]])) -> 918 | R63: =SUMIFS('overhead costs data'!E:E,'overhead costs data'!C:C,data_tracking[[#This Row],[year]],'overhead costs data'!B:B,data_tracking[[#This Row],[month]]) -> 56000
A64: 10 | B64: 3 | C64: 2016 | D64: 39.77028 | E64: 21.82356 | F64: =IFERROR((data_tracking[[#This Row],[overhead]]+SUMIFS('labor costs data'!H:H,'labor costs data'!D:D,data_tracking[[#This Row],[year]],'labor costs data'!A:A,data_tracking[[#This Row],[week]]))/data_tracking[[#This Row],[SAH Completed (Total)]],"") -> 48.27461427 | G64: =IFERROR(SUMIFS('labor costs data'!E:E,'labor costs data'!D:D,data_tracking[[#This Row],[year]],'labor costs data'!A:A,data_tracking[[#This Row],[week]])/data_tracking[[#This Row],[SAH Completed (Total)]],"") -> 19.57226341 | H64: =IFERROR((data_tracking[[#This Row],[overhead]]+SUMIFS(labor_costs[total labor cost],labor_costs[year],data_tracking[[#This Row],[year]],labor_costs[week],data_tracking[[#This Row],[week]]))/data_tracking[[#This Row],[Units Completed (Total)]],"") -> 51.49309923 | I64: =IF(SUM(data_tracking[[#This Row],[111-FILSN1 SAH]],data_tracking[[#This Row],[112-FILSN2 SAH]],data_tracking[[#This Row],[113-FILSN3 SAH]])=0,"",SUM(data_tracking[[#This Row],[111-FILSN1 SAH]],data_tracking[[#This Row],[112-FILSN2 SAH]],data_tracking[[#This Row],[113-FILSN3 SAH]])) -> 5100.817567 | J64: =IF(SUM(data_tracking[[#This Row],[111-FILSN1 Units]],data_tracking[[#This Row],[112-FILSN2 Units]],data_tracking[[#This Row],[113-FILSN3 Units]])=0,"",SUM(data_tracking[[#This Row],[111-FILSN1 Units]],data_tracking[[#This Row],[112-FILSN2 Units]],data_tracking[[#This Row],[113-FILSN3 Units]])) -> 4782 | K64: =IF(SUMIFS('2015 sah unit data'!B:B,'2015 sah unit data'!L:L,data_tracking[[#This Row],[year]],'2015 sah unit data'!K:K,data_tracking[[#This Row],[month]],'2015 sah unit data'!J:J,data_tracking[[#This Row],[week]])=0,"",SUMIFS('2015 sah unit data'!B:B,'2015 sah unit data'!L:L,data_tracking[[#This Row],[year]],'2015 sah unit data'!K:K,data_tracking[[#This Row],[month]],'2015 sah unit data'!J:J,data_tracking[[#This Row],[week]])) -> 3523.593833 | L64: =IF(SUMIFS('2015 sah unit data'!C:C,'2015 sah unit data'!L:L,data_tracking[[#This Row],[year]],'2015 sah unit data'!K:K,data_tracking[[#This Row],[month]],'2015 sah unit data'!J:J,data_tracking[[#This Row],[week]])=0,"",SUMIFS('2015 sah unit data'!C:C,'2015 sah unit data'!L:L,data_tracking[[#This Row],[year]],'2015 sah unit data'!K:K,data_tracking[[#This Row],[month]],'2015 sah unit data'!J:J,data_tracking[[#This Row],[week]])) -> 929.5856667 | M64: =IF(SUMIFS('2015 sah unit data'!D:D,'2015 sah unit data'!L:L,data_tracking[[#This Row],[year]],'2015 sah unit data'!K:K,data_tracking[[#This Row],[month]],'2015 sah unit data'!J:J,data_tracking[[#This Row],[week]])=0,"",SUMIFS('2015 sah unit data'!D:D,'2015 sah unit data'!L:L,data_tracking[[#This Row],[year]],'2015 sah unit data'!K:K,data_tracking[[#This Row],[month]],'2015 sah unit data'!J:J,data_tracking[[#This Row],[week]])) -> 647.6380667 | N64: =IF(SUMIFS('2015 sah unit data'!E:E,'2015 sah unit data'!L:L,data_tracking[[#This Row],[year]],'2015 sah unit data'!K:K,data_tracking[[#This Row],[month]],'2015 sah unit data'!J:J,data_tracking[[#This Row],[week]])=0,"",SUMIFS('2015 sah unit data'!E:E,'2015 sah unit data'!L:L,data_tracking[[#This Row],[year]],'2015 sah unit data'!K:K,data_tracking[[#This Row],[month]],'2015 sah unit data'!J:J,data_tracking[[#This Row],[week]])) -> 2900 | O64: =IF(SUMIFS('2015 sah unit data'!F:F,'2015 sah unit data'!L:L,data_tracking[[#This Row],[year]],'2015 sah unit data'!K:K,data_tracking[[#This Row],[month]],'2015 sah unit data'!J:J,data_tracking[[#This Row],[week]])=0,"",SUMIFS('2015 sah unit data'!F:F,'2015 sah unit data'!L:L,data_tracking[[#This Row],[year]],'2015 sah unit data'!K:K,data_tracking[[#This Row],[month]],'2015 sah unit data'!J:J,data_tracking[[#This Row],[week]])) -> 1000 | P64: =IF(SUMIFS('2015 sah unit data'!G:G,'2015 sah unit data'!L:L,data_tracking[[#This Row],[year]],'2015 sah unit data'!K:K,data_tracking[[#This Row],[month]],'2015 sah unit data'!J:J,data_tracking[[#This Row],[week]])=0,"",SUMIFS('2015 sah unit data'!G:G,'2015 sah unit data'!L:L,data_tracking[[#This Row],[year]],'2015 sah unit data'!K:K,data_tracking[[#This Row],[month]],'2015 sah unit data'!J:J,data_tracking[[#This Row],[week]])) -> 882 | R64: =SUMIFS('overhead costs data'!E:E,'overhead costs data'!C:C,data_tracking[[#This Row],[year]],'overhead costs data'!B:B,data_tracking[[#This Row],[month]]) -> 56000
A65: 11 | B65: 3 | C65: 2016 | D65: 39.77028 | E65: 21.82356 | F65: =IFERROR((data_tracking[[#This Row],[overhead]]+SUMIFS('labor costs data'!H:H,'labor costs data'!D:D,data_tracking[[#This Row],[year]],'labor costs data'!A:A,data_tracking[[#This Row],[week]]))/data_tracking[[#This Row],[SAH Completed (Total)]],"") -> 41.67452869 | G65: =IFERROR(SUMIFS('labor costs data'!E:E,'labor costs data'!D:D,data_tracking[[#This Row],[year]],'labor costs data'!A:A,data_tracking[[#This Row],[week]])/data_tracking[[#This Row],[SAH Completed (Total)]],"") -> 17.06622089 | H65: =IFERROR((data_tracking[[#This Row],[overhead]]+SUMIFS(labor_costs[total labor cost],labor_costs[year],data_tracking[[#This Row],[year]],labor_costs[week],data_tracking[[#This Row],[week]]))/data_tracking[[#This Row],[Units Completed (Total)]],"") -> 45.16373561 | I65: =IF(SUM(data_tracking[[#This Row],[111-FILSN1 SAH]],data_tracking[[#This Row],[112-FILSN2 SAH]],data_tracking[[#This Row],[113-FILSN3 SAH]])=0,"",SUM(data_tracking[[#This Row],[111-FILSN1 SAH]],data_tracking[[#This Row],[112-FILSN2 SAH]],data_tracking[[#This Row],[113-FILSN3 SAH]])) -> 5703.64556 | J65: =IF(SUM(data_tracking[[#This Row],[111-FILSN1 Units]],data_tracking[[#This Row],[112-FILSN2 Units]],data_tracking[[#This Row],[113-FILSN3 Units]])=0,"",SUM(data_tracking[[#This Row],[111-FILSN1 Units]],data_tracking[[#This Row],[112-FILSN2 Units]],data_tracking[[#This Row],[113-FILSN3 Units]])) -> 5263 | K65: =IF(SUMIFS('2015 sah unit data'!B:B,'2015 sah unit data'!L:L,data_tracking[[#This Row],[year]],'2015 sah unit data'!K:K,data_tracking[[#This Row],[month]],'2015 sah unit data'!J:J,data_tracking[[#This Row],[week]])=0,"",SUMIFS('2015 sah unit data'!B:B,'2015 sah unit data'!L:L,data_tracking[[#This Row],[year]],'2015 sah unit data'!K:K,data_tracking[[#This Row],[month]],'2015 sah unit data'!J:J,data_tracking[[#This Row],[week]])) -> 2833.027917 | L65: =IF(SUMIFS('2015 sah unit data'!C:C,'2015 sah unit data'!L:L,data_tracking[[#This Row],[year]],'2015 sah unit data'!K:K,data_tracking[[#This Row],[month]],'2015 sah unit data'!J:J,data_tracking[[#This Row],[week]])=0,"",SUMIFS('2015 sah unit data'!C:C,'2015 sah unit data'!L:L,data_tracking[[#This Row],[year]],'2015 sah unit data'!K:K,data_tracking[[#This Row],[month]],'2015 sah unit data'!J:J,data_tracking[[#This Row],[week]])) -> 1796.026733 | M65: =IF(SUMIFS('2015 sah unit data'!D:D,'2015 sah unit data'!L:L,data_tracking[[#This Row],[year]],'2015 sah unit data'!K:K,data_tracking[[#This Row],[month]],'2015 sah unit data'!J:J,data_tracking[[#This Row],[week]])=0,"",SUMIFS('2015 sah unit data'!D:D,'2015 sah unit data'!L:L,data_tracking[[#This Row],[year]],'2015 sah unit data'!K:K,data_tracking[[#This Row],[month]],'2015 sah unit data'!J:J,data_tracking[[#This Row],[week]])) -> 1074.59091 | N65: =IF(SUMIFS('2015 sah unit data'!E:E,'2015 sah unit data'!L:L,data_tracking[[#This Row],[year]],'2015 sah unit data'!K:K,data_tracking[[#This Row],[month]],'2015 sah unit data'!J:J,data_tracking[[#This Row],[week]])=0,"",SUMIFS('2015 sah unit data'!E:E,'2015 sah unit data'!L:L,data_tracking[[#This Row],[year]],'2015 sah unit data'!K:K,data_tracking[[#This Row],[month]],'2015 sah unit data'!J:J,data_tracking[[#This Row],[week]])) -> 1735 | O65: =IF(SUMIFS('2015 sah unit data'!F:F,'2015 sah unit data'!L:L,data_tracking[[#This Row],[year]],'2015 sah unit data'!K:K,data_tracking[[#This Row],[month]],'2015 sah unit data'!J:J,data_tracking[[#This Row],[week]])=0,"",SUMIFS('2015 sah unit data'!F:F,'2015 sah unit data'!L:L,data_tracking[[#This Row],[year]],'2015 sah unit data'!K:K,data_tracking[[#This Row],[month]],'2015 sah unit data'!J:J,data_tracking[[#This Row],[week]])) -> 2690 | P65: =IF(SUMIFS('2015 sah unit data'!G:G,'2015 sah unit data'!L:L,data_tracking[[#This Row],[year]],'2015 sah unit data'!K:K,data_tracking[[#This Row],[month]],'2015 sah unit data'!J:J,data_tracking[[#This Row],[week]])=0,"",SUMIFS('2015 sah unit data'!G:G,'2015 sah unit data'!L:L,data_tracking[[#This Row],[year]],'2015 sah unit data'!K:K,data_tracking[[#This Row],[month]],'2015 sah unit data'!J:J,data_tracking[[#This Row],[week]])) -> 838 | R65: =SUMIFS('overhead costs data'!E:E,'overhead costs data'!C:C,data_tracking[[#This Row],[year]],'overhead costs data'!B:B,data_tracking[[#This Row],[month]]) -> 56000
A66: 12 | B66: 3 | C66: 2016 | D66: 39.77028 | E66: 21.82356 | F66: =IFERROR((data_tracking[[#This Row],[overhead]]+SUMIFS('labor costs data'!H:H,'labor costs data'!D:D,data_tracking[[#This Row],[year]],'labor costs data'!A:A,data_tracking[[#This Row],[week]]))/data_tracking[[#This Row],[SAH Completed (Total)]],"") -> 46.09929137 | G66: =IFERROR(SUMIFS('labor costs data'!E:E,'labor costs data'!D:D,data_tracking[[#This Row],[year]],'labor costs data'!A:A,data_tracking[[#This Row],[week]])/data_tracking[[#This Row],[SAH Completed (Total)]],"") -> 18.87821444 | H66: =IFERROR((data_tracking[[#This Row],[overhead]]+SUMIFS(labor_costs[total labor cost],labor_costs[year],data_tracking[[#This Row],[year]],labor_costs[week],data_tracking[[#This Row],[week]]))/data_tracking[[#This Row],[Units Completed (Total)]],"") -> 51.3051458 | I66: =IF(SUM(data_tracking[[#This Row],[111-FILSN1 SAH]],data_tracking[[#This Row],[112-FILSN2 SAH]],data_tracking[[#This Row],[113-FILSN3 SAH]])=0,"",SUM(data_tracking[[#This Row],[111-FILSN1 SAH]],data_tracking[[#This Row],[112-FILSN2 SAH]],data_tracking[[#This Row],[113-FILSN3 SAH]])) -> 5156.190767 | J66: =IF(SUM(data_tracking[[#This Row],[111-FILSN1 Units]],data_tracking[[#This Row],[112-FILSN2 Units]],data_tracking[[#This Row],[113-FILSN3 Units]])=0,"",SUM(data_tracking[[#This Row],[111-FILSN1 Units]],data_tracking[[#This Row],[112-FILSN2 Units]],data_tracking[[#This Row],[113-FILSN3 Units]])) -> 4633 | K66: =IF(SUMIFS('2015 sah unit data'!B:B,'2015 sah unit data'!L:L,data_tracking[[#This Row],[year]],'2015 sah unit data'!K:K,data_tracking[[#This Row],[month]],'2015 sah unit data'!J:J,data_tracking[[#This Row],[week]])=0,"",SUMIFS('2015 sah unit data'!B:B,'2015 sah unit data'!L:L,data_tracking[[#This Row],[year]],'2015 sah unit data'!K:K,data_tracking[[#This Row],[month]],'2015 sah unit data'!J:J,data_tracking[[#This Row],[week]])) -> 3052.485667 | L66: =IF(SUMIFS('2015 sah unit data'!C:C,'2015 sah unit data'!L:L,data_tracking[[#This Row],[year]],'2015 sah unit data'!K:K,data_tracking[[#This Row],[month]],'2015 sah unit data'!J:J,data_tracking[[#This Row],[week]])=0,"",SUMIFS('2015 sah unit data'!C:C,'2015 sah unit data'!L:L,data_tracking[[#This Row],[year]],'2015 sah unit data'!K:K,data_tracking[[#This Row],[month]],'2015 sah unit data'!J:J,data_tracking[[#This Row],[week]])) -> 1040.795667 | M66: =IF(SUMIFS('2015 sah unit data'!D:D,'2015 sah unit data'!L:L,data_tracking[[#This Row],[year]],'2015 sah unit data'!K:K,data_tracking[[#This Row],[month]],'2015 sah unit data'!J:J,data_tracking[[#This Row],[week]])=0,"",SUMIFS('2015 sah unit data'!D:D,'2015 sah unit data'!L:L,data_tracking[[#This Row],[year]],'2015 sah unit data'!K:K,data_tracking[[#This Row],[month]],'2015 sah unit data'!J:J,data_tracking[[#This Row],[week]])) -> 1062.909433 | N66: =IF(SUMIFS('2015 sah unit data'!E:E,'2015 sah unit data'!L:L,data_tracking[[#This Row],[year]],'2015 sah unit data'!K:K,data_tracking[[#This Row],[month]],'2015 sah unit data'!J:J,data_tracking[[#This Row],[week]])=0,"",SUMIFS('2015 sah unit data'!E:E,'2015 sah unit data'!L:L,data_tracking[[#This Row],[year]],'2015 sah unit data'!K:K,data_tracking[[#This Row],[month]],'2015 sah unit data'!J:J,data_tracking[[#This Row],[week]])) -> 1875 | O66: =IF(SUMIFS('2015 sah unit data'!F:F,'2015 sah unit data'!L:L,data_tracking[[#This Row],[year]],'2015 sah unit data'!K:K,data_tracking[[#This Row],[month]],'2015 sah unit data'!J:J,data_tracking[[#This Row],[week]])=0,"",SUMIFS('2015 sah unit data'!F:F,'2015 sah unit data'!L:L,data_tracking[[#This Row],[year]],'2015 sah unit data'!K:K,data_tracking[[#This Row],[month]],'2015 sah unit data'!J:J,data_tracking[[#This Row],[week]])) -> 1120 | P66: =IF(SUMIFS('2015 sah unit data'!G:G,'2015 sah unit data'!L:L,data_tracking[[#This Row],[year]],'2015 sah unit data'!K:K,data_tracking[[#This Row],[month]],'2015 sah unit data'!J:J,data_tracking[[#This Row],[week]])=0,"",SUMIFS('2015 sah unit data'!G:G,'2015 sah unit data'!L:L,data_tracking[[#This Row],[year]],'2015 sah unit data'!K:K,data_tracking[[#This Row],[month]],'2015 sah unit data'!J:J,data_tracking[[#This Row],[week]])) -> 1638 | R66: =SUMIFS('overhead costs data'!E:E,'overhead costs data'!C:C,data_tracking[[#This Row],[year]],'overhead costs data'!B:B,data_tracking[[#This Row],[month]]) -> 56000
